 Batch Number,Vendor Name,Invoice Number, Line,Line Amount,Account Description,Issue Date ,Total Amount Paid
140542,THE TRAINING CONSULTANTS LTD,002511314,1,350.00,PROFESSIONAL DEVELOPMENT,03/02/14,700.00
140542,THE TRAINING CONSULTANTS LTD,002511314,2,175.00,PROFESSIONAL DEVELOPMENT,03/02/14,
140542,THE TRAINING CONSULTANTS LTD,002511314,3,175.00,PROFESSIONAL DEVELOPMENT,03/02/14,
220114F,GEORGE JONES & SON LTD========,036752,1,"10,270.92",STRATEGIC (NON CYCLICAL),03/02/14,"10,270.92"
220114F,GEORGE JONES & SON LTD========,036753,1,"13,416.85",STRATEGIC (NON CYCLICAL),03/02/14,"13,416.85"
220114F,GEORGE JONES & SON LTD========,036754,1,"11,509.91",STRATEGIC (NON CYCLICAL),03/02/14,"11,509.91"
140542,THAMES WATER UTILITIES LTD====,0705420579C,1,554.40,WATER & SEWERAGE RATES,03/02/14,554.40
220114C,HAYS ACCOUNTANCY & FINANCE====,1003940961,1,696.00,FRS STAFF AGENCY,03/02/14,696.00
800028665,*JAMES HUNTER (OUTFITTERS) LTD,107432,1,312.89,CLOTHING,03/02/14,312.89
800028669,*JAMES HUNTER (OUTFITTERS) LTD,107436,1,56.75,CLOTHING,03/02/14,369.06
800028669,*JAMES HUNTER (OUTFITTERS) LTD,107436,2,239.44,CLOTHING,03/02/14,
800028669,*JAMES HUNTER (OUTFITTERS) LTD,107436,3,72.87,CLOTHING,03/02/14,
800028672,*JAMES HUNTER (OUTFITTERS) LTD,107439,1,350.66,CLOTHING,03/02/14,350.66
800028675,*JAMES HUNTER (OUTFITTERS) LTD,107442,1,293.13,CLOTHING,03/02/14,293.13
280114E,RIG EQUIPMENT LTD,1287,1,439.00,OPERATIONAL EQUIP-PURCHASE,03/02/14,439.00
300114F,ABARIS INTERNATIONAL LIMITED==,16335,1,711.70,OPERATIONAL EQUIP-PURCHASE,03/02/14,750.78
300114F,ABARIS INTERNATIONAL LIMITED==,16335,2,39.08,OPERATIONAL EQUIP-PURCHASE,03/02/14,
270114C,AIRSERVICES(UK)===============,16883,1,377.00,REPAIR & MAINTENANCE,03/02/14,481.00
270114C,AIRSERVICES(UK)===============,16883,2,26.00,REPAIR & MAINTENANCE,03/02/14,
270114C,AIRSERVICES(UK)===============,16883,3,78.00,REPAIR & MAINTENANCE,03/02/14,
150114C,GREATER LONDON AUTHORITY======,1800003725,1,"29,750.00",GLA GROUP SHARED SERVICES,03/02/14,"29,750.00"
300114F,B NOKES CONTRACTS LTD,2035,1,274.80,STRATEGIC (NON CYCLICAL),03/02/14,"2,748.00"
300114F,B NOKES CONTRACTS LTD,2035,2,274.80,STRATEGIC (NON CYCLICAL),03/02/14,
300114F,B NOKES CONTRACTS LTD,2035,3,274.80,STRATEGIC (NON CYCLICAL),03/02/14,
300114F,B NOKES CONTRACTS LTD,2035,4,274.80,STRATEGIC (NON CYCLICAL),03/02/14,
300114F,B NOKES CONTRACTS LTD,2035,5,274.80,STRATEGIC (NON CYCLICAL),03/02/14,
300114F,B NOKES CONTRACTS LTD,2035,6,274.80,STRATEGIC (NON CYCLICAL),03/02/14,
300114F,B NOKES CONTRACTS LTD,2035,7,274.80,STRATEGIC (NON CYCLICAL),03/02/14,
300114F,B NOKES CONTRACTS LTD,2035,8,274.80,STRATEGIC (NON CYCLICAL),03/02/14,
300114F,B NOKES CONTRACTS LTD,2035,9,274.80,STRATEGIC (NON CYCLICAL),03/02/14,
300114F,B NOKES CONTRACTS LTD,2035,10,274.80,STRATEGIC (NON CYCLICAL),03/02/14,
300114F,BRISTOL UNIFORMS LTD==========,236283,1,"1,706.71",CLOTHING,03/02/14,"1,706.71"
300114F,BRISTOL UNIFORMS LTD==========,239768,1,"3,744.93",CLOTHING,03/02/14,"3,744.93"
290114G,BRISTOL UNIFORMS LTD==========,241939,1,725.99,CLOTHING,03/02/14,725.99
290114G,BRISTOL UNIFORMS LTD==========,241940,1,"1,784.10",CLOTHING,03/02/14,"1,784.10"
290114G,BRISTOL UNIFORMS LTD==========,241941,1,"192,411.72",CLOTHING,03/02/14,"192,411.72"
280114E,ARKAS LIMITED=================,24806,1,230.50,STRATEGIC (CYCLICAL),03/02/14,"1,322.26"
280114E,ARKAS LIMITED=================,24806,2,544.42,STRATEGIC (CYCLICAL),03/02/14,
280114E,ARKAS LIMITED=================,24806,3,300.34,STRATEGIC (CYCLICAL),03/02/14,
280114E,ARKAS LIMITED=================,24806,4,247.00,STRATEGIC (CYCLICAL),03/02/14,
280114E,ARKAS LIMITED=================,24809,1,175.75,STRATEGIC (CYCLICAL),03/02/14,"1,113.43"
280114E,ARKAS LIMITED=================,24809,2,514.93,STRATEGIC (CYCLICAL),03/02/14,
280114E,ARKAS LIMITED=================,24809,3,218.50,STRATEGIC (CYCLICAL),03/02/14,
280114E,ARKAS LIMITED=================,24809,4,204.25,TACTICAL DAY TO DAY,03/02/14,
280114E,STORM TECHNOLOGIES============,255655,1,"4,530.81",ACQUISITIONS,03/02/14,"10,673.34"
280114E,STORM TECHNOLOGIES============,255655,2,291.26,ACQUISITIONS,03/02/14,
280114E,STORM TECHNOLOGIES============,255655,3,771.38,ACQUISITIONS,03/02/14,
280114E,STORM TECHNOLOGIES============,255655,4,259.78,ACQUISITIONS,03/02/14,
280114E,STORM TECHNOLOGIES============,255655,5,"2,241.71",ACQUISITIONS,03/02/14,
280114E,STORM TECHNOLOGIES============,255655,6,"2,578.40",ACQUISITIONS,03/02/14,
290114G,STORM TECHNOLOGIES============,256299,1,441.21,MAINTENANCE & SUPPORT,03/02/14,693.93
290114G,STORM TECHNOLOGIES============,256299,2,38.74,MAINTENANCE & SUPPORT,03/02/14,
290114G,STORM TECHNOLOGIES============,256299,3,213.98,MAINTENANCE & SUPPORT,03/02/14,
800028860,ADECCO UK LIMITED=============,26668075,1,475.72,FRS STAFF AGENCY,03/02/14,475.72
800028643,ADECCO UK LIMITED=============,26668076,1,945.42,FRS STAFF AGENCY,03/02/14,945.42
800028656,ADECCO UK LIMITED=============,26668090,1,414.48,FRS STAFF AGENCY,03/02/14,414.48
800028861,ADECCO UK LIMITED=============,26674924,1,594.65,FRS STAFF AGENCY,03/02/14,594.65
800028842,ADECCO UK LIMITED=============,26674925,1,945.42,FRS STAFF AGENCY,03/02/14,945.42
800028845,ADECCO UK LIMITED=============,26674928,1,467.32,FRS STAFF AGENCY,03/02/14,467.32
800028848,ADECCO UK LIMITED=============,26674931,1,543.68,FRS STAFF AGENCY,03/02/14,543.68
800028851,ADECCO UK LIMITED=============,26674934,1,994.50,FRS STAFF AGENCY,03/02/14,994.50
800028852,ADECCO UK LIMITED=============,26674935,1,439.60,FRS STAFF AGENCY,03/02/14,439.60
800028853,ADECCO UK LIMITED=============,26674936,1,439.60,FRS STAFF AGENCY,03/02/14,439.60
290114G,TEAM PURPLE LIMITED===========,2716,1,139.00,CLOTHING,03/02/14,288.42
290114G,TEAM PURPLE LIMITED===========,2716,2,39.82,CLOTHING,03/02/14,
290114G,TEAM PURPLE LIMITED===========,2716,3,109.60,CLOTHING,03/02/14,
800028288,*H-SQUARED ELECTRONICS LTD,342274,1,344.00,OPERATIONAL EQUIP-PURCHASE,03/02/14,344.00
280114E,DUE NORTH LTD=================,3457,1,"9,800.00",SUBSCRIPTIONS,03/02/14,"9,800.00"
280114E,EXPRESS VENDING LIMITED=======,346899/346900,1,426.57,CATERING EQUIPMENT,03/02/14,426.57
140539,REACTIVE ROOFING (UK) LIMITED,3629,1,942.00,STRATEGIC (NON CYCLICAL),03/02/14,"2,621.40"
140539,REACTIVE ROOFING (UK) LIMITED,3629,2,"1,679.40",STRATEGIC (NON CYCLICAL),03/02/14,
140542,MR STEVEN SNOWDEN=============,400647C,1,"20,500.00",COUNSELS FEES,03/02/14,"20,500.00"
300114F,SPORTSAFE UK LTD==============,453253,1,290.00,GYM EQUIPMENT,03/02/14,290.00
140542,THAMES WATER UTILITIES LTD====,63661-76423A,1,"2,333.17",WATER & SEWERAGE RATES,03/02/14,"2,333.17"
140542,THAMES WATER UTILITIES LTD====,7544309254A,1,376.94,WATER & SEWERAGE RATES,03/02/14,376.94
280114E,DRAEGER SAFETY UK LIMITED=====,90435176,1,312.07,PROTECTIVE EQUIPT - PARTS,03/02/14,312.07
220114C,MULTITONE ELECTRONICS PLC=====,91954,1,"1,304.50",RADIO,03/02/14,"1,304.50"
140542,THAMES WATER UTILITIES LTD====,95240-85193*,1,868.71,WATER & SEWERAGE RATES,03/02/14,868.71
140542,THAMES WATER UTILITIES LTD====,95752-38148:,1,628.21,WATER & SEWERAGE RATES,03/02/14,628.21
280114E,KIER BUILDING SERV ENGINEERS==,F00046801,1,238.00,TACTICAL DAY TO DAY,03/02/14,"1,591.31"
280114E,KIER BUILDING SERV ENGINEERS==,F00046801,2,49.58,TACTICAL DAY TO DAY,03/02/14,
280114E,KIER BUILDING SERV ENGINEERS==,F00046801,3,48.57,TACTICAL DAY TO DAY,03/02/14,
280114E,KIER BUILDING SERV ENGINEERS==,F00046801,4,213.40,TACTICAL DAY TO DAY,03/02/14,
280114E,KIER BUILDING SERV ENGINEERS==,F00046801,5,587.62,TACTICAL DAY TO DAY,03/02/14,
280114E,KIER BUILDING SERV ENGINEERS==,F00046801,6,180.38,TACTICAL DAY TO DAY,03/02/14,
280114E,KIER BUILDING SERV ENGINEERS==,F00046801,7,121.43,TACTICAL DAY TO DAY,03/02/14,
280114E,KIER BUILDING SERV ENGINEERS==,F00046801,8,152.33,TACTICAL DAY TO DAY,03/02/14,
300114F,KIER BUILDING SERV ENGINEERS==,F00047036,1,975.09,STRATEGIC (CYCLICAL),03/02/14,975.09
300114F,KIER BUILDING SERV ENGINEERS==,F00047040,1,"1,631.66",STRATEGIC (CYCLICAL),03/02/14,"1,631.66"
300114F,KIER BUILDING SERV ENGINEERS==,F00047048,1,298.72,CATERING FIXTURES,03/02/14,298.72
300114F,KIER BUILDING SERV ENGINEERS==,F00047049,1,298.72,CATERING FIXTURES,03/02/14,298.72
300114F,KIER BUILDING SERV ENGINEERS==,F00047050,1,298.72,CATERING FIXTURES,03/02/14,298.72
300114F,KIER BUILDING SERV ENGINEERS==,F00047051,1,380.67,CATERING FIXTURES,03/02/14,380.67
300114F,KIER BUILDING SERV ENGINEERS==,F00047056,1,380.67,CATERING FIXTURES,03/02/14,380.67
230114C,HUMBERSIDE FIRE&RESCUE SERVICE,I-008834,1,700.00,PROFESSIONAL DEVELOPMENT,03/02/14,700.00
280114E,WM ENGINEERING SERVICES LTD===,I-4626,1,"1,450.00",STRATEGIC (NON CYCLICAL),03/02/14,"2,743.00"
280114E,WM ENGINEERING SERVICES LTD===,I-4626,2,"1,293.00",STRATEGIC (NON CYCLICAL),03/02/14,
300114F,HALL FUELS,I06578953,1,"2,165.60",FUEL,03/02/14,"2,165.60"
230114C,HALL FUELS,I06580692,1,"2,165.60",FUEL,03/02/14,"2,165.60"
220114F,HALL FUELS,I06584212,1,"1,082.80",FUEL,03/02/14,"1,082.80"
701582,CAPITA BUSINESS SERVICES LTD==,INV-15090,1,350.00,PROFESSIONAL DEVELOPMENT,03/02/14,350.00
230114F,CAPITA BUSINESS SERVICES LTD==,INV-15181,1,350.00,PROFESSIONAL DEVELOPMENT,03/02/14,350.00
280114E,CAPITA BUSINESS SERVICES LTD==,INV-15199,1,350.00,PROFESSIONAL DEVELOPMENT,03/02/14,350.00
280114E,JCT600 CONTRACTS LIMITED======,INV00052944,1,773.00,MILEAGE CHARGES,03/02/14,773.00
220114C,ESSENTRA COMPONENTS LTD,MM257902,1,279.50,PROTECTIVE EQUIPT - PARTS,03/02/14,448.70
220114C,ESSENTRA COMPONENTS LTD,MM257902,2,155.70,PURCHASE,03/02/14,
220114C,ESSENTRA COMPONENTS LTD,MM257902,3,13.50,PURCHASE,03/02/14,
290114G,PHOENIX SOFTWARE LTD==========,OP/I717074,1,"1,007.25",MAINTENANCE & SUPPORT,03/02/14,"2,339.50"
290114G,PHOENIX SOFTWARE LTD==========,OP/I717074,2,885.00,MAINTENANCE & SUPPORT,03/02/14,
290114G,PHOENIX SOFTWARE LTD==========,OP/I717074,3,447.25,MAINTENANCE & SUPPORT,03/02/14,
140542,VEOLIA WATER PROJECTS LTD=====,SI-14-0000095,1,"2,027.09",ELECTRICITY,03/02/14,"2,027.09"
160114G,HARROW GREEN LIMITED,SS022951,1,"38,993.00",GENERAL,03/02/14,"38,993.00"
290114G,ARVAL UK LTD,VS0000873036,1,745.92,CONTRACT HIRE,03/02/14,745.92
290114G,ARVAL UK LTD,VS0000873037,1,"1,016.42",CONTRACT HIRE,03/02/14,"1,016.42"
310114F,FFC LONDON SHOP===============,260114 TSS/11426,1,"1,600.00",GENERAL CONSUMABLES,04/02/14,"2,072.50"
310114F,FFC LONDON SHOP===============,260114 TSS/11426,2,472.50,GENERAL CONSUMABLES,04/02/14,
140547,THOMPSONS SOLICITORS==========,8481*,1,"15,340.00",CLAIMANT COSTS AGREED,04/02/14,"15,340.00"
230114C,HEALTH MANAGEMENT LIMITED=====,0000108085,1,"4,200.00",THIRD PARTY REPORTS,06/02/14,"4,200.00"
310114C,TURNER & TOWNSEND PROJECT MNGT,000542559,1,"7,982.00",PROF FEES-MISCELLANEOUS,06/02/14,"7,982.00"
140546,OGILVIE FLEET LTD=============,00266341,1,828.51,LEASE CAR CHARGES,06/02/14,"3,927.36"
140546,OGILVIE FLEET LTD=============,00266341,2,"3,098.85",P/PAYMTS-CAR LEASG-RENTAL,06/02/14,
140546,OGILVIE FLEET LTD=============,00266341,3,-345.82,VAT CAR LEASING,06/02/14,
140546,OGILVIE FLEET LTD=============,00266341,4,345.82,LEASE CAR CHARGES,06/02/14,
140546,OGILVIE FLEET LTD=============,00267095,1,"1,081.75",LEASE CAR CHARGES,06/02/14,"5,335.68"
140546,OGILVIE FLEET LTD=============,00267095,2,"4,253.93",P/PAYMTS-CAR LEASG-RENTAL,06/02/14,
140546,OGILVIE FLEET LTD=============,00267095,3,-464.35,VAT CAR LEASING,06/02/14,
140546,OGILVIE FLEET LTD=============,00267095,4,464.35,LEASE CAR CHARGES,06/02/14,
140546,OGILVIE FLEET LTD=============,00267134,1,898.23,LEASE CAR CHARGES,06/02/14,"4,313.88"
140546,OGILVIE FLEET LTD=============,00267134,2,"3,415.65",P/PAYMTS-CAR LEASG-RENTAL,06/02/14,
140546,OGILVIE FLEET LTD=============,00267134,3,-365.96,VAT CAR LEASING,06/02/14,
140546,OGILVIE FLEET LTD=============,00267134,4,365.96,LEASE CAR CHARGES,06/02/14,
310114C,IBM UK LIMITED================,105311174,1,651.00,MAINTENANCE & SUPPORT,06/02/14,"27,851.00"
310114C,IBM UK LIMITED================,105311174,2,"3,306.00",MAINTENANCE & SUPPORT,06/02/14,
310114C,IBM UK LIMITED================,105311174,3,"6,228.00",MAINTENANCE & SUPPORT,06/02/14,
310114C,IBM UK LIMITED================,105311174,4,"17,666.00",MAINTENANCE & SUPPORT,06/02/14,
310114F,*SPRUE SAFETY PRODUCTS LTD====,105322,1,"1,483.20",FIRE DETECTORS,06/02/14,"1,483.20"
040214F,*SPRUE SAFETY PRODUCTS LTD====,1054397,1,"1,730.40",FIRE DETECTORS,06/02/14,"1,730.40"
310114F,*SPRUE SAFETY PRODUCTS LTD====,1055253,1,"3,080.00",FIRE DETECTORS,06/02/14,"3,080.00"
310114F,*SPRUE SAFETY PRODUCTS LTD====,1055311,1,"1,236.00",FIRE DETECTORS,06/02/14,"1,236.00"
310114F,*SPRUE SAFETY PRODUCTS LTD====,1055312,1,"3,708.00",FIRE DETECTORS,06/02/14,"3,708.00"
310114F,*SPRUE SAFETY PRODUCTS LTD====,1055355,1,741.60,FIRE DETECTORS,06/02/14,741.60
310114F,*SPRUE SAFETY PRODUCTS LTD====,1055356,1,741.60,FIRE DETECTORS,06/02/14,741.60
310114F,*SPRUE SAFETY PRODUCTS LTD====,1055361,1,741.60,FIRE DETECTORS,06/02/14,741.60
310114F,*SPRUE SAFETY PRODUCTS LTD====,1055364,1,"1,977.60",FIRE DETECTORS,06/02/14,"1,977.60"
310114F,*SPRUE SAFETY PRODUCTS LTD====,1055366,1,"1,483.20",FIRE DETECTORS,06/02/14,"1,483.20"
310114F,*SPRUE SAFETY PRODUCTS LTD====,1055368,1,"1,483.20",FIRE DETECTORS,06/02/14,"1,483.20"
310114F,*SPRUE SAFETY PRODUCTS LTD====,1055369,1,"1,112.40",FIRE DETECTORS,06/02/14,"1,112.40"
310114F,*SPRUE SAFETY PRODUCTS LTD====,1055478,1,"1,760.00",FIRE DETECTORS,06/02/14,"5,280.00"
310114F,*SPRUE SAFETY PRODUCTS LTD====,1055478,2,"1,760.00",FIRE DETECTORS,06/02/14,
310114F,*SPRUE SAFETY PRODUCTS LTD====,1055478,3,"1,760.00",FIRE DETECTORS,06/02/14,
310114F,*SPRUE SAFETY PRODUCTS LTD====,1055891,1,"2,200.00",FIRE DETECTORS,06/02/14,"6,600.00"
310114F,*SPRUE SAFETY PRODUCTS LTD====,1055891,2,"2,200.00",FIRE DETECTORS,06/02/14,
310114F,*SPRUE SAFETY PRODUCTS LTD====,1055891,3,"2,200.00",FIRE DETECTORS,06/02/14,
040214F,*SPRUE SAFETY PRODUCTS LTD====,1055892,1,"1,854.00",FIRE DETECTORS,06/02/14,"1,854.00"
040214F,*SPRUE SAFETY PRODUCTS LTD====,1055893,1,"1,236.00",FIRE DETECTORS,06/02/14,"1,236.00"
310114C,*SPRUE SAFETY PRODUCTS LTD====,1056114,1,"1,730.40",FIRE DETECTORS,06/02/14,"1,730.40"
310114C,*SPRUE SAFETY PRODUCTS LTD====,1056117,1,"1,730.40",FIRE DETECTORS,06/02/14,"1,730.40"
310114C,*SPRUE SAFETY PRODUCTS LTD====,1056118,1,988.80,FIRE DETECTORS,06/02/14,988.80
310114C,*SPRUE SAFETY PRODUCTS LTD====,1056120,1,"2,966.40",FIRE DETECTORS,06/02/14,"2,966.40"
310114C,*SPRUE SAFETY PRODUCTS LTD====,1056121,1,"1,606.80",FIRE DETECTORS,06/02/14,"1,606.80"
310114C,*SPRUE SAFETY PRODUCTS LTD====,1056122,1,"2,966.40",FIRE DETECTORS,06/02/14,"2,966.40"
310114C,*SPRUE SAFETY PRODUCTS LTD====,1056123,1,"1,359.60",FIRE DETECTORS,06/02/14,"1,359.60"
310114C,*SPRUE SAFETY PRODUCTS LTD====,1056126,1,"1,359.60",FIRE DETECTORS,06/02/14,"1,359.60"
310114C,*SPRUE SAFETY PRODUCTS LTD====,1056127,1,"2,966.40",FIRE DETECTORS,06/02/14,"2,966.40"
310114C,*SPRUE SAFETY PRODUCTS LTD====,1056129,1,"2,966.40",FIRE DETECTORS,06/02/14,"2,966.40"
310114C,*SPRUE SAFETY PRODUCTS LTD====,1056163,1,"1,760.00",FIRE DETECTORS,06/02/14,"4,400.00"
310114C,*SPRUE SAFETY PRODUCTS LTD====,1056163,2,880.00,FIRE DETECTORS,06/02/14,
310114C,*SPRUE SAFETY PRODUCTS LTD====,1056163,3,"1,760.00",FIRE DETECTORS,06/02/14,
310114C,*SPRUE SAFETY PRODUCTS LTD====,1056177,1,"8,800.00",FIRE DETECTORS,06/02/14,"8,800.00"
310114C,*SPRUE SAFETY PRODUCTS LTD====,1056178,1,"4,400.00",FIRE DETECTORS,06/02/14,"4,400.00"
300114G,*SPRUE SAFETY PRODUCTS LTD====,1056429,1,"6,180.00",FIRE DETECTORS,06/02/14,"6,180.00"
800028663,*JAMES HUNTER (OUTFITTERS) LTD,107430,1,312.89,CLOTHING,06/02/14,312.89
800028664,*JAMES HUNTER (OUTFITTERS) LTD,107431,1,312.89,CLOTHING,06/02/14,312.89
800028671,*JAMES HUNTER (OUTFITTERS) LTD,107438,1,289.84,CLOTHING,06/02/14,362.71
800028671,*JAMES HUNTER (OUTFITTERS) LTD,107438,2,72.87,CLOTHING,06/02/14,
800028673,*JAMES HUNTER (OUTFITTERS) LTD,107440,1,246.45,CLOTHING,06/02/14,392.19
800028673,*JAMES HUNTER (OUTFITTERS) LTD,107440,2,145.74,CLOTHING,06/02/14,
800028674,*JAMES HUNTER (OUTFITTERS) LTD,107441,1,362.23,CLOTHING,06/02/14,362.23
310114F,BT GLOBAL SERVICES============,1128991,1,541.66,TELECOMMUNICATIONS,06/02/14,541.66
140546,THAMES WATER UTILITIES LTD====,13752-86795N,1,380.08,WATER & SEWERAGE RATES,06/02/14,380.08
040214F,CITYFLEET NETWORKS LTD,137879,1,"1,253.34",PUBLIC TRANSPORT,06/02/14,"1,253.34"
902373,"ACCELLION, INC.===============",14030080,1,"4,000.00",MAINTENANCE & SUPPORT,06/02/14,"5,560.00"
902373,"ACCELLION, INC.===============",14030080,2,"1,560.00",MAINTENANCE & SUPPORT,06/02/14,
140546,THAMES WATER UTILITIES LTD====,1560420001X,1,745.40,WATER & SEWERAGE RATES,06/02/14,745.40
310114G,DRON & WRIGHT=================,16871,1,"6,415.00",PROFESSIONAL SERVICES,06/02/14,"6,415.00"
310114G,BEAUMONT CONSTRUCTION SERVICES,1715,1,"2,600.00",STRATEGIC (NON CYCLICAL),06/02/14,"2,600.00"
310114F,COMMUNITIES & LOCAL GOVERNMENT,1800019510,1,"8,024.10",MAINTENANCE & SUPPORT,06/02/14,"116,258.75"
310114F,COMMUNITIES & LOCAL GOVERNMENT,1800019510,2,"108,234.65",MAINTENANCE & SUPPORT,06/02/14,
300114G,B NOKES CONTRACTS LTD,2034,1,492.00,STRATEGIC (NON CYCLICAL),06/02/14,"4,920.00"
300114G,B NOKES CONTRACTS LTD,2034,2,492.00,STRATEGIC (NON CYCLICAL),06/02/14,
300114G,B NOKES CONTRACTS LTD,2034,3,492.00,STRATEGIC (NON CYCLICAL),06/02/14,
300114G,B NOKES CONTRACTS LTD,2034,4,492.00,STRATEGIC (NON CYCLICAL),06/02/14,
300114G,B NOKES CONTRACTS LTD,2034,5,492.00,STRATEGIC (NON CYCLICAL),06/02/14,
300114G,B NOKES CONTRACTS LTD,2034,6,492.00,STRATEGIC (NON CYCLICAL),06/02/14,
300114G,B NOKES CONTRACTS LTD,2034,7,492.00,STRATEGIC (NON CYCLICAL),06/02/14,
300114G,B NOKES CONTRACTS LTD,2034,8,492.00,STRATEGIC (NON CYCLICAL),06/02/14,
300114G,B NOKES CONTRACTS LTD,2034,9,492.00,STRATEGIC (NON CYCLICAL),06/02/14,
300114G,B NOKES CONTRACTS LTD,2034,10,492.00,STRATEGIC (NON CYCLICAL),06/02/14,
300114G,B NOKES CONTRACTS LTD,2047,1,"1,426.75",STRATEGIC (NON CYCLICAL),06/02/14,"1,426.75"
300114G,B NOKES CONTRACTS LTD,2048,1,"3,177.50",STRATEGIC (NON CYCLICAL),06/02/14,"3,177.50"
300114G,B NOKES CONTRACTS LTD,2049,1,880.00,STRATEGIC (NON CYCLICAL),06/02/14,880.00
300114G,B NOKES CONTRACTS LTD,2050,1,522.25,FIXTURES & FITTINGS,06/02/14,522.25
300114G,B NOKES CONTRACTS LTD,2051,1,"1,461.00",STRATEGIC (NON CYCLICAL),06/02/14,"1,461.00"
140547,MISS BO-EUN JUNG==============,233362,1,"1,120.00",PROFESSIONAL FEES ENFORCEMENT,06/02/14,"1,120.00"
030214C,BRISTOL UNIFORMS LTD==========,243207,1,"6,559.18",CLOTHING,06/02/14,"9,169.13"
030214C,BRISTOL UNIFORMS LTD==========,243207,2,"1,706.71",CLOTHING,06/02/14,
030214C,BRISTOL UNIFORMS LTD==========,243207,3,903.24,CLOTHING,06/02/14,
040214F,BRISTOL UNIFORMS LTD==========,246816,1,748.42,CLOTHING,06/02/14,748.42
040214F,BRISTOL UNIFORMS LTD==========,246817,1,"1,832.27",CLOTHING,06/02/14,"1,832.27"
040214F,BRISTOL UNIFORMS LTD==========,246818,1,"197,575.56",CLOTHING,06/02/14,"197,575.56"
300114G,STORM TECHNOLOGIES============,256306,1,"2,100.00",ACQUISITIONS,06/02/14,"2,100.00"
040214F,MACE LIMITED,26915/0114605,1,262.94,PROF FEES-MISCELLANEOUS,06/02/14,262.94
040214F,MACE LIMITED,26915/1113456,1,"14,585.00",STRATEGIC (NON CYCLICAL),06/02/14,"14,585.00"
230114C,RS COMPONENTS LTD=============,275155728,1,663.60,RADIO,06/02/14,716.34
230114C,RS COMPONENTS LTD=============,275155728,2,52.74,RADIO,06/02/14,
280114E,EVOLUTION ENVIRONMENTAL LTD,2974,1,260.00,ASBESTOS,06/02/14,260.00
310114C,BRISTOL UNIFORMS LTD==========,3106666,1,46.88,CLOTHING,06/02/14,398.48
310114C,BRISTOL UNIFORMS LTD==========,3106666,2,23.44,CLOTHING,06/02/14,
310114C,BRISTOL UNIFORMS LTD==========,3106666,3,46.88,CLOTHING,06/02/14,
310114C,BRISTOL UNIFORMS LTD==========,3106666,4,46.88,CLOTHING,06/02/14,
310114C,BRISTOL UNIFORMS LTD==========,3106666,5,46.88,CLOTHING,06/02/14,
310114C,BRISTOL UNIFORMS LTD==========,3106666,6,46.88,CLOTHING,06/02/14,
310114C,BRISTOL UNIFORMS LTD==========,3106666,7,46.88,CLOTHING,06/02/14,
310114C,BRISTOL UNIFORMS LTD==========,3106666,8,46.88,CLOTHING,06/02/14,
310114C,BRISTOL UNIFORMS LTD==========,3106666,9,46.88,CLOTHING,06/02/14,
280114E,L B OF SUTTON=================,3183681290,1,280.00,CRB CHECKS,06/02/14,280.00
140546,THAMES WATER UTILITIES LTD====,3251898471A,1,"1,053.10",WATER & SEWERAGE RATES,06/02/14,"1,053.10"
310114G,PRESTIGE PROJECTS LTD,3294,1,"1,512.00",OPERATIONAL EQUIP-PURCHASE,06/02/14,"1,512.00"
310114G,HAMPSHIRE FIRE AND RESCUE SERV,3630005010,1,"13,256.00",USAR DOG GRANT,06/02/14,"13,256.00"
140545,REACTIVE ROOFING (UK) LIMITED,3637,1,942.00,STRATEGIC (NON CYCLICAL),06/02/14,"2,916.00"
140545,REACTIVE ROOFING (UK) LIMITED,3637,2,"1,974.00",STRATEGIC (NON CYCLICAL),06/02/14,
140545,REACTIVE ROOFING (UK) LIMITED,3640,1,"2,105.00",STRATEGIC (NON CYCLICAL),06/02/14,"3,565.00"
140545,REACTIVE ROOFING (UK) LIMITED,3640,2,628.00,STRATEGIC (NON CYCLICAL),06/02/14,
140545,REACTIVE ROOFING (UK) LIMITED,3640,3,518.00,STRATEGIC (NON CYCLICAL),06/02/14,
140545,REACTIVE ROOFING (UK) LIMITED,3640,4,314.00,STRATEGIC (NON CYCLICAL),06/02/14,
310114G,THE HEIGHTEC GROUP LTD========,37774,1,39.75,OPERATIONAL EQUIP-PURCHASE,06/02/14,"2,842.62"
310114G,THE HEIGHTEC GROUP LTD========,37774,2,313.13,OPERATIONAL EQUIP-PURCHASE,06/02/14,
310114G,THE HEIGHTEC GROUP LTD========,37774,3,218.70,OPERATIONAL EQUIP-PURCHASE,06/02/14,
310114G,THE HEIGHTEC GROUP LTD========,37774,4,362.18,OPERATIONAL EQUIP-PURCHASE,06/02/14,
310114G,THE HEIGHTEC GROUP LTD========,37774,5,552.48,OPERATIONAL EQUIP-PURCHASE,06/02/14,
310114G,THE HEIGHTEC GROUP LTD========,37774,6,"1,356.38",OPERATIONAL EQUIP-PURCHASE,06/02/14,
140546,FOCUS & VISION TECHNOLOGY LTD,38353,1,793.38,MEDICAL EXPENSES CLAIMS,06/02/14,793.38
310114F,COMPUTACENTRE================,3880006584,1,"3,277.50",ACQUISITIONS,06/02/14,"3,277.50"
140546,THAMES WATER UTILITIES LTD====,3999296402Z,1,492.40,WATER & SEWERAGE RATES,06/02/14,492.40
800029088,*BURLINGTON UNIFORMS LTD,424990,1,60.58,CLOTHING,06/02/14,252.45
800029088,*BURLINGTON UNIFORMS LTD,424990,2,191.87,CLOTHING,06/02/14,
300114G,WILLMOTT DIXON CONSTRUCTION,442527,1,"216,335.30",DEVELOPMENT  EXPENSES-CONTRACT,06/02/14,"216,335.30"
140546,THAMES WATER UTILITIES LTD====,4894198142M,1,443.01,WATER & SEWERAGE RATES,06/02/14,443.01
800028546,*GREENHAM TRADING LTD=========,5627168,1,125.65,HYGIENE,06/02/14,251.30
800028546,*GREENHAM TRADING LTD=========,5627168,2,125.65,HYGIENE,06/02/14,
800028567,*GREENHAM TRADING LTD=========,5627191,1,55.20,OPERATIONAL EQUIP-PURCHASE,06/02/14,252.98
800028567,*GREENHAM TRADING LTD=========,5627191,2,125.65,HYGIENE,06/02/14,
800028567,*GREENHAM TRADING LTD=========,5627191,3,41.20,HYGIENE,06/02/14,
800028567,*GREENHAM TRADING LTD=========,5627191,4,15.21,HYGIENE,06/02/14,
800028567,*GREENHAM TRADING LTD=========,5627191,5,9.30,HYGIENE,06/02/14,
800028567,*GREENHAM TRADING LTD=========,5627191,6,6.42,HYGIENE,06/02/14,
310114F,DRAMANON======================,654,1,820.00,CONSULTANTS,06/02/14,820.00
040214F,*SP SERVICES,720996,1,10.30,HYGIENE,06/02/14,697.96
040214F,*SP SERVICES,720996,2,4.50,HYGIENE,06/02/14,
040214F,*SP SERVICES,720996,3,2.50,HYGIENE,06/02/14,
040214F,*SP SERVICES,720996,4,5.20,HYGIENE,06/02/14,
040214F,*SP SERVICES,720996,5,3.30,HYGIENE,06/02/14,
040214F,*SP SERVICES,720996,6,1.75,HYGIENE,06/02/14,
040214F,*SP SERVICES,720996,7,39.60,HYGIENE,06/02/14,
040214F,*SP SERVICES,720996,8,16.50,HYGIENE,06/02/14,
040214F,*SP SERVICES,720996,9,2.30,HYGIENE,06/02/14,
040214F,*SP SERVICES,720996,10,3.40,HYGIENE,06/02/14,
040214F,*SP SERVICES,720996,11,4.10,HYGIENE,06/02/14,
040214F,*SP SERVICES,720996,12,4.50,HYGIENE,06/02/14,
040214F,*SP SERVICES,720996,13,1.80,HYGIENE,06/02/14,
040214F,*SP SERVICES,720996,14,2.00,HYGIENE,06/02/14,
040214F,*SP SERVICES,720996,15,2.30,HYGIENE,06/02/14,
040214F,*SP SERVICES,720996,16,4.00,HYGIENE,06/02/14,
040214F,*SP SERVICES,720996,17,33.95,HYGIENE,06/02/14,
040214F,*SP SERVICES,720996,18,3.25,HYGIENE,06/02/14,
040214F,*SP SERVICES,720996,19,6.40,HYGIENE,06/02/14,
040214F,*SP SERVICES,720996,20,34.50,HYGIENE,06/02/14,
040214F,*SP SERVICES,720996,21,46.30,HYGIENE,06/02/14,
040214F,*SP SERVICES,720996,22,3.50,HYGIENE,06/02/14,
040214F,*SP SERVICES,720996,23,17.50,HYGIENE,06/02/14,
040214F,*SP SERVICES,720996,24,299.50,HYGIENE,06/02/14,
040214F,*SP SERVICES,720996,25,21.00,HYGIENE,06/02/14,
040214F,*SP SERVICES,720996,26,84.80,HYGIENE,06/02/14,
040214F,*SP SERVICES,720996,27,29.95,HYGIENE,06/02/14,
040214F,*SP SERVICES,720996,28,9.26,HYGIENE,06/02/14,
030214C,TWO SERVICES LTD==============,74776,1,681.50,CATERING EQUIPMENT,06/02/14,681.50
310114G,NEXUS PROPERTY SERVICES,80032,1,"2,896.59",GENERAL,06/02/14,"2,896.59"
140547,MR JONATHAN MOFFETT,86273A,1,"45,370.00",PROFESSIONAL FEES GENERAL,06/02/14,"45,370.00"
280114E,DRAEGER SAFETY UK LIMITED=====,90435368,1,399.20,REPAIR & MAINTENANCE,06/02/14,983.70
280114E,DRAEGER SAFETY UK LIMITED=====,90435368,2,62.00,REPAIR & MAINTENANCE,06/02/14,
280114E,DRAEGER SAFETY UK LIMITED=====,90435368,3,15.50,TELEMETRY MAINTENANCE,06/02/14,
280114E,DRAEGER SAFETY UK LIMITED=====,90435368,4,500.00,REPAIR & MAINTENANCE,06/02/14,
280114E,DRAEGER SAFETY UK LIMITED=====,90435368,5,7.00,REPAIR & MAINTENANCE,06/02/14,
280114E,DRAEGER SAFETY UK LIMITED=====,90435693,1,800.00,PROTECTIVE EQUIPT - PARTS,06/02/14,800.00
030214C,DRAEGER SAFETY UK LIMITED=====,90435879,1,397.18,PROTECTIVE EQUIPT - PARTS,06/02/14,397.18
310114G,MULTITONE ELECTRONICS PLC=====,91828,1,277.25,RADIO,06/02/14,"1,027.34"
310114G,MULTITONE ELECTRONICS PLC=====,91828,2,418.59,RADIO,06/02/14,
310114G,MULTITONE ELECTRONICS PLC=====,91828,3,331.50,RADIO,06/02/14,
310114F,CFOA (SERVICES) LTD===========,CSL 13541,1,885.00,PROFESSIONAL DEVELOPMENT,06/02/14,885.00
310114F,CFOA (SERVICES) LTD===========,CSL 13560,1,295.00,PROFESSIONAL DEVELOPMENT,06/02/14,295.00
030214C,E&S B DAVIS LTD,DAV/48089,1,180.00,OPERATIONAL EQUIP-PURCHASE,06/02/14,360.00
030214C,E&S B DAVIS LTD,DAV/48089,2,180.00,OPERATIONAL EQUIP-PURCHASE,06/02/14,
040214F,TRINITY HOUSE EVENTS LIMITED,I002450,1,"2,075.00",PROFESSIONAL DEVELOPMENT,06/02/14,"2,075.00"
310114G,HALL FUELS,I06567982,1,"4,378.38",FUEL,06/02/14,"4,378.38"
040214F,HALL FUELS,I06594957,1,"3,248.40",FUEL,06/02/14,"3,248.40"
030214C,QA LIMITED,ICE264238,1,625.00,PROFESSIONAL DEVELOPMENT,06/02/14,625.00
310114F,LEARNING TREE INTERNATIONAL LT,IN878463,1,"5,160.00",PROFESSIONAL DEVELOPMENT,06/02/14,"5,160.00"
300114G,MUSCO LIGHTING EUROPE LTD=====,INV0004018,1,"3,853.33",GENERAL,06/02/14,"3,853.33"
040214F,JCT600 CONTRACTS LIMITED======,INV00052804,1,840.61,MILEAGE CHARGES,06/02/14,840.61
040214F,JCT600 CONTRACTS LIMITED======,INV00053254,1,"2,660.07",MILEAGE CHARGES,06/02/14,"2,660.07"
140546,IMSERV,INV150663,1,413.82,ELECTRICITY,06/02/14,"2,482.92"
140546,IMSERV,INV150663,2,413.82,ELECTRICITY,06/02/14,
140546,IMSERV,INV150663,3,413.82,ELECTRICITY,06/02/14,
140546,IMSERV,INV150663,4,413.82,ELECTRICITY,06/02/14,
140546,IMSERV,INV150663,5,413.82,ELECTRICITY,06/02/14,
140546,IMSERV,INV150663,6,413.82,ELECTRICITY,06/02/14,
140546,LEX AUTOLEASE,IRIN330302,1,902.66,LEASE CAR CHARGES,06/02/14,"4,067.52"
140546,LEX AUTOLEASE,IRIN330302,2,"3,164.86",P/PAYMTS-CAR LEASG-RENTAL,06/02/14,
140546,LEX AUTOLEASE,IRIN330302,3,-362.11,VAT CAR LEASING,06/02/14,
140546,LEX AUTOLEASE,IRIN330302,4,362.11,LEASE CAR CHARGES,06/02/14,
800029039,ALLSTAR BUSINESS SOLUTIONS LTD,P2002288378,1,889.08,FUEL,06/02/14,"19,230.67"
800029039,ALLSTAR BUSINESS SOLUTIONS LTD,P2002288378,2,726.72,FUEL,06/02/14,
800029039,ALLSTAR BUSINESS SOLUTIONS LTD,P2002288378,3,573.36,FUEL,06/02/14,
800029039,ALLSTAR BUSINESS SOLUTIONS LTD,P2002288378,4,526.14,FUEL,06/02/14,
800029039,ALLSTAR BUSINESS SOLUTIONS LTD,P2002288378,5,522.23,FUEL,06/02/14,
800029039,ALLSTAR BUSINESS SOLUTIONS LTD,P2002288378,6,475.67,FUEL,06/02/14,
800029039,ALLSTAR BUSINESS SOLUTIONS LTD,P2002288378,7,390.26,FUEL,06/02/14,
800029039,ALLSTAR BUSINESS SOLUTIONS LTD,P2002288378,8,376.57,FUEL,06/02/14,
800029039,ALLSTAR BUSINESS SOLUTIONS LTD,P2002288378,9,372.84,FUEL,06/02/14,
800029039,ALLSTAR BUSINESS SOLUTIONS LTD,P2002288378,10,352.80,FUEL,06/02/14,
800029039,ALLSTAR BUSINESS SOLUTIONS LTD,P2002288378,11,352.01,FUEL,06/02/14,
800029039,ALLSTAR BUSINESS SOLUTIONS LTD,P2002288378,12,337.40,FUEL,06/02/14,
800029039,ALLSTAR BUSINESS SOLUTIONS LTD,P2002288378,13,328.66,FUEL,06/02/14,
800029039,ALLSTAR BUSINESS SOLUTIONS LTD,P2002288378,14,322.44,FUEL,06/02/14,
800029039,ALLSTAR BUSINESS SOLUTIONS LTD,P2002288378,15,312.46,FUEL,06/02/14,
800029039,ALLSTAR BUSINESS SOLUTIONS LTD,P2002288378,16,310.28,FUEL,06/02/14,
800029039,ALLSTAR BUSINESS SOLUTIONS LTD,P2002288378,17,308.93,FUEL,06/02/14,
800029039,ALLSTAR BUSINESS SOLUTIONS LTD,P2002288378,18,299.18,FUEL,06/02/14,
800029039,ALLSTAR BUSINESS SOLUTIONS LTD,P2002288378,19,298.25,FUEL,06/02/14,
800029039,ALLSTAR BUSINESS SOLUTIONS LTD,P2002288378,20,270.35,FUEL,06/02/14,
800029039,ALLSTAR BUSINESS SOLUTIONS LTD,P2002288378,21,258.38,FUEL,06/02/14,
800029039,ALLSTAR BUSINESS SOLUTIONS LTD,P2002288378,22,252.11,FUEL,06/02/14,
800029039,ALLSTAR BUSINESS SOLUTIONS LTD,P2002288378,23,245.07,FUEL,06/02/14,
800029039,ALLSTAR BUSINESS SOLUTIONS LTD,P2002288378,24,242.34,FUEL,06/02/14,
800029039,ALLSTAR BUSINESS SOLUTIONS LTD,P2002288378,25,238.92,FUEL,06/02/14,
800029039,ALLSTAR BUSINESS SOLUTIONS LTD,P2002288378,26,232.62,FUEL,06/02/14,
800029039,ALLSTAR BUSINESS SOLUTIONS LTD,P2002288378,27,231.22,FUEL,06/02/14,
800029039,ALLSTAR BUSINESS SOLUTIONS LTD,P2002288378,28,223.68,FUEL,06/02/14,
800029039,ALLSTAR BUSINESS SOLUTIONS LTD,P2002288378,29,212.88,FUEL,06/02/14,
800029039,ALLSTAR BUSINESS SOLUTIONS LTD,P2002288378,30,212.26,FUEL,06/02/14,
800029039,ALLSTAR BUSINESS SOLUTIONS LTD,P2002288378,31,212.25,FUEL,06/02/14,
800029039,ALLSTAR BUSINESS SOLUTIONS LTD,P2002288378,32,206.78,FUEL,06/02/14,
800029039,ALLSTAR BUSINESS SOLUTIONS LTD,P2002288378,33,205.03,FUEL,06/02/14,
800029039,ALLSTAR BUSINESS SOLUTIONS LTD,P2002288378,34,203.21,FUEL,06/02/14,
800029039,ALLSTAR BUSINESS SOLUTIONS LTD,P2002288378,35,195.19,FUEL,06/02/14,
800029039,ALLSTAR BUSINESS SOLUTIONS LTD,P2002288378,36,190.80,FUEL,06/02/14,
800029039,ALLSTAR BUSINESS SOLUTIONS LTD,P2002288378,37,187.81,FUEL,06/02/14,
800029039,ALLSTAR BUSINESS SOLUTIONS LTD,P2002288378,38,187.09,FUEL,06/02/14,
800029039,ALLSTAR BUSINESS SOLUTIONS LTD,P2002288378,39,176.10,FUEL,06/02/14,
800029039,ALLSTAR BUSINESS SOLUTIONS LTD,P2002288378,40,167.29,FUEL,06/02/14,
800029039,ALLSTAR BUSINESS SOLUTIONS LTD,P2002288378,41,163.94,FUEL,06/02/14,
800029039,ALLSTAR BUSINESS SOLUTIONS LTD,P2002288378,42,163.57,FUEL,06/02/14,
800029039,ALLSTAR BUSINESS SOLUTIONS LTD,P2002288378,43,154.26,FUEL,06/02/14,
800029039,ALLSTAR BUSINESS SOLUTIONS LTD,P2002288378,44,154.21,FUEL,06/02/14,
800029039,ALLSTAR BUSINESS SOLUTIONS LTD,P2002288378,45,153.41,FUEL,06/02/14,
800029039,ALLSTAR BUSINESS SOLUTIONS LTD,P2002288378,46,152.10,FUEL,06/02/14,
800029039,ALLSTAR BUSINESS SOLUTIONS LTD,P2002288378,47,146.40,FUEL,06/02/14,
800029039,ALLSTAR BUSINESS SOLUTIONS LTD,P2002288378,48,143.17,FUEL,06/02/14,
800029039,ALLSTAR BUSINESS SOLUTIONS LTD,P2002288378,49,141.55,FUEL,06/02/14,
800029039,ALLSTAR BUSINESS SOLUTIONS LTD,P2002288378,50,139.51,FUEL,06/02/14,
800029039,ALLSTAR BUSINESS SOLUTIONS LTD,P2002288378,51,135.68,FUEL,06/02/14,
800029039,ALLSTAR BUSINESS SOLUTIONS LTD,P2002288378,52,135.38,FUEL,06/02/14,
800029039,ALLSTAR BUSINESS SOLUTIONS LTD,P2002288378,53,134.48,FUEL,06/02/14,
800029039,ALLSTAR BUSINESS SOLUTIONS LTD,P2002288378,54,129.47,FUEL,06/02/14,
800029039,ALLSTAR BUSINESS SOLUTIONS LTD,P2002288378,55,126.61,FUEL,06/02/14,
800029039,ALLSTAR BUSINESS SOLUTIONS LTD,P2002288378,56,124.41,FUEL,06/02/14,
800029039,ALLSTAR BUSINESS SOLUTIONS LTD,P2002288378,57,123.65,FUEL,06/02/14,
800029039,ALLSTAR BUSINESS SOLUTIONS LTD,P2002288378,58,122.02,FUEL,06/02/14,
800029039,ALLSTAR BUSINESS SOLUTIONS LTD,P2002288378,59,121.20,FUEL,06/02/14,
800029039,ALLSTAR BUSINESS SOLUTIONS LTD,P2002288378,60,120.34,FUEL,06/02/14,
800029039,ALLSTAR BUSINESS SOLUTIONS LTD,P2002288378,61,119.78,FUEL,06/02/14,
800029039,ALLSTAR BUSINESS SOLUTIONS LTD,P2002288378,62,119.68,FUEL,06/02/14,
800029039,ALLSTAR BUSINESS SOLUTIONS LTD,P2002288378,63,119.21,FUEL,06/02/14,
800029039,ALLSTAR BUSINESS SOLUTIONS LTD,P2002288378,64,117.88,FUEL,06/02/14,
800029039,ALLSTAR BUSINESS SOLUTIONS LTD,P2002288378,65,117.33,FUEL,06/02/14,
800029039,ALLSTAR BUSINESS SOLUTIONS LTD,P2002288378,66,116.29,FUEL,06/02/14,
800029039,ALLSTAR BUSINESS SOLUTIONS LTD,P2002288378,67,115.75,FUEL,06/02/14,
800029039,ALLSTAR BUSINESS SOLUTIONS LTD,P2002288378,68,115.22,FUEL,06/02/14,
800029039,ALLSTAR BUSINESS SOLUTIONS LTD,P2002288378,69,111.99,FUEL,06/02/14,
800029039,ALLSTAR BUSINESS SOLUTIONS LTD,P2002288378,70,107.50,FUEL,06/02/14,
800029039,ALLSTAR BUSINESS SOLUTIONS LTD,P2002288378,71,107.27,FUEL,06/02/14,
800029039,ALLSTAR BUSINESS SOLUTIONS LTD,P2002288378,72,105.19,FUEL,06/02/14,
800029039,ALLSTAR BUSINESS SOLUTIONS LTD,P2002288378,73,103.32,FUEL,06/02/14,
800029039,ALLSTAR BUSINESS SOLUTIONS LTD,P2002288378,74,102.38,FUEL,06/02/14,
800029039,ALLSTAR BUSINESS SOLUTIONS LTD,P2002288378,75,100.15,FUEL,06/02/14,
800029039,ALLSTAR BUSINESS SOLUTIONS LTD,P2002288378,76,99.84,FUEL,06/02/14,
800029039,ALLSTAR BUSINESS SOLUTIONS LTD,P2002288378,77,99.42,FUEL,06/02/14,
800029039,ALLSTAR BUSINESS SOLUTIONS LTD,P2002288378,78,98.29,FUEL,06/02/14,
800029039,ALLSTAR BUSINESS SOLUTIONS LTD,P2002288378,79,97.38,FUEL,06/02/14,
800029039,ALLSTAR BUSINESS SOLUTIONS LTD,P2002288378,80,91.46,FUEL,06/02/14,
800029039,ALLSTAR BUSINESS SOLUTIONS LTD,P2002288378,81,89.88,FUEL,06/02/14,
800029039,ALLSTAR BUSINESS SOLUTIONS LTD,P2002288378,82,89.26,FUEL,06/02/14,
800029039,ALLSTAR BUSINESS SOLUTIONS LTD,P2002288378,83,83.73,FUEL,06/02/14,
800029039,ALLSTAR BUSINESS SOLUTIONS LTD,P2002288378,84,82.45,FUEL,06/02/14,
800029039,ALLSTAR BUSINESS SOLUTIONS LTD,P2002288378,85,81.22,FUEL,06/02/14,
800029039,ALLSTAR BUSINESS SOLUTIONS LTD,P2002288378,86,80.41,FUEL,06/02/14,
800029039,ALLSTAR BUSINESS SOLUTIONS LTD,P2002288378,87,75.90,FUEL,06/02/14,
800029039,ALLSTAR BUSINESS SOLUTIONS LTD,P2002288378,88,75.23,FUEL,06/02/14,
800029039,ALLSTAR BUSINESS SOLUTIONS LTD,P2002288378,89,73.83,FUEL,06/02/14,
800029039,ALLSTAR BUSINESS SOLUTIONS LTD,P2002288378,90,73.36,FUEL,06/02/14,
800029039,ALLSTAR BUSINESS SOLUTIONS LTD,P2002288378,91,72.94,FUEL,06/02/14,
800029039,ALLSTAR BUSINESS SOLUTIONS LTD,P2002288378,92,71.38,FUEL,06/02/14,
800029039,ALLSTAR BUSINESS SOLUTIONS LTD,P2002288378,93,66.95,FUEL,06/02/14,
800029039,ALLSTAR BUSINESS SOLUTIONS LTD,P2002288378,94,62.57,FUEL,06/02/14,
800029039,ALLSTAR BUSINESS SOLUTIONS LTD,P2002288378,95,61.52,FUEL,06/02/14,
800029039,ALLSTAR BUSINESS SOLUTIONS LTD,P2002288378,96,61.39,FUEL,06/02/14,
800029039,ALLSTAR BUSINESS SOLUTIONS LTD,P2002288378,97,58.41,FUEL,06/02/14,
800029039,ALLSTAR BUSINESS SOLUTIONS LTD,P2002288378,98,56.21,FUEL,06/02/14,
800029039,ALLSTAR BUSINESS SOLUTIONS LTD,P2002288378,99,55.06,FUEL,06/02/14,
800029039,ALLSTAR BUSINESS SOLUTIONS LTD,P2002288378,100,51.88,FUEL,06/02/14,
800029039,ALLSTAR BUSINESS SOLUTIONS LTD,P2002288378,101,51.69,FUEL,06/02/14,
800029039,ALLSTAR BUSINESS SOLUTIONS LTD,P2002288378,102,45.13,FUEL,06/02/14,
800029039,ALLSTAR BUSINESS SOLUTIONS LTD,P2002288378,103,36.58,FUEL,06/02/14,
800029039,ALLSTAR BUSINESS SOLUTIONS LTD,P2002288378,104,34.99,FUEL,06/02/14,
800029039,ALLSTAR BUSINESS SOLUTIONS LTD,P2002288378,105,25.67,FUEL,06/02/14,
800029039,ALLSTAR BUSINESS SOLUTIONS LTD,P2002288378,106,16.43,FUEL,06/02/14,
800029039,ALLSTAR BUSINESS SOLUTIONS LTD,P2002288378,107,9.77,FUEL,06/02/14,
800029039,ALLSTAR BUSINESS SOLUTIONS LTD,P2002288378,108,9.48,FUEL,06/02/14,
310114G,PILLINGER CONTROLS LTD========,PI72194,1,"3,003.10",DAY TO DAY MINOR IMPS,06/02/14,"5,005.16"
310114G,PILLINGER CONTROLS LTD========,PI72194,2,"2,002.06",STRATEGIC (NON CYCLICAL),06/02/14,
030214C,BABCOCK TRAINING LTD,PTSI009889,1,"1,636.68",PROFESSIONAL DEVELOPMENT,06/02/14,"1,636.68"
240114F,MAYPLACE PROPERTY SERVICES LIM,SI 1025,1,"1,975.00",STRATEGIC (NON CYCLICAL),06/02/14,"2,917.64"
240114F,MAYPLACE PROPERTY SERVICES LIM,SI 1025,2,942.64,STRATEGIC (NON CYCLICAL),06/02/14,
220114C,HUNTER LODGE==================,SI-05426,1,625.00,ADVERTISING,06/02/14,625.00
230114C,SKYGUARD LTD,SI01130786,1,"1,870.00",GENERAL,06/02/14,"1,870.00"
310114G,LC ENERGY LTD,SIN001826,1,945.00,GAS,06/02/14,945.00
800028919,*THOMAS KNEALE & CO LTD,TK106093,1,5.35,CLOTHING,06/02/14,"1,409.20"
800028919,*THOMAS KNEALE & CO LTD,TK106093,2,53.98,OFFICE FURNITURE,06/02/14,
800028919,*THOMAS KNEALE & CO LTD,TK106093,3,10.89,CLOTHING,06/02/14,
800028919,*THOMAS KNEALE & CO LTD,TK106093,4,3.47,CLOTHING,06/02/14,
800028919,*THOMAS KNEALE & CO LTD,TK106093,5,10.89,CLOTHING,06/02/14,
800028919,*THOMAS KNEALE & CO LTD,TK106093,6,1.48,CLOTHING,06/02/14,
800028919,*THOMAS KNEALE & CO LTD,TK106093,7,10.89,CLOTHING,06/02/14,
800028919,*THOMAS KNEALE & CO LTD,TK106093,8,9.96,OFFICE FURNITURE,06/02/14,
800028919,*THOMAS KNEALE & CO LTD,TK106093,9,10.89,CLOTHING,06/02/14,
800028919,*THOMAS KNEALE & CO LTD,TK106093,10,0.99,CLOTHING,06/02/14,
800028919,*THOMAS KNEALE & CO LTD,TK106093,11,9.96,OFFICE FURNITURE,06/02/14,
800028919,*THOMAS KNEALE & CO LTD,TK106093,12,6.94,CLOTHING,06/02/14,
800028919,*THOMAS KNEALE & CO LTD,TK106093,13,6.94,CLOTHING,06/02/14,
800028919,*THOMAS KNEALE & CO LTD,TK106093,14,2.96,CLOTHING,06/02/14,
800028919,*THOMAS KNEALE & CO LTD,TK106093,15,6.94,CLOTHING,06/02/14,
800028919,*THOMAS KNEALE & CO LTD,TK106093,16,2.96,CLOTHING,06/02/14,
800028919,*THOMAS KNEALE & CO LTD,TK106093,17,6.94,CLOTHING,06/02/14,
800028919,*THOMAS KNEALE & CO LTD,TK106093,18,2.96,CLOTHING,06/02/14,
800028919,*THOMAS KNEALE & CO LTD,TK106093,19,135.90,OFFICE FURNITURE,06/02/14,
800028919,*THOMAS KNEALE & CO LTD,TK106093,20,10.89,CLOTHING,06/02/14,
800028919,*THOMAS KNEALE & CO LTD,TK106093,21,3.47,CLOTHING,06/02/14,
800028919,*THOMAS KNEALE & CO LTD,TK106093,22,1.48,CLOTHING,06/02/14,
800028919,*THOMAS KNEALE & CO LTD,TK106093,23,2.85,OFFICE FURNITURE,06/02/14,
800028919,*THOMAS KNEALE & CO LTD,TK106093,24,0.99,CLOTHING,06/02/14,
800028919,*THOMAS KNEALE & CO LTD,TK106093,25,6.94,CLOTHING,06/02/14,
800028919,*THOMAS KNEALE & CO LTD,TK106093,26,5.92,CLOTHING,06/02/14,
800028919,*THOMAS KNEALE & CO LTD,TK106093,27,107.96,OFFICE FURNITURE,06/02/14,
800028919,*THOMAS KNEALE & CO LTD,TK106093,28,0.99,CLOTHING,06/02/14,
800028919,*THOMAS KNEALE & CO LTD,TK106093,29,10.89,CLOTHING,06/02/14,
800028919,*THOMAS KNEALE & CO LTD,TK106093,30,0.99,CLOTHING,06/02/14,
800028919,*THOMAS KNEALE & CO LTD,TK106093,31,10.89,CLOTHING,06/02/14,
800028919,*THOMAS KNEALE & CO LTD,TK106093,32,10.89,CLOTHING,06/02/14,
800028919,*THOMAS KNEALE & CO LTD,TK106093,33,0.99,CLOTHING,06/02/14,
800028919,*THOMAS KNEALE & CO LTD,TK106093,34,6.94,CLOTHING,06/02/14,
800028919,*THOMAS KNEALE & CO LTD,TK106093,35,10.89,CLOTHING,06/02/14,
800028919,*THOMAS KNEALE & CO LTD,TK106093,36,10.89,CLOTHING,06/02/14,
800028919,*THOMAS KNEALE & CO LTD,TK106093,37,10.89,CLOTHING,06/02/14,
800028919,*THOMAS KNEALE & CO LTD,TK106093,38,3.47,CLOTHING,06/02/14,
800028919,*THOMAS KNEALE & CO LTD,TK106093,39,1.48,CLOTHING,06/02/14,
800028919,*THOMAS KNEALE & CO LTD,TK106093,40,10.89,CLOTHING,06/02/14,
800028919,*THOMAS KNEALE & CO LTD,TK106093,41,10.89,CLOTHING,06/02/14,
800028919,*THOMAS KNEALE & CO LTD,TK106093,42,0.99,CLOTHING,06/02/14,
800028919,*THOMAS KNEALE & CO LTD,TK106093,43,3.47,CLOTHING,06/02/14,
800028919,*THOMAS KNEALE & CO LTD,TK106093,44,1.48,CLOTHING,06/02/14,
800028919,*THOMAS KNEALE & CO LTD,TK106093,45,10.89,CLOTHING,06/02/14,
800028919,*THOMAS KNEALE & CO LTD,TK106093,46,6.94,CLOTHING,06/02/14,
800028919,*THOMAS KNEALE & CO LTD,TK106093,47,2.96,CLOTHING,06/02/14,
800028919,*THOMAS KNEALE & CO LTD,TK106093,48,10.89,CLOTHING,06/02/14,
800028919,*THOMAS KNEALE & CO LTD,TK106093,49,3.47,CLOTHING,06/02/14,
800028919,*THOMAS KNEALE & CO LTD,TK106093,50,1.48,CLOTHING,06/02/14,
800028919,*THOMAS KNEALE & CO LTD,TK106093,51,10.89,CLOTHING,06/02/14,
800028919,*THOMAS KNEALE & CO LTD,TK106093,52,1.48,CLOTHING,06/02/14,
800028919,*THOMAS KNEALE & CO LTD,TK106093,53,3.47,CLOTHING,06/02/14,
800028919,*THOMAS KNEALE & CO LTD,TK106093,54,1.48,CLOTHING,06/02/14,
800028919,*THOMAS KNEALE & CO LTD,TK106093,55,10.89,CLOTHING,06/02/14,
800028919,*THOMAS KNEALE & CO LTD,TK106093,56,2.59,OFFICE FURNITURE,06/02/14,
800028919,*THOMAS KNEALE & CO LTD,TK106093,57,6.94,CLOTHING,06/02/14,
800028919,*THOMAS KNEALE & CO LTD,TK106093,58,0.99,CLOTHING,06/02/14,
800028919,*THOMAS KNEALE & CO LTD,TK106093,59,53.98,OFFICE FURNITURE,06/02/14,
800028919,*THOMAS KNEALE & CO LTD,TK106093,60,10.89,CLOTHING,06/02/14,
800028919,*THOMAS KNEALE & CO LTD,TK106093,61,10.89,CLOTHING,06/02/14,
800028919,*THOMAS KNEALE & CO LTD,TK106093,62,3.47,CLOTHING,06/02/14,
800028919,*THOMAS KNEALE & CO LTD,TK106093,63,1.48,CLOTHING,06/02/14,
800028919,*THOMAS KNEALE & CO LTD,TK106093,64,6.94,CLOTHING,06/02/14,
800028919,*THOMAS KNEALE & CO LTD,TK106093,65,2.96,CLOTHING,06/02/14,
800028919,*THOMAS KNEALE & CO LTD,TK106093,66,6.94,CLOTHING,06/02/14,
800028919,*THOMAS KNEALE & CO LTD,TK106093,67,2.96,CLOTHING,06/02/14,
800028919,*THOMAS KNEALE & CO LTD,TK106093,68,2.96,CLOTHING,06/02/14,
800028919,*THOMAS KNEALE & CO LTD,TK106093,69,6.94,CLOTHING,06/02/14,
800028919,*THOMAS KNEALE & CO LTD,TK106093,70,10.89,CLOTHING,06/02/14,
800028919,*THOMAS KNEALE & CO LTD,TK106093,71,3.47,CLOTHING,06/02/14,
800028919,*THOMAS KNEALE & CO LTD,TK106093,72,1.48,CLOTHING,06/02/14,
800028919,*THOMAS KNEALE & CO LTD,TK106093,73,10.89,CLOTHING,06/02/14,
800028919,*THOMAS KNEALE & CO LTD,TK106093,74,3.47,CLOTHING,06/02/14,
800028919,*THOMAS KNEALE & CO LTD,TK106093,75,1.48,CLOTHING,06/02/14,
800028919,*THOMAS KNEALE & CO LTD,TK106093,76,5.35,CLOTHING,06/02/14,
800028919,*THOMAS KNEALE & CO LTD,TK106093,77,161.94,OFFICE FURNITURE,06/02/14,
800028919,*THOMAS KNEALE & CO LTD,TK106093,78,10.89,CLOTHING,06/02/14,
800028919,*THOMAS KNEALE & CO LTD,TK106093,79,2.96,CLOTHING,06/02/14,
800028919,*THOMAS KNEALE & CO LTD,TK106093,80,10.89,CLOTHING,06/02/14,
800028919,*THOMAS KNEALE & CO LTD,TK106093,81,0.99,CLOTHING,06/02/14,
800028919,*THOMAS KNEALE & CO LTD,TK106093,82,6.94,CLOTHING,06/02/14,
800028919,*THOMAS KNEALE & CO LTD,TK106093,83,10.89,CLOTHING,06/02/14,
800028919,*THOMAS KNEALE & CO LTD,TK106093,84,6.94,CLOTHING,06/02/14,
800028919,*THOMAS KNEALE & CO LTD,TK106093,85,2.96,CLOTHING,06/02/14,
800028919,*THOMAS KNEALE & CO LTD,TK106093,86,10.89,CLOTHING,06/02/14,
800028919,*THOMAS KNEALE & CO LTD,TK106093,87,1.48,CLOTHING,06/02/14,
800028919,*THOMAS KNEALE & CO LTD,TK106093,88,3.47,CLOTHING,06/02/14,
800028919,*THOMAS KNEALE & CO LTD,TK106093,89,21.78,CLOTHING,06/02/14,
800028919,*THOMAS KNEALE & CO LTD,TK106093,90,1.48,CLOTHING,06/02/14,
800028919,*THOMAS KNEALE & CO LTD,TK106093,91,3.47,CLOTHING,06/02/14,
800028919,*THOMAS KNEALE & CO LTD,TK106093,92,1.48,CLOTHING,06/02/14,
800028919,*THOMAS KNEALE & CO LTD,TK106093,93,3.47,CLOTHING,06/02/14,
800028919,*THOMAS KNEALE & CO LTD,TK106093,94,10.89,CLOTHING,06/02/14,
800028919,*THOMAS KNEALE & CO LTD,TK106093,95,0.99,CLOTHING,06/02/14,
800028919,*THOMAS KNEALE & CO LTD,TK106093,96,2.96,CLOTHING,06/02/14,
800028919,*THOMAS KNEALE & CO LTD,TK106093,97,6.94,CLOTHING,06/02/14,
800028919,*THOMAS KNEALE & CO LTD,TK106093,98,3.47,CLOTHING,06/02/14,
800028919,*THOMAS KNEALE & CO LTD,TK106093,99,10.89,CLOTHING,06/02/14,
800028919,*THOMAS KNEALE & CO LTD,TK106093,100,10.89,CLOTHING,06/02/14,
800028919,*THOMAS KNEALE & CO LTD,TK106093,101,10.89,CLOTHING,06/02/14,
800028919,*THOMAS KNEALE & CO LTD,TK106093,102,3.47,CLOTHING,06/02/14,
800028919,*THOMAS KNEALE & CO LTD,TK106093,103,1.48,CLOTHING,06/02/14,
800028919,*THOMAS KNEALE & CO LTD,TK106093,104,10.89,CLOTHING,06/02/14,
800028919,*THOMAS KNEALE & CO LTD,TK106093,105,6.94,CLOTHING,06/02/14,
800028919,*THOMAS KNEALE & CO LTD,TK106093,106,3.47,CLOTHING,06/02/14,
800028919,*THOMAS KNEALE & CO LTD,TK106093,107,1.48,CLOTHING,06/02/14,
800028919,*THOMAS KNEALE & CO LTD,TK106093,108,10.89,CLOTHING,06/02/14,
800028919,*THOMAS KNEALE & CO LTD,TK106093,109,10.89,CLOTHING,06/02/14,
800028919,*THOMAS KNEALE & CO LTD,TK106093,110,0.99,CLOTHING,06/02/14,
800028919,*THOMAS KNEALE & CO LTD,TK106093,111,10.89,CLOTHING,06/02/14,
800028919,*THOMAS KNEALE & CO LTD,TK106093,112,6.94,CLOTHING,06/02/14,
800028919,*THOMAS KNEALE & CO LTD,TK106093,113,2.96,CLOTHING,06/02/14,
800028919,*THOMAS KNEALE & CO LTD,TK106093,114,10.89,CLOTHING,06/02/14,
800028919,*THOMAS KNEALE & CO LTD,TK106093,115,6.94,CLOTHING,06/02/14,
800028919,*THOMAS KNEALE & CO LTD,TK106093,116,10.89,CLOTHING,06/02/14,
800028919,*THOMAS KNEALE & CO LTD,TK106093,117,10.89,CLOTHING,06/02/14,
800028919,*THOMAS KNEALE & CO LTD,TK106093,118,0.99,CLOTHING,06/02/14,
800028919,*THOMAS KNEALE & CO LTD,TK106093,119,1.48,CLOTHING,06/02/14,
800028919,*THOMAS KNEALE & CO LTD,TK106093,120,3.47,CLOTHING,06/02/14,
800028919,*THOMAS KNEALE & CO LTD,TK106093,121,10.89,CLOTHING,06/02/14,
800028919,*THOMAS KNEALE & CO LTD,TK106093,122,10.89,CLOTHING,06/02/14,
800028919,*THOMAS KNEALE & CO LTD,TK106093,123,10.89,CLOTHING,06/02/14,
800028919,*THOMAS KNEALE & CO LTD,TK106093,124,10.89,CLOTHING,06/02/14,
800028919,*THOMAS KNEALE & CO LTD,TK106093,125,10.89,CLOTHING,06/02/14,
800028919,*THOMAS KNEALE & CO LTD,TK106093,126,10.89,CLOTHING,06/02/14,
800028919,*THOMAS KNEALE & CO LTD,TK106093,127,10.89,CLOTHING,06/02/14,
800028919,*THOMAS KNEALE & CO LTD,TK106093,128,0.99,CLOTHING,06/02/14,
800028919,*THOMAS KNEALE & CO LTD,TK106093,129,21.78,CLOTHING,06/02/14,
800028919,*THOMAS KNEALE & CO LTD,TK106093,130,1.98,CLOTHING,06/02/14,
800028919,*THOMAS KNEALE & CO LTD,TK106093,131,10.89,CLOTHING,06/02/14,
800028919,*THOMAS KNEALE & CO LTD,TK106093,132,2.96,CLOTHING,06/02/14,
800028919,*THOMAS KNEALE & CO LTD,TK106093,133,10.89,CLOTHING,06/02/14,
800028919,*THOMAS KNEALE & CO LTD,TK106093,134,3.47,CLOTHING,06/02/14,
800028919,*THOMAS KNEALE & CO LTD,TK106093,135,1.48,CLOTHING,06/02/14,
800028919,*THOMAS KNEALE & CO LTD,TK106093,136,10.89,CLOTHING,06/02/14,
800028919,*THOMAS KNEALE & CO LTD,TK106093,137,3.47,CLOTHING,06/02/14,
800028919,*THOMAS KNEALE & CO LTD,TK106093,138,53.98,OFFICE FURNITURE,06/02/14,
310114F,TRAX UK LTD===================,TRXS4558,1,490.00,MAINTENANCE & SUPPORT,06/02/14,"1,075.00"
310114F,TRAX UK LTD===================,TRXS4558,2,585.00,MAINTENANCE & SUPPORT,06/02/14,
800028594,*XMA LTD,U732923,1,410.00,OPERATIONAL EQUIP-PURCHASE,06/02/14,410.00
300114G,ARVAL UK LTD,VS0001024162,1,745.92,CONTRACT HIRE,06/02/14,745.92
030214C,ARVAL UK LTD,VS0001024163,1,569.73,CONTRACT HIRE,06/02/14,569.73
902374,BANK OF SCOTLAND,593.485.01.108000/0214,1,"229,381.86",VEHICLES,07/02/14,"229,381.86"
050214E,ENTEL UK LTD==================,0000135157,1,489.00,RADIO,10/02/14,843.79
050214E,ENTEL UK LTD==================,0000135157,2,58.59,RADIO,10/02/14,
050214E,ENTEL UK LTD==================,0000135157,3,33.70,RADIO,10/02/14,
050214E,ENTEL UK LTD==================,0000135157,4,262.50,RADIO,10/02/14,
050214G,NORTHERN DIVER (INTERNATIONAL),0000146189,1,140.00,OPERATIONAL EQUIP-PURCHASE,10/02/14,397.50
050214G,NORTHERN DIVER (INTERNATIONAL),0000146189,2,50.00,OPERATIONAL EQUIP-PURCHASE,10/02/14,
050214G,NORTHERN DIVER (INTERNATIONAL),0000146189,3,50.00,OPERATIONAL EQUIP-PURCHASE,10/02/14,
050214G,NORTHERN DIVER (INTERNATIONAL),0000146189,4,150.00,OPERATIONAL EQUIP-PURCHASE,10/02/14,
050214G,NORTHERN DIVER (INTERNATIONAL),0000146189,5,7.50,OPERATIONAL EQUIP-PURCHASE,10/02/14,
290114G,HAYS ACCOUNTANCY & FINANCE====,1003961808,1,696.00,FRS STAFF AGENCY,10/02/14,696.00
050214G,SPECTRUM======================,1020,1,390.00,SPECIALIST EQUIPMENT,10/02/14,390.00
050214E,*SPRUE SAFETY PRODUCTS LTD====,1055331,1,"1,112.40",FIRE DETECTORS,10/02/14,"1,112.40"
050214E,*SPRUE SAFETY PRODUCTS LTD====,1055363,1,"2,224.80",FIRE DETECTORS,10/02/14,"2,224.80"
050214G,*SPRUE SAFETY PRODUCTS LTD====,1056125,1,"2,719.20",FIRE DETECTORS,10/02/14,"2,719.20"
030214C,*SPRUE SAFETY PRODUCTS LTD====,1056752,1,"3,708.00",FIRE DETECTORS,10/02/14,"3,708.00"
800020132,*JAMES HUNTER (OUTFITTERS) LTD,107012,1,303.41,CLOTHING,10/02/14,303.41
800028670,*JAMES HUNTER (OUTFITTERS) LTD,107437,1,282.83,CLOTHING,10/02/14,352.24
800028670,*JAMES HUNTER (OUTFITTERS) LTD,107437,2,69.41,CLOTHING,10/02/14,
800028677,*JAMES HUNTER (OUTFITTERS) LTD,107444,1,231.56,CLOTHING,10/02/14,293.35
800028677,*JAMES HUNTER (OUTFITTERS) LTD,107444,2,61.79,CLOTHING,10/02/14,
800028678,*JAMES HUNTER (OUTFITTERS) LTD,107445,1,282.83,CLOTHING,10/02/14,428.57
800028678,*JAMES HUNTER (OUTFITTERS) LTD,107445,2,145.74,CLOTHING,10/02/14,
050214C,DIAMOND BUILD PLC=============,13527,1,"30,744.37",DEVELOPMENT  EXPENSES-CONTRACT,10/02/14,"30,744.37"
050214C,CITYFLEET NETWORKS LTD,136514,1,863.33,PUBLIC TRANSPORT,10/02/14,863.33
800029264,PRIMEPEACE LTD================,140101,1,"9,600.00",MAINTENANCE & SUPPORT,10/02/14,"10,750.00"
800029264,PRIMEPEACE LTD================,140101,2,450.00,MAINTENANCE & SUPPORT,10/02/14,
800029264,PRIMEPEACE LTD================,140101,3,700.00,MAINTENANCE & SUPPORT,10/02/14,
050214E,VIGILANCE PROPERTIES,1817,1,"3,497.26",PREMISES SECURITY,10/02/14,"3,497.26"
050214E,VIGILANCE PROPERTIES,1818,1,"3,497.26",PREMISES SECURITY,10/02/14,"3,497.26"
050214E,VIGILANCE PROPERTIES,1819,1,"3,497.26",PREMISES SECURITY,10/02/14,"3,497.26"
050214E,VIGILANCE PROPERTIES,1820,1,"3,497.26",PREMISES SECURITY,10/02/14,"3,497.26"
050214E,VIGILANCE PROPERTIES,1821,1,"5,245.89",PREMISES SECURITY,10/02/14,"5,245.89"
050214E,VIGILANCE PROPERTIES,1822,1,"3,497.26",PREMISES SECURITY,10/02/14,"3,497.26"
050214E,VIGILANCE PROPERTIES,1823,1,"3,497.26",PREMISES SECURITY,10/02/14,"3,497.26"
050214E,VIGILANCE PROPERTIES,1824,1,"3,497.26",PREMISES SECURITY,10/02/14,"3,497.26"
050214E,VIGILANCE PROPERTIES,1825,1,"3,497.26",PREMISES SECURITY,10/02/14,"3,497.26"
050214E,VIGILANCE PROPERTIES,1826,1,"3,497.26",PREMISES SECURITY,10/02/14,"3,497.26"
040214F,ENERGY AUDITING AGENCY LTD====,20141052,1,163.00,PROFESSIONAL SERVICES,10/02/14,"5,053.00"
040214F,ENERGY AUDITING AGENCY LTD====,20141052,2,163.00,PROFESSIONAL SERVICES,10/02/14,
040214F,ENERGY AUDITING AGENCY LTD====,20141052,3,163.00,PROFESSIONAL SERVICES,10/02/14,
040214F,ENERGY AUDITING AGENCY LTD====,20141052,4,163.00,PROFESSIONAL SERVICES,10/02/14,
040214F,ENERGY AUDITING AGENCY LTD====,20141052,5,163.00,PROFESSIONAL SERVICES,10/02/14,
040214F,ENERGY AUDITING AGENCY LTD====,20141052,6,163.00,PROFESSIONAL SERVICES,10/02/14,
040214F,ENERGY AUDITING AGENCY LTD====,20141052,7,163.00,PROFESSIONAL SERVICES,10/02/14,
040214F,ENERGY AUDITING AGENCY LTD====,20141052,8,163.00,PROFESSIONAL SERVICES,10/02/14,
040214F,ENERGY AUDITING AGENCY LTD====,20141052,9,163.00,PROFESSIONAL SERVICES,10/02/14,
040214F,ENERGY AUDITING AGENCY LTD====,20141052,10,163.00,PROFESSIONAL SERVICES,10/02/14,
040214F,ENERGY AUDITING AGENCY LTD====,20141052,11,163.00,PROFESSIONAL SERVICES,10/02/14,
040214F,ENERGY AUDITING AGENCY LTD====,20141052,12,163.00,PROFESSIONAL SERVICES,10/02/14,
040214F,ENERGY AUDITING AGENCY LTD====,20141052,13,163.00,PROFESSIONAL SERVICES,10/02/14,
040214F,ENERGY AUDITING AGENCY LTD====,20141052,14,163.00,PROFESSIONAL SERVICES,10/02/14,
040214F,ENERGY AUDITING AGENCY LTD====,20141052,15,163.00,PROFESSIONAL SERVICES,10/02/14,
040214F,ENERGY AUDITING AGENCY LTD====,20141052,16,163.00,PROFESSIONAL SERVICES,10/02/14,
040214F,ENERGY AUDITING AGENCY LTD====,20141052,17,163.00,PROFESSIONAL SERVICES,10/02/14,
040214F,ENERGY AUDITING AGENCY LTD====,20141052,18,163.00,PROFESSIONAL SERVICES,10/02/14,
040214F,ENERGY AUDITING AGENCY LTD====,20141052,19,163.00,PROFESSIONAL SERVICES,10/02/14,
040214F,ENERGY AUDITING AGENCY LTD====,20141052,20,163.00,PROFESSIONAL SERVICES,10/02/14,
040214F,ENERGY AUDITING AGENCY LTD====,20141052,21,163.00,PROFESSIONAL SERVICES,10/02/14,
040214F,ENERGY AUDITING AGENCY LTD====,20141052,22,163.00,PROFESSIONAL SERVICES,10/02/14,
040214F,ENERGY AUDITING AGENCY LTD====,20141052,23,163.00,PROFESSIONAL SERVICES,10/02/14,
040214F,ENERGY AUDITING AGENCY LTD====,20141052,24,163.00,PROFESSIONAL SERVICES,10/02/14,
040214F,ENERGY AUDITING AGENCY LTD====,20141052,25,163.00,PROFESSIONAL SERVICES,10/02/14,
040214F,ENERGY AUDITING AGENCY LTD====,20141052,26,163.00,PROFESSIONAL SERVICES,10/02/14,
040214F,ENERGY AUDITING AGENCY LTD====,20141052,27,163.00,PROFESSIONAL SERVICES,10/02/14,
040214F,ENERGY AUDITING AGENCY LTD====,20141052,28,163.00,PROFESSIONAL SERVICES,10/02/14,
040214F,ENERGY AUDITING AGENCY LTD====,20141052,29,163.00,PROFESSIONAL SERVICES,10/02/14,
040214F,ENERGY AUDITING AGENCY LTD====,20141052,30,163.00,PROFESSIONAL SERVICES,10/02/14,
040214F,ENERGY AUDITING AGENCY LTD====,20141052,31,163.00,PROFESSIONAL SERVICES,10/02/14,
050214E,CODEGATE LIMITED==============,204898,1,"1,035.00",REPAIR & MAINTENANCE,10/02/14,"2,060.71"
050214E,CODEGATE LIMITED==============,204898,2,10.00,REPAIR & MAINTENANCE,10/02/14,
050214E,CODEGATE LIMITED==============,204898,3,"1,015.71",REPAIR & MAINTENANCE,10/02/14,
050214C,B NOKES CONTRACTS LTD,2056,1,535.00,REMOVALS,10/02/14,535.00
050214C,B NOKES CONTRACTS LTD,2057,1,707.50,REMOVALS,10/02/14,707.50
050214C,B NOKES CONTRACTS LTD,2059,1,420.00,REMOVALS,10/02/14,420.00
050214C,B NOKES CONTRACTS LTD,2065,1,"6,664.50",STRATEGIC (NON CYCLICAL),10/02/14,"6,664.50"
800029266,*OCS GROUP UK LTD,219100-74,1,297.50,REFRESHMENTS,10/02/14,297.50
050214E,ARKAS LIMITED=================,24855,1,521.00,STRATEGIC (NON CYCLICAL),10/02/14,521.00
050214E,ERITH CONTRACTORS LTD========,25192,1,"16,997.00",DEVELOPMENT  EXPENSES-CONTRACT,10/02/14,"49,017.00"
050214E,ERITH CONTRACTORS LTD========,25192,2,"32,020.00",DEVELOPMENT  EXPENSES-CONTRACT,10/02/14,
800028839,ADECCO UK LIMITED=============,26674922,1,711.96,FRS STAFF AGENCY,10/02/14,711.96
800028854,ADECCO UK LIMITED=============,26674937,1,269.62,FRS STAFF AGENCY,10/02/14,269.62
050214C,MACE LIMITED,26915/0913093,1,"2,660.78",PROF FEES-MISCELLANEOUS,10/02/14,"2,660.78"
050214E,LONDON BOROUGH OF LAMBETH,30051140,1,"31,234.00",PROF FEES-MISCELLANEOUS,10/02/14,"31,234.00"
050214G,BRISTOL UNIFORMS LTD==========,3104837,1,169.44,CLOTHING,10/02/14,601.80
050214G,BRISTOL UNIFORMS LTD==========,3104837,2,131.46,CLOTHING,10/02/14,
050214G,BRISTOL UNIFORMS LTD==========,3104837,3,169.44,CLOTHING,10/02/14,
050214G,BRISTOL UNIFORMS LTD==========,3104837,4,131.46,CLOTHING,10/02/14,
050214E,EXPRESS VENDING LIMITED=======,349356,1,461.12,CATERING EQUIPMENT,10/02/14,461.12
280114E,COMPUTACENTRE================,3880009917,1,386.68,MAINTENANCE & SUPPORT,10/02/14,386.68
280114E,HEET LTD======================,647,1,375.00,COMMUNITY RELATIONS,10/02/14,375.00
050214E,SWEETT  UK LTD,7027828,1,836.36,PROF FEES-MISCELLANEOUS,10/02/14,836.36
140549,MS HEATHER EMMERSON,86273 H EMMERSON,1,"26,330.00",PROFESSIONAL FEES GENERAL,10/02/14,"26,330.00"
030214C,DRAEGER SAFETY UK LIMITED=====,90435806,1,111.10,PROTECTIVE EQUIPT - PARTS,10/02/14,987.10
030214C,DRAEGER SAFETY UK LIMITED=====,90435806,2,876.00,PROTECTIVE EQUIPT - PARTS,10/02/14,
030214C,DRAEGER SAFETY UK LIMITED=====,90435857,1,351.00,REPAIR & MAINTENANCE,10/02/14,358.00
030214C,DRAEGER SAFETY UK LIMITED=====,90435857,2,7.00,REPAIR & MAINTENANCE,10/02/14,
030214C,DRAEGER SAFETY UK LIMITED=====,90435880,1,425.55,PROTECTIVE EQUIPT - PARTS,10/02/14,425.55
030214C,DRAEGER SAFETY UK LIMITED=====,90435881,1,"1,021.32",PROTECTIVE EQUIPT - PARTS,10/02/14,"1,021.32"
030214C,DRAEGER SAFETY UK LIMITED=====,90435919,1,356.50,PROTECTIVE EQUIPT - PARTS,10/02/14,356.50
050214E,FIRE SERVICE COLLEGE LTD======,93411717,1,392.00,PROFESSIONAL DEVELOPMENT,10/02/14,392.00
050214C,PITMAN TRAINING CENTRE========,CITYC118862,1,325.00,PROFESSIONAL DEVELOPMENT,10/02/14,325.00
050214C,KIER BUILDING SERV ENGINEERS==,F00047035,1,"9,877.73",STRATEGIC (CYCLICAL),10/02/14,"9,877.73"
050214C,KIER BUILDING SERV ENGINEERS==,F00047043,1,"2,556.99",STRATEGIC (NON CYCLICAL),10/02/14,"2,556.99"
270114C,KIER BUILDING SERV ENGINEERS==,F00047066,1,"2,891.85",STRATEGIC (NON CYCLICAL),10/02/14,"3,928.80"
270114C,KIER BUILDING SERV ENGINEERS==,F00047066,2,"1,036.95",STRATEGIC (NON CYCLICAL),10/02/14,
050214C,COFELY WORKPLACE LIMITED,M126192,1,330.50,STRATEGIC (NON CYCLICAL),10/02/14,330.50
050214C,COFELY WORKPLACE LIMITED,M126333,1,"1,743.85",STRATEGIC (NON CYCLICAL),10/02/14,"1,743.85"
100214C,ORBISON PRODUCTS LTD==========,104727,1,"4,119.00",RADIO,13/02/14,"4,119.00"
060214C,*SPRUE SAFETY PRODUCTS LTD====,1055324,1,"1,112.40",FIRE DETECTORS,13/02/14,"1,112.40"
110214E,*SPRUE SAFETY PRODUCTS LTD====,1055360,1,741.60,FIRE DETECTORS,13/02/14,741.60
070214G,*SPRUE SAFETY PRODUCTS LTD====,1055890,1,"2,200.00",FIRE DETECTORS,13/02/14,"6,600.00"
070214G,*SPRUE SAFETY PRODUCTS LTD====,1055890,2,"2,200.00",FIRE DETECTORS,13/02/14,
070214G,*SPRUE SAFETY PRODUCTS LTD====,1055890,3,"2,200.00",FIRE DETECTORS,13/02/14,
800029367,*JAMES HUNTER (OUTFITTERS) LTD,107419,1,257.10,UNIFORMS - POMS,13/02/14,"11,826.60"
800029367,*JAMES HUNTER (OUTFITTERS) LTD,107419,2,"1,028.40",UNIFORMS - POMS,13/02/14,
800029367,*JAMES HUNTER (OUTFITTERS) LTD,107419,3,514.20,UNIFORMS - POMS,13/02/14,
800029367,*JAMES HUNTER (OUTFITTERS) LTD,107419,4,771.30,UNIFORMS - POMS,13/02/14,
800029367,*JAMES HUNTER (OUTFITTERS) LTD,107419,5,"3,856.50",UNIFORMS - POMS,13/02/14,
800029367,*JAMES HUNTER (OUTFITTERS) LTD,107419,6,771.30,UNIFORMS - POMS,13/02/14,
800029367,*JAMES HUNTER (OUTFITTERS) LTD,107419,7,"3,856.50",UNIFORMS - POMS,13/02/14,
800029367,*JAMES HUNTER (OUTFITTERS) LTD,107419,8,514.20,UNIFORMS - POMS,13/02/14,
800029367,*JAMES HUNTER (OUTFITTERS) LTD,107419,9,257.10,UNIFORMS - POMS,13/02/14,
300114F,REAM CONTRACTS LTD============,10861,1,"8,981.00",STRATEGIC (NON CYCLICAL),13/02/14,"9,680.00"
300114F,REAM CONTRACTS LTD============,10861,2,699.00,STRATEGIC (NON CYCLICAL),13/02/14,
100214C,MARTIN LAVELL LTD=============,1241400,1,369.80,BOOKS & JOURNALS,13/02/14,369.80
140551,AFFINITY WATER,13273831T,1,653.99,WATER & SEWERAGE RATES,13/02/14,653.99
070214C,PA ASSOCIATES (UK) LTD========,14003,1,"1,105.00",CONSULTANTS,13/02/14,"1,105.00"
100214C,LAERDAL MEDICAL LIMITED=======,14103443,1,"1,318.00",ACQUISITIONS,13/02/14,"1,323.25"
100214C,LAERDAL MEDICAL LIMITED=======,14103443,2,5.25,ACQUISITIONS,13/02/14,
100214C,SCOT GROUP LTD,161113,1,273.25,WINDSCREEN & TYRE CHARGES,13/02/14,273.25
140552,EDF ENERGY===================,1785676845,1,"1,159.46",ELECTRICITY,13/02/14,"1,159.46"
140552,EDF ENERGY===================,1785907940,1,"3,110.13",ELECTRICITY,13/02/14,"3,110.13"
140551,EDF ENERGY===================,1786209541,1,"8,502.43",ELECTRICITY,13/02/14,"8,502.43"
140551,EDF ENERGY===================,1786484441,1,233.02,ELECTRICITY,13/02/14,"4,660.35"
140551,EDF ENERGY===================,1786484441,2,"4,427.33",ELECTRICITY,13/02/14,
140551,EDF ENERGY===================,1793376238,1,"10,426.58",ELECTRICITY,13/02/14,"10,426.58"
140551,EDF ENERGY===================,1813823631,1,"17,349.18",ELECTRICITY,13/02/14,"17,349.18"
100214C,GRADIENT CONSULTANTS LLP======,1970,1,348.02,ASBESTOS,13/02/14,"3,184.27"
100214C,GRADIENT CONSULTANTS LLP======,1970,2,348.02,ASBESTOS,13/02/14,
100214C,GRADIENT CONSULTANTS LLP======,1970,3,348.02,ASBESTOS,13/02/14,
100214C,GRADIENT CONSULTANTS LLP======,1970,4,348.02,ASBESTOS,13/02/14,
100214C,GRADIENT CONSULTANTS LLP======,1970,5,348.02,ASBESTOS,13/02/14,
100214C,GRADIENT CONSULTANTS LLP======,1970,6,348.02,ASBESTOS,13/02/14,
100214C,GRADIENT CONSULTANTS LLP======,1970,7,348.02,ASBESTOS,13/02/14,
100214C,GRADIENT CONSULTANTS LLP======,1970,8,348.02,ASBESTOS,13/02/14,
100214C,GRADIENT CONSULTANTS LLP======,1970,9,348.02,ASBESTOS,13/02/14,
100214C,GRADIENT CONSULTANTS LLP======,1970,10,52.09,ASBESTOS,13/02/14,
050214C,B NOKES CONTRACTS LTD,2052,1,"2,300.00",FIXTURES & FITTINGS,13/02/14,"2,300.00"
060214C,B NOKES CONTRACTS LTD,2054,1,"6,861.00",STRATEGIC (NON CYCLICAL),13/02/14,"6,861.00"
060214C,B NOKES CONTRACTS LTD,2061,1,"2,194.25",STRATEGIC (NON CYCLICAL),13/02/14,"2,194.25"
060214C,B NOKES CONTRACTS LTD,2062,1,"5,020.00",STRATEGIC (NON CYCLICAL),13/02/14,"5,020.00"
060214C,B NOKES CONTRACTS LTD,2063,1,"5,514.50",STRATEGIC (NON CYCLICAL),13/02/14,"5,514.50"
060214C,B NOKES CONTRACTS LTD,2064,1,978.00,STRATEGIC (NON CYCLICAL),13/02/14,978.00
060214C,B NOKES CONTRACTS LTD,2067,1,"1,973.00",STRATEGIC (NON CYCLICAL),13/02/14,"1,973.00"
060214C,B NOKES CONTRACTS LTD,2068,1,497.50,STRATEGIC (NON CYCLICAL),13/02/14,497.50
050214C,*LOCKHART CATERING EQUIPMENT,2120866/A,1,347.65,CATERING EQUIPMENT,13/02/14,347.65
050214C,CRISPIN HUGHES================,2214,1,367.00,GENERAL,13/02/14,367.00
110214E,AUTOGLASS LIMITED=============,22656439,1,"1,079.94",WINDSCREEN & TYRE CHARGES,13/02/14,"1,079.94"
100214C,ASTEC SURVEYS LIMITED=========,230114,1,175.00,ASBESTOS,13/02/14,525.00
100214C,ASTEC SURVEYS LIMITED=========,230114,2,175.00,ASBESTOS,13/02/14,
100214C,ASTEC SURVEYS LIMITED=========,230114,3,175.00,ASBESTOS,13/02/14,
100214C,SAFEGUARD PEST CON. & ENV.LTD,2323,1,"3,209.00",PEST CONTROL,13/02/14,"3,209.00"
060214C,CARPETS & FLOOR COVERS DIRECT=,2439,1,"1,344.24",FIXTURES & FITTINGS,13/02/14,"1,344.24"
060214C,CARPETS & FLOOR COVERS DIRECT=,2444,1,745.00,FIXTURES & FITTINGS,13/02/14,745.00
060214C,CARPETS & FLOOR COVERS DIRECT=,2457,1,"1,766.40",FIXTURES & FITTINGS,13/02/14,"1,766.40"
060214C,CARPETS & FLOOR COVERS DIRECT=,2464*,1,"1,535.04",FIXTURES & FITTINGS,13/02/14,"1,535.04"
060214C,CARPETS & FLOOR COVERS DIRECT=,2467,1,300.00,FIXTURES & FITTINGS,13/02/14,300.00
100214C,CARPETS & FLOOR COVERS DIRECT=,2473,1,"2,853.98",FIXTURES & FITTINGS,13/02/14,"2,853.98"
100214C,ARKAS LIMITED=================,24758,1,"4,133.00",STRATEGIC (NON CYCLICAL),13/02/14,"8,266.00"
100214C,ARKAS LIMITED=================,24758,2,"4,133.00",STRATEGIC (NON CYCLICAL),13/02/14,
100214C,CARPETS & FLOOR COVERS DIRECT=,2480,1,"2,132.46",FIXTURES & FITTINGS,13/02/14,"2,132.46"
100214C,ARKAS LIMITED=================,24864,1,225.76,TACTICAL DAY TO DAY,13/02/14,"1,098.76"
100214C,ARKAS LIMITED=================,24864,2,379.00,STRATEGIC (CYCLICAL),13/02/14,
100214C,ARKAS LIMITED=================,24864,3,214.00,STRATEGIC (CYCLICAL),13/02/14,
100214C,ARKAS LIMITED=================,24864,4,280.00,STRATEGIC (CYCLICAL),13/02/14,
100214C,ARKAS LIMITED=================,24869,1,214.00,STRATEGIC (CYCLICAL),13/02/14,625.50
100214C,ARKAS LIMITED=================,24869,2,214.00,TACTICAL DAY TO DAY,13/02/14,
100214C,ARKAS LIMITED=================,24869,3,197.50,TACTICAL DAY TO DAY,13/02/14,
060214C,CPC===========================,2647860,1,3.84,RADIO,13/02/14,436.21
060214C,CPC===========================,2647860,2,18.16,RADIO,13/02/14,
060214C,CPC===========================,2647860,3,22.44,RADIO,13/02/14,
060214C,CPC===========================,2647860,4,1.81,RADIO,13/02/14,
060214C,CPC===========================,2647860,5,2.96,RADIO,13/02/14,
060214C,CPC===========================,2647860,6,387.00,RADIO,13/02/14,
800029321,ADECCO UK LIMITED=============,26674940,1,437.85,FRS STAFF AGENCY,13/02/14,437.85
800029322,ADECCO UK LIMITED=============,26681825,1,475.72,FRS STAFF AGENCY,13/02/14,475.72
800029323,ADECCO UK LIMITED=============,26681826,1,"1,250.10",FRS STAFF AGENCY,13/02/14,"1,250.10"
800029324,ADECCO UK LIMITED=============,26681827,1,"1,444.86",FRS STAFF AGENCY,13/02/14,"1,444.86"
800029325,ADECCO UK LIMITED=============,26681828,1,594.65,FRS STAFF AGENCY,13/02/14,594.65
800029326,ADECCO UK LIMITED=============,26681829,1,356.79,FRS STAFF AGENCY,13/02/14,356.79
800029327,ADECCO UK LIMITED=============,26681830,1,945.42,FRS STAFF AGENCY,13/02/14,945.42
800029371,ADECCO UK LIMITED=============,26681831,1,594.65,FRS STAFF AGENCY,13/02/14,594.65
800029373,ADECCO UK LIMITED=============,26681831A,1,254.85,FRS STAFF AGENCY,13/02/14,254.85
800029370,ADECCO UK LIMITED=============,26681832,1,594.65,FRS STAFF AGENCY,13/02/14,594.65
800029374,ADECCO UK LIMITED=============,26681832A,1,254.85,FRS STAFF AGENCY,13/02/14,254.85
800029330,ADECCO UK LIMITED=============,26681833,1,534.08,FRS STAFF AGENCY,13/02/14,534.08
800029331,ADECCO UK LIMITED=============,26681834,1,729.36,CONSULTANTS,13/02/14,729.36
800029332,ADECCO UK LIMITED=============,26681835,1,857.85,FRS STAFF AGENCY,13/02/14,857.85
800029333,ADECCO UK LIMITED=============,26681836,1,"1,949.85",FRS STAFF AGENCY,13/02/14,"1,949.85"
800029334,ADECCO UK LIMITED=============,26681837,1,427.04,FRS STAFF AGENCY,13/02/14,427.04
800029335,ADECCO UK LIMITED=============,26681838,1,594.65,FRS STAFF AGENCY,13/02/14,594.65
800029336,ADECCO UK LIMITED=============,26681839,1,"2,500.00",FRS STAFF AGENCY,13/02/14,"2,500.00"
800029337,ADECCO UK LIMITED=============,26681840,1,439.60,FRS STAFF AGENCY,13/02/14,439.60
800029338,ADECCO UK LIMITED=============,26681841,1,305.82,FRS STAFF AGENCY,13/02/14,305.82
800029339,ADECCO UK LIMITED=============,26681842,1,439.60,FRS STAFF AGENCY,13/02/14,439.60
800029340,ADECCO UK LIMITED=============,26681843,1,"1,184.25",FRS STAFF AGENCY,13/02/14,"1,184.25"
800029341,ADECCO UK LIMITED=============,26681844,1,"1,471.35",FRS STAFF AGENCY,13/02/14,"1,471.35"
800029342,ADECCO UK LIMITED=============,26681845,1,437.85,FRS STAFF AGENCY,13/02/14,437.85
800029353,ADECCO UK LIMITED=============,26685541,1,964.25,FRS STAFF AGENCY,13/02/14,964.25
800029354,ADECCO UK LIMITED=============,26685542,1,964.25,FRS STAFF AGENCY,13/02/14,964.25
800029349,ADECCO UK LIMITED=============,26685546,1,"1,212.00",FRS STAFF AGENCY,13/02/14,"1,212.00"
800029343,ADECCO UK LIMITED=============,26685547,1,484.80,FRS STAFF AGENCY,13/02/14,484.80
800029362,ADECCO UK LIMITED=============,26685548,1,479.98,FRS STAFF AGENCY,13/02/14,479.98
800029365,ADECCO UK LIMITED=============,26685551,1,460.25,FRS STAFF AGENCY,13/02/14,460.25
800029351,ADECCO UK LIMITED=============,26685552,1,767.60,FRS STAFF AGENCY,13/02/14,767.60
800029352,ADECCO UK LIMITED=============,26685553,1,266.64,FRS STAFF AGENCY,13/02/14,266.64
800029344,ADECCO UK LIMITED=============,26685554,1,904.96,FRS STAFF AGENCY,13/02/14,904.96
800029345,ADECCO UK LIMITED=============,26685555,1,904.96,FRS STAFF AGENCY,13/02/14,904.96
800029346,ADECCO UK LIMITED=============,26685556,1,883.20,FRS STAFF AGENCY,13/02/14,883.20
800029347,ADECCO UK LIMITED=============,26685557,1,"1,104.00",FRS STAFF AGENCY,13/02/14,"1,104.00"
800029348,ADECCO UK LIMITED=============,26685558,1,"1,104.00",FRS STAFF AGENCY,13/02/14,"1,104.00"
800029360,ADECCO UK LIMITED=============,26685559,1,452.48,FRS STAFF AGENCY,13/02/14,452.48
800029361,ADECCO UK LIMITED=============,26685560,1,"1,018.08",FRS STAFF AGENCY,13/02/14,"1,018.08"
800029350,ADECCO UK LIMITED=============,26685561,1,398.05,FRS STAFF AGENCY,13/02/14,398.05
800029358,ADECCO UK LIMITED=============,26685562,1,460.90,FRS STAFF AGENCY,13/02/14,460.90
800029359,ADECCO UK LIMITED=============,26685563,1,"1,466.50",FRS STAFF AGENCY,13/02/14,"1,466.50"
110214E,RS COMPONENTS LTD=============,275198425,1,3.40,REPAIR & MAINTENANCE,13/02/14,250.48
110214E,RS COMPONENTS LTD=============,275198425,2,30.90,REPAIR & MAINTENANCE,13/02/14,
110214E,RS COMPONENTS LTD=============,275198425,3,9.30,REPAIR & MAINTENANCE,13/02/14,
110214E,RS COMPONENTS LTD=============,275198425,4,14.90,REPAIR & MAINTENANCE,13/02/14,
110214E,RS COMPONENTS LTD=============,275198425,5,68.35,REPAIR & MAINTENANCE,13/02/14,
110214E,RS COMPONENTS LTD=============,275198425,6,44.50,REPAIR & MAINTENANCE,13/02/14,
110214E,RS COMPONENTS LTD=============,275198425,7,13.60,REPAIR & MAINTENANCE,13/02/14,
110214E,RS COMPONENTS LTD=============,275198425,8,13.90,REPAIR & MAINTENANCE,13/02/14,
110214E,RS COMPONENTS LTD=============,275198425,9,4.13,REPAIR & MAINTENANCE,13/02/14,
110214E,RS COMPONENTS LTD=============,275198425,10,2.75,REPAIR & MAINTENANCE,13/02/14,
110214E,RS COMPONENTS LTD=============,275198425,11,2.75,REPAIR & MAINTENANCE,13/02/14,
110214E,RS COMPONENTS LTD=============,275198425,12,42.00,REPAIR & MAINTENANCE,13/02/14,
060214C,BRISTOL UNIFORMS LTD==========,3106811,1,169.44,CLOTHING,13/02/14,338.88
060214C,BRISTOL UNIFORMS LTD==========,3106811,2,169.44,CLOTHING,13/02/14,
070214C,BRISTOL UNIFORMS LTD==========,3106892,1,131.46,CLOTHING,13/02/14,283.30
070214C,BRISTOL UNIFORMS LTD==========,3106892,2,131.46,CLOTHING,13/02/14,
070214C,BRISTOL UNIFORMS LTD==========,3106892,3,9.18,CLOTHING,13/02/14,
070214C,BRISTOL UNIFORMS LTD==========,3106892,4,5.60,CLOTHING,13/02/14,
070214C,BRISTOL UNIFORMS LTD==========,3106892,5,5.60,CLOTHING,13/02/14,
140551,THAMES WATER UTILITIES LTD====,3195811112/,1,458.01,WATER & SEWERAGE RATES,13/02/14,458.01
140551,THAMES WATER UTILITIES LTD====,32298-00367A,1,775.44,WATER & SEWERAGE RATES,13/02/14,775.44
140552,SOUTHWARK & SOUTHBANK LIMITED,35,1,"1,179.47",RENTS,13/02/14,"1,179.47"
100214C,W.GILCHRIST & CO,3513,1,137.25,REPAIR & MAINTENANCE,13/02/14,644.81
100214C,W.GILCHRIST & CO,3513,2,482.56,REPAIR & MAINTENANCE,13/02/14,
100214C,W.GILCHRIST & CO,3513,3,25.00,REPAIR & MAINTENANCE,13/02/14,
070214C,KNIGHTON CLEANING SERVICES LTD,38643,1,999.24,HYGIENE,13/02/14,999.24
100214C,KNIGHTON CLEANING SERVICES LTD,39130,1,"2,145.42",GENERAL CLEANS,13/02/14,"78,173.65"
100214C,KNIGHTON CLEANING SERVICES LTD,39130,2,"1,984.67",GENERAL CLEANS,13/02/14,
100214C,KNIGHTON CLEANING SERVICES LTD,39130,3,"1,401.30",GENERAL CLEANS,13/02/14,
100214C,KNIGHTON CLEANING SERVICES LTD,39130,4,141.06,GENERAL CLEANS,13/02/14,
100214C,KNIGHTON CLEANING SERVICES LTD,39130,5,"1,132.66",GENERAL CLEANS,13/02/14,
100214C,KNIGHTON CLEANING SERVICES LTD,39130,6,120.88,GENERAL CLEANS,13/02/14,
100214C,KNIGHTON CLEANING SERVICES LTD,39130,7,"1,185.30",GENERAL CLEANS,13/02/14,
100214C,KNIGHTON CLEANING SERVICES LTD,39130,8,"1,048.17",GENERAL CLEANS,13/02/14,
100214C,KNIGHTON CLEANING SERVICES LTD,39130,9,744.37,GENERAL CLEANS,13/02/14,
100214C,KNIGHTON CLEANING SERVICES LTD,39130,10,241.80,GENERAL CLEANS,13/02/14,
100214C,KNIGHTON CLEANING SERVICES LTD,39130,11,"1,190.81",GENERAL CLEANS,13/02/14,
100214C,KNIGHTON CLEANING SERVICES LTD,39130,12,"1,239.98",GENERAL CLEANS,13/02/14,
100214C,KNIGHTON CLEANING SERVICES LTD,39130,13,"1,057.98",GENERAL CLEANS,13/02/14,
100214C,KNIGHTON CLEANING SERVICES LTD,39130,14,"1,864.82",GENERAL CLEANS,13/02/14,
100214C,KNIGHTON CLEANING SERVICES LTD,39130,15,"2,215.12",GENERAL CLEANS,13/02/14,
100214C,KNIGHTON CLEANING SERVICES LTD,39130,16,749.21,GENERAL CLEANS,13/02/14,
100214C,KNIGHTON CLEANING SERVICES LTD,39130,17,"1,420.93",GENERAL CLEANS,13/02/14,
100214C,KNIGHTON CLEANING SERVICES LTD,39130,18,748.61,GENERAL CLEANS,13/02/14,
100214C,KNIGHTON CLEANING SERVICES LTD,39130,19,"1,487.35",GENERAL CLEANS,13/02/14,
100214C,KNIGHTON CLEANING SERVICES LTD,39130,20,"1,718.38",GENERAL CLEANS,13/02/14,
100214C,KNIGHTON CLEANING SERVICES LTD,39130,21,764.49,GENERAL CLEANS,13/02/14,
100214C,KNIGHTON CLEANING SERVICES LTD,39130,22,"2,259.49",GENERAL CLEANS,13/02/14,
100214C,KNIGHTON CLEANING SERVICES LTD,39130,23,"1,791.41",GENERAL CLEANS,13/02/14,
100214C,KNIGHTON CLEANING SERVICES LTD,39130,24,913.70,GENERAL CLEANS,13/02/14,
100214C,KNIGHTON CLEANING SERVICES LTD,39130,25,914.93,GENERAL CLEANS,13/02/14,
100214C,KNIGHTON CLEANING SERVICES LTD,39130,26,"1,062.89",GENERAL CLEANS,13/02/14,
100214C,KNIGHTON CLEANING SERVICES LTD,39130,27,"1,733.68",GENERAL CLEANS,13/02/14,
100214C,KNIGHTON CLEANING SERVICES LTD,39130,28,"1,030.35",GENERAL CLEANS,13/02/14,
100214C,KNIGHTON CLEANING SERVICES LTD,39130,29,809.26,GENERAL CLEANS,13/02/14,
100214C,KNIGHTON CLEANING SERVICES LTD,39130,30,952.65,GENERAL CLEANS,13/02/14,
100214C,KNIGHTON CLEANING SERVICES LTD,39130,31,"1,309.47",GENERAL CLEANS,13/02/14,
100214C,KNIGHTON CLEANING SERVICES LTD,39130,32,757.11,GENERAL CLEANS,13/02/14,
100214C,KNIGHTON CLEANING SERVICES LTD,39130,33,"1,525.99",GENERAL CLEANS,13/02/14,
100214C,KNIGHTON CLEANING SERVICES LTD,39130,34,"1,249.50",GENERAL CLEANS,13/02/14,
100214C,KNIGHTON CLEANING SERVICES LTD,39130,35,"1,369.17",GENERAL CLEANS,13/02/14,
100214C,KNIGHTON CLEANING SERVICES LTD,39130,36,769.25,GENERAL CLEANS,13/02/14,
100214C,KNIGHTON CLEANING SERVICES LTD,39130,37,120.88,GENERAL CLEANS,13/02/14,
100214C,KNIGHTON CLEANING SERVICES LTD,39130,38,120.88,GENERAL CLEANS,13/02/14,
100214C,KNIGHTON CLEANING SERVICES LTD,39130,39,921.09,GENERAL CLEANS,13/02/14,
100214C,KNIGHTON CLEANING SERVICES LTD,39130,40,940.18,GENERAL CLEANS,13/02/14,
100214C,KNIGHTON CLEANING SERVICES LTD,39130,41,686.16,GENERAL CLEANS,13/02/14,
100214C,KNIGHTON CLEANING SERVICES LTD,39130,42,"1,485.42",GENERAL CLEANS,13/02/14,
100214C,KNIGHTON CLEANING SERVICES LTD,39130,43,"1,311.33",GENERAL CLEANS,13/02/14,
100214C,KNIGHTON CLEANING SERVICES LTD,39130,44,932.88,GENERAL CLEANS,13/02/14,
100214C,KNIGHTON CLEANING SERVICES LTD,39130,45,"2,744.76",GENERAL CLEANS,13/02/14,
100214C,KNIGHTON CLEANING SERVICES LTD,39130,46,"1,014.46",GENERAL CLEANS,13/02/14,
100214C,KNIGHTON CLEANING SERVICES LTD,39130,47,"1,061.55",GENERAL CLEANS,13/02/14,
100214C,KNIGHTON CLEANING SERVICES LTD,39130,48,"1,027.02",GENERAL CLEANS,13/02/14,
100214C,KNIGHTON CLEANING SERVICES LTD,39130,49,931.42,GENERAL CLEANS,13/02/14,
100214C,KNIGHTON CLEANING SERVICES LTD,39130,50,"1,272.47",GENERAL CLEANS,13/02/14,
100214C,KNIGHTON CLEANING SERVICES LTD,39130,51,"2,238.52",GENERAL CLEANS,13/02/14,
100214C,KNIGHTON CLEANING SERVICES LTD,39130,52,120.88,GENERAL CLEANS,13/02/14,
100214C,KNIGHTON CLEANING SERVICES LTD,39130,53,"1,822.05",GENERAL CLEANS,13/02/14,
100214C,KNIGHTON CLEANING SERVICES LTD,39130,54,"1,024.83",GENERAL CLEANS,13/02/14,
100214C,KNIGHTON CLEANING SERVICES LTD,39130,55,676.12,GENERAL CLEANS,13/02/14,
100214C,KNIGHTON CLEANING SERVICES LTD,39130,56,667.63,GENERAL CLEANS,13/02/14,
100214C,KNIGHTON CLEANING SERVICES LTD,39130,57,776.02,GENERAL CLEANS,13/02/14,
100214C,KNIGHTON CLEANING SERVICES LTD,39130,58,"2,277.54",GENERAL CLEANS,13/02/14,
100214C,KNIGHTON CLEANING SERVICES LTD,39130,59,902.35,GENERAL CLEANS,13/02/14,
100214C,KNIGHTON CLEANING SERVICES LTD,39130,60,"1,561.89",GENERAL CLEANS,13/02/14,
100214C,KNIGHTON CLEANING SERVICES LTD,39130,61,"2,575.91",GENERAL CLEANS,13/02/14,
100214C,KNIGHTON CLEANING SERVICES LTD,39130,62,754.42,GENERAL CLEANS,13/02/14,
100214C,KNIGHTON CLEANING SERVICES LTD,39130,63,771.12,GENERAL CLEANS,13/02/14,
100214C,KNIGHTON CLEANING SERVICES LTD,39130,64,243.52,GENERAL CLEANS,13/02/14,
100214C,KNIGHTON CLEANING SERVICES LTD,39130,65,"1,048.52",GENERAL CLEANS,13/02/14,
100214C,KNIGHTON CLEANING SERVICES LTD,39130,66,796.65,GENERAL CLEANS,13/02/14,
100214C,KNIGHTON CLEANING SERVICES LTD,39130,67,"1,035.93",GENERAL CLEANS,13/02/14,
100214C,KNIGHTON CLEANING SERVICES LTD,39130,68,"1,257.09",GENERAL CLEANS,13/02/14,
100214C,KNIGHTON CLEANING SERVICES LTD,39131,1,972.90,GENERAL CLEANS,13/02/14,"70,003.95"
100214C,KNIGHTON CLEANING SERVICES LTD,39131,2,"1,072.79",GENERAL CLEANS,13/02/14,
100214C,KNIGHTON CLEANING SERVICES LTD,39131,3,"1,006.42",GENERAL CLEANS,13/02/14,
100214C,KNIGHTON CLEANING SERVICES LTD,39131,4,"1,212.03",GENERAL CLEANS,13/02/14,
100214C,KNIGHTON CLEANING SERVICES LTD,39131,5,588.44,GENERAL CLEANS,13/02/14,
100214C,KNIGHTON CLEANING SERVICES LTD,39131,6,"1,352.92",GENERAL CLEANS,13/02/14,
100214C,KNIGHTON CLEANING SERVICES LTD,39131,7,"1,962.26",GENERAL CLEANS,13/02/14,
100214C,KNIGHTON CLEANING SERVICES LTD,39131,8,"2,019.86",GENERAL CLEANS,13/02/14,
100214C,KNIGHTON CLEANING SERVICES LTD,39131,9,"3,162.88",GENERAL CLEANS,13/02/14,
100214C,KNIGHTON CLEANING SERVICES LTD,39131,10,995.59,GENERAL CLEANS,13/02/14,
100214C,KNIGHTON CLEANING SERVICES LTD,39131,11,879.86,GENERAL CLEANS,13/02/14,
100214C,KNIGHTON CLEANING SERVICES LTD,39131,12,211.72,GENERAL CLEANS,13/02/14,
100214C,KNIGHTON CLEANING SERVICES LTD,39131,13,"1,208.43",GENERAL CLEANS,13/02/14,
100214C,KNIGHTON CLEANING SERVICES LTD,39131,14,"1,003.19",GENERAL CLEANS,13/02/14,
100214C,KNIGHTON CLEANING SERVICES LTD,39131,15,"1,048.85",GENERAL CLEANS,13/02/14,
100214C,KNIGHTON CLEANING SERVICES LTD,39131,16,"1,071.34",GENERAL CLEANS,13/02/14,
100214C,KNIGHTON CLEANING SERVICES LTD,39131,17,"1,333.85",GENERAL CLEANS,13/02/14,
100214C,KNIGHTON CLEANING SERVICES LTD,39131,18,"1,214.66",GENERAL CLEANS,13/02/14,
100214C,KNIGHTON CLEANING SERVICES LTD,39131,19,581.88,GENERAL CLEANS,13/02/14,
100214C,KNIGHTON CLEANING SERVICES LTD,39131,20,"12,111.60",GENERAL CLEANS,13/02/14,
100214C,KNIGHTON CLEANING SERVICES LTD,39131,21,"1,167.31",GENERAL CLEANS,13/02/14,
100214C,KNIGHTON CLEANING SERVICES LTD,39131,22,390.32,GENERAL CLEANS,13/02/14,
100214C,KNIGHTON CLEANING SERVICES LTD,39131,23,"1,480.68",GENERAL CLEANS,13/02/14,
100214C,KNIGHTON CLEANING SERVICES LTD,39131,24,"3,106.56",GENERAL CLEANS,13/02/14,
100214C,KNIGHTON CLEANING SERVICES LTD,39131,25,620.95,GENERAL CLEANS,13/02/14,
100214C,KNIGHTON CLEANING SERVICES LTD,39131,26,"1,694.87",GENERAL CLEANS,13/02/14,
100214C,KNIGHTON CLEANING SERVICES LTD,39131,27,837.31,GENERAL CLEANS,13/02/14,
100214C,KNIGHTON CLEANING SERVICES LTD,39131,28,"1,277.50",GENERAL CLEANS,13/02/14,
100214C,KNIGHTON CLEANING SERVICES LTD,39131,29,648.00,GENERAL CLEANS,13/02/14,
100214C,KNIGHTON CLEANING SERVICES LTD,39131,30,"1,883.42",GENERAL CLEANS,13/02/14,
100214C,KNIGHTON CLEANING SERVICES LTD,39131,31,"1,218.44",GENERAL CLEANS,13/02/14,
100214C,KNIGHTON CLEANING SERVICES LTD,39131,32,884.34,GENERAL CLEANS,13/02/14,
100214C,KNIGHTON CLEANING SERVICES LTD,39131,33,"1,177.51",GENERAL CLEANS,13/02/14,
100214C,KNIGHTON CLEANING SERVICES LTD,39131,34,"1,203.19",GENERAL CLEANS,13/02/14,
100214C,KNIGHTON CLEANING SERVICES LTD,39131,35,"6,147.09",GENERAL CLEANS,13/02/14,
100214C,KNIGHTON CLEANING SERVICES LTD,39131,36,718.82,GENERAL CLEANS,13/02/14,
100214C,KNIGHTON CLEANING SERVICES LTD,39131,37,897.31,GENERAL CLEANS,13/02/14,
100214C,KNIGHTON CLEANING SERVICES LTD,39131,38,"1,806.36",GENERAL CLEANS,13/02/14,
100214C,KNIGHTON CLEANING SERVICES LTD,39131,39,"1,050.32",GENERAL CLEANS,13/02/14,
100214C,KNIGHTON CLEANING SERVICES LTD,39131,40,797.40,GENERAL CLEANS,13/02/14,
100214C,KNIGHTON CLEANING SERVICES LTD,39131,41,"1,584.60",GENERAL CLEANS,13/02/14,
100214C,KNIGHTON CLEANING SERVICES LTD,39131,42,"1,288.59",GENERAL CLEANS,13/02/14,
100214C,KNIGHTON CLEANING SERVICES LTD,39131,43,"1,283.46",GENERAL CLEANS,13/02/14,
100214C,KNIGHTON CLEANING SERVICES LTD,39131,44,"1,188.30",GENERAL CLEANS,13/02/14,
100214C,KNIGHTON CLEANING SERVICES LTD,39131,45,169.40,GENERAL CLEANS,13/02/14,
100214C,KNIGHTON CLEANING SERVICES LTD,39131,46,470.43,GENERAL CLEANS,13/02/14,
140552,SOUTHWARK & SOUTHBANK LIMITED,41,1,"1,179.47",RENTS,13/02/14,"1,179.47"
800029445,*BURLINGTON UNIFORMS LTD,425283,1,191.87,CLOTHING,13/02/14,383.74
800029445,*BURLINGTON UNIFORMS LTD,425283,2,191.87,CLOTHING,13/02/14,
280114E,PRESCO========================,428842,1,151.26,STATIONERY CONSUMABLES,13/02/14,699.26
280114E,PRESCO========================,428842,2,548.00,STATIONERY CONSUMABLES,13/02/14,
070214C,MITIE SECURITY (LONDON) LTD===,45/545891,1,"8,534.24",PREMISES SECURITY,13/02/14,"8,534.24"
070214C,MITIE SECURITY (LONDON) LTD===,45/545895,1,"17,067.36",PREMISES SECURITY,13/02/14,"17,067.36"
060214C,SPORTSAFE UK LTD==============,453437,1,295.00,GYM EQUIPMENT,13/02/14,340.00
060214C,SPORTSAFE UK LTD==============,453437,2,45.00,GYM EQUIPMENT,13/02/14,
060214C,SPORTSAFE UK LTD==============,453547,1,385.00,GYM EQUIPMENT,13/02/14,385.00
060214C,SPORTSAFE UK LTD==============,453589,1,298.00,GYM EQUIPMENT,13/02/14,706.61
060214C,SPORTSAFE UK LTD==============,453589,2,289.00,GYM EQUIPMENT,13/02/14,
060214C,SPORTSAFE UK LTD==============,453589,3,119.61,GYM EQUIPMENT,13/02/14,
140551,THAMES WATER UTILITIES LTD====,5016375184L,1,279.29,WATER & SEWERAGE RATES,13/02/14,279.29
100214C,CORE SURVEYSLTD===============,5405,1,600.00,ASBESTOS,13/02/14,600.00
800028877,*GREENHAM TRADING LTD=========,5628232,1,28.10,HYGIENE,13/02/14,420.04
800028877,*GREENHAM TRADING LTD=========,5628232,2,87.34,HYGIENE,13/02/14,
800028877,*GREENHAM TRADING LTD=========,5628232,3,18.60,HYGIENE,13/02/14,
800028877,*GREENHAM TRADING LTD=========,5628232,4,40.75,HYGIENE,13/02/14,
800028877,*GREENHAM TRADING LTD=========,5628232,5,8.40,HYGIENE,13/02/14,
800028877,*GREENHAM TRADING LTD=========,5628232,6,10.70,HYGIENE,13/02/14,
800028877,*GREENHAM TRADING LTD=========,5628232,7,8.15,HYGIENE,13/02/14,
800028877,*GREENHAM TRADING LTD=========,5628232,8,55.20,OPERATIONAL EQUIP-PURCHASE,13/02/14,
800028877,*GREENHAM TRADING LTD=========,5628232,9,31.86,HYGIENE,13/02/14,
800028877,*GREENHAM TRADING LTD=========,5628232,10,100.52,HYGIENE,13/02/14,
800028877,*GREENHAM TRADING LTD=========,5628232,11,30.42,HYGIENE,13/02/14,
800028910,*GREENHAM TRADING LTD=========,5628273,1,111.18,HYGIENE,13/02/14,317.08
800028910,*GREENHAM TRADING LTD=========,5628273,2,32.89,HYGIENE,13/02/14,
800028910,*GREENHAM TRADING LTD=========,5628273,3,6.42,HYGIENE,13/02/14,
800028910,*GREENHAM TRADING LTD=========,5628273,4,4.11,HYGIENE,13/02/14,
800028910,*GREENHAM TRADING LTD=========,5628273,5,2.92,HYGIENE,13/02/14,
800028910,*GREENHAM TRADING LTD=========,5628273,6,12.40,HYGIENE,13/02/14,
800028910,*GREENHAM TRADING LTD=========,5628273,7,103.92,HYGIENE,13/02/14,
800028910,*GREENHAM TRADING LTD=========,5628273,8,43.24,HYGIENE,13/02/14,
140551,ESSEX & SUFFOLK WATER PLC=====,603455300010,1,"1,863.40",WATER & SEWERAGE RATES,13/02/14,"1,863.40"
070214C,CONTRACT CATERING CONSULTANTS=,6219,1,500.00,CONSULTANTS,13/02/14,500.00
060214C,GAS & AIR SERVICES (UK)=======,6299,1,625.00,REPAIR & MAINTENANCE,13/02/14,625.00
060214C,GAS & AIR SERVICES (UK)=======,6308,1,684.60,REPAIR & MAINTENANCE,13/02/14,684.60
100214C,SWETS,6700316600,1,439.62,BOOKS & JOURNALS,13/02/14,439.62
100214C,*SP SERVICES,719075,1,41.44,HYGIENE,13/02/14,269.74
100214C,*SP SERVICES,719075,2,80.00,HYGIENE,13/02/14,
100214C,*SP SERVICES,719075,3,3.92,HYGIENE,13/02/14,
100214C,*SP SERVICES,719075,4,3.70,HYGIENE,13/02/14,
100214C,*SP SERVICES,719075,5,4.50,HYGIENE,13/02/14,
100214C,*SP SERVICES,719075,6,2.20,HYGIENE,13/02/14,
100214C,*SP SERVICES,719075,7,0.21,HYGIENE,13/02/14,
100214C,*SP SERVICES,719075,8,2.07,HYGIENE,13/02/14,
100214C,*SP SERVICES,719075,9,11.12,HYGIENE,13/02/14,
100214C,*SP SERVICES,719075,10,10.36,HYGIENE,13/02/14,
100214C,*SP SERVICES,719075,11,34.44,HYGIENE,13/02/14,
100214C,*SP SERVICES,719075,12,32.16,HYGIENE,13/02/14,
100214C,*SP SERVICES,719075,13,10.88,HYGIENE,13/02/14,
100214C,*SP SERVICES,719075,14,8.24,HYGIENE,13/02/14,
100214C,*SP SERVICES,719075,15,7.00,HYGIENE,13/02/14,
100214C,*SP SERVICES,719075,16,17.50,HYGIENE,13/02/14,
140552,LONDON PENSIONS FUND AUTHORITY,7281,1,"85,229.58",LOCAL GOVT PENSION SCHEME PAYM,13/02/14,"85,229.58"
070214C,SAFEGUARD PEST CON. & ENV.LTD,736*,1,325.00,TACTICAL DAY TO DAY,13/02/14,325.00
060214C,LE MAITRE LTD=================,82762,1,360.28,REPAIR & MAINTENANCE,13/02/14,360.28
070214C,G4S FIRE & SECURITY SYSTEMS UK,852129,1,508.21,PREMISES SECURITY,13/02/14,508.21
100214C,SMITH CONSTRUCTION (HECKINGTON,8583,1,"6,752.64",STRATEGIC (NON CYCLICAL),13/02/14,"6,752.64"
140551,THAMES WATER UTILITIES LTD====,89208-51250H,1,"1,536.75",WATER & SEWERAGE RATES,13/02/14,"1,536.75"
140551,THAMES WATER UTILITIES LTD====,89656-99261N,1,375.33,WATER & SEWERAGE RATES,13/02/14,375.33
140551,CITY UNIVERSITY===============,90299142,1,"5,890.00",MEDICAL EXPENSES CLAIMS,13/02/14,"5,890.00"
030214C,DRAEGER SAFETY UK LIMITED=====,90436018,1,725.00,PROTECTIVE EQUIPT - PARTS,13/02/14,951.00
030214C,DRAEGER SAFETY UK LIMITED=====,90436018,2,226.00,PROTECTIVE EQUIPT - PARTS,13/02/14,
060214C,DRAEGER SAFETY UK LIMITED=====,90436225,1,"2,140.00",PROTECTIVE EQUIPT - PARTS,13/02/14,"2,140.00"
140557,THOMPSONS SOLICITORS==========,9070,1,"22,314.00",CLAIMANT COSTS AGREED,13/02/14,"22,314.00"
140557,REBECCA THOMAS,9468,1,612.50,COUNSELS FEES,13/02/14,612.50
050214G,*OFFICE DEPOT UK LTD,960126496,1,792.00,STATIONERY CONSUMABLES,13/02/14,"1,149.00"
050214G,*OFFICE DEPOT UK LTD,960126496,2,357.00,STATIONERY CONSUMABLES,13/02/14,
140551,THAMES WATER UTILITIES LTD====,9870962314:,1,442.52,WATER & SEWERAGE RATES,13/02/14,442.52
100214C,ASTEC SURVEYS LIMITED=========,ASL-14-030,1,395.00,ASBESTOS,13/02/14,395.00
100214C,ASTEC SURVEYS LIMITED=========,ASL-14-031,1,200.00,ASBESTOS,13/02/14,550.00
100214C,ASTEC SURVEYS LIMITED=========,ASL-14-031,2,175.00,ASBESTOS,13/02/14,
100214C,ASTEC SURVEYS LIMITED=========,ASL-14-031,3,175.00,ASBESTOS,13/02/14,
060214C,BRISTOL UNIFORMS LTD==========,BC-01-14-S1223,1,495.29,CLOTHING,13/02/14,495.29
110214E,E&S B DAVIS LTD,DAV/47872,1,360.00,OPERATIONAL EQUIP-PURCHASE,13/02/14,360.00
060214C,KIER BUILDING SERV ENGINEERS==,F00047032,1,"2,524.78",TACTICAL DAY TO DAY,13/02/14,"2,524.78"
100214C,KIER BUILDING SERV ENGINEERS==,F00047146,1,298.72,CATERING FIXTURES,13/02/14,298.72
100214C,KIER BUILDING SERV ENGINEERS==,F00047148,1,470.00,STRATEGIC (CYCLICAL),13/02/14,470.00
100214C,WM ENGINEERING SERVICES LTD===,I-4616,1,260.00,STRATEGIC (NON CYCLICAL),13/02/14,260.00
100214C,WM ENGINEERING SERVICES LTD===,I-4617,1,310.00,STRATEGIC (NON CYCLICAL),13/02/14,310.00
040214F,HALL FUELS,I06609761,1,"2,167.80",FUEL,13/02/14,"2,167.80"
140552,DAYS CONTRACT HIRE,INV00029496,1,957.79,LEASE CAR CHARGES,13/02/14,"4,923.84"
140552,DAYS CONTRACT HIRE,INV00029496,2,"3,966.05",P/PAYMTS-CAR LEASG-RENTAL,13/02/14,
140552,DAYS CONTRACT HIRE,INV00029496,3,-424.01,VAT CAR LEASING,13/02/14,
140552,DAYS CONTRACT HIRE,INV00029496,4,424.01,LEASE CAR CHARGES,13/02/14,
060214C,SOFTCAT LIMITED,INV00883313,1,"5,600.00",CONSULTANTS,13/02/14,"5,600.00"
070214C,GREEN BROTHERS SIGNS LTD,INV5147,1,255.12,OPERATIONAL EQUIP-PURCHASE,13/02/14,255.12
070214C,COFELY WORKPLACE LIMITED,M125533,1,617.10,TACTICAL DAY TO DAY,13/02/14,"8,351.98"
070214C,COFELY WORKPLACE LIMITED,M125533,2,132.00,TACTICAL DAY TO DAY,13/02/14,
070214C,COFELY WORKPLACE LIMITED,M125533,3,99.95,TACTICAL DAY TO DAY,13/02/14,
070214C,COFELY WORKPLACE LIMITED,M125533,4,617.10,TACTICAL DAY TO DAY,13/02/14,
070214C,COFELY WORKPLACE LIMITED,M125533,5,132.00,TACTICAL DAY TO DAY,13/02/14,
070214C,COFELY WORKPLACE LIMITED,M125533,6,119.15,TACTICAL DAY TO DAY,13/02/14,
070214C,COFELY WORKPLACE LIMITED,M125533,7,82.50,TACTICAL DAY TO DAY,13/02/14,
070214C,COFELY WORKPLACE LIMITED,M125533,8,269.30,TACTICAL DAY TO DAY,13/02/14,
070214C,COFELY WORKPLACE LIMITED,M125533,9,330.00,TACTICAL DAY TO DAY,13/02/14,
070214C,COFELY WORKPLACE LIMITED,M125533,10,165.00,TACTICAL DAY TO DAY,13/02/14,
070214C,COFELY WORKPLACE LIMITED,M125533,11,561.65,TACTICAL DAY TO DAY,13/02/14,
070214C,COFELY WORKPLACE LIMITED,M125533,12,911.59,STRATEGIC (NON CYCLICAL),13/02/14,
070214C,COFELY WORKPLACE LIMITED,M125533,13,69.95,TACTICAL DAY TO DAY,13/02/14,
070214C,COFELY WORKPLACE LIMITED,M125533,14,165.00,TACTICAL DAY TO DAY,13/02/14,
070214C,COFELY WORKPLACE LIMITED,M125533,15,41.95,TACTICAL DAY TO DAY,13/02/14,
070214C,COFELY WORKPLACE LIMITED,M125533,16,"1,109.60",STRATEGIC (NON CYCLICAL),13/02/14,
070214C,COFELY WORKPLACE LIMITED,M125533,17,58.76,TACTICAL DAY TO DAY,13/02/14,
070214C,COFELY WORKPLACE LIMITED,M125533,18,111.92,TACTICAL DAY TO DAY,13/02/14,
070214C,COFELY WORKPLACE LIMITED,M125533,19,232.05,TACTICAL DAY TO DAY,13/02/14,
070214C,COFELY WORKPLACE LIMITED,M125533,20,95.13,TACTICAL DAY TO DAY,13/02/14,
070214C,COFELY WORKPLACE LIMITED,M125533,21,30.78,TACTICAL DAY TO DAY,13/02/14,
070214C,COFELY WORKPLACE LIMITED,M125533,22,29.69,TACTICAL DAY TO DAY,13/02/14,
070214C,COFELY WORKPLACE LIMITED,M125533,23,121.15,TACTICAL DAY TO DAY,13/02/14,
070214C,COFELY WORKPLACE LIMITED,M125533,24,67.89,TACTICAL DAY TO DAY,13/02/14,
070214C,COFELY WORKPLACE LIMITED,M125533,25,12.99,TACTICAL DAY TO DAY,13/02/14,
070214C,COFELY WORKPLACE LIMITED,M125533,26,11.40,TACTICAL DAY TO DAY,13/02/14,
070214C,COFELY WORKPLACE LIMITED,M125533,27,16.51,TACTICAL DAY TO DAY,13/02/14,
070214C,COFELY WORKPLACE LIMITED,M125533,28,57.66,TACTICAL DAY TO DAY,13/02/14,
070214C,COFELY WORKPLACE LIMITED,M125533,29,290.99,TACTICAL DAY TO DAY,13/02/14,
070214C,COFELY WORKPLACE LIMITED,M125533,30,194.48,TACTICAL DAY TO DAY,13/02/14,
070214C,COFELY WORKPLACE LIMITED,M125533,31,245.30,TACTICAL DAY TO DAY,13/02/14,
070214C,COFELY WORKPLACE LIMITED,M125533,32,30.22,TACTICAL DAY TO DAY,13/02/14,
070214C,COFELY WORKPLACE LIMITED,M125533,33,354.20,TACTICAL DAY TO DAY,13/02/14,
070214C,COFELY WORKPLACE LIMITED,M125533,34,402.60,TACTICAL DAY TO DAY,13/02/14,
070214C,COFELY WORKPLACE LIMITED,M125533,35,287.07,TACTICAL DAY TO DAY,13/02/14,
070214C,COFELY WORKPLACE LIMITED,M125533,36,35.25,TACTICAL DAY TO DAY,13/02/14,
070214C,COFELY WORKPLACE LIMITED,M125533,37,242.10,TACTICAL DAY TO DAY,13/02/14,
100214C,COFELY WORKPLACE LIMITED,M126311,1,"22,948.37",TACTICAL DAY TO DAY,13/02/14,"75,516.56"
100214C,COFELY WORKPLACE LIMITED,M126311,2,92.89,TACTICAL DAY TO DAY,13/02/14,
100214C,COFELY WORKPLACE LIMITED,M126311,3,272.82,TACTICAL DAY TO DAY,13/02/14,
100214C,COFELY WORKPLACE LIMITED,M126311,4,"51,464.88",STRATEGIC (CYCLICAL),13/02/14,
100214C,COFELY WORKPLACE LIMITED,M126311,5,208.24,STRATEGIC (CYCLICAL),13/02/14,
100214C,COFELY WORKPLACE LIMITED,M126311,6,529.36,STRATEGIC (CYCLICAL),13/02/14,
060214C,COFELY WORKPLACE LIMITED,M126331,1,"1,465.87",STRATEGIC (NON CYCLICAL),13/02/14,"1,465.87"
060214C,COFELY WORKPLACE LIMITED,M126332,1,"5,961.00",STRATEGIC (NON CYCLICAL),13/02/14,"5,961.00"
060214C,COFELY WORKPLACE LIMITED,M126339,1,261.25,TACTICAL DAY TO DAY,13/02/14,"7,624.88"
060214C,COFELY WORKPLACE LIMITED,M126339,2,35.51,TACTICAL DAY TO DAY,13/02/14,
060214C,COFELY WORKPLACE LIMITED,M126339,3,140.80,TACTICAL DAY TO DAY,13/02/14,
060214C,COFELY WORKPLACE LIMITED,M126339,4,"1,362.97",STRATEGIC (NON CYCLICAL),13/02/14,
060214C,COFELY WORKPLACE LIMITED,M126339,5,"1,315.49",STRATEGIC (NON CYCLICAL),13/02/14,
060214C,COFELY WORKPLACE LIMITED,M126339,6,114.72,TACTICAL DAY TO DAY,13/02/14,
060214C,COFELY WORKPLACE LIMITED,M126339,7,88.71,TACTICAL DAY TO DAY,13/02/14,
060214C,COFELY WORKPLACE LIMITED,M126339,8,131.05,TACTICAL DAY TO DAY,13/02/14,
060214C,COFELY WORKPLACE LIMITED,M126339,9,38.97,TACTICAL DAY TO DAY,13/02/14,
060214C,COFELY WORKPLACE LIMITED,M126339,10,88.55,TACTICAL DAY TO DAY,13/02/14,
060214C,COFELY WORKPLACE LIMITED,M126339,11,155.70,TACTICAL DAY TO DAY,13/02/14,
060214C,COFELY WORKPLACE LIMITED,M126339,12,110.00,TACTICAL DAY TO DAY,13/02/14,
060214C,COFELY WORKPLACE LIMITED,M126339,13,348.12,TACTICAL DAY TO DAY,13/02/14,
060214C,COFELY WORKPLACE LIMITED,M126339,14,27.98,TACTICAL DAY TO DAY,13/02/14,
060214C,COFELY WORKPLACE LIMITED,M126339,15,132.00,TACTICAL DAY TO DAY,13/02/14,
060214C,COFELY WORKPLACE LIMITED,M126339,16,221.65,TACTICAL DAY TO DAY,13/02/14,
060214C,COFELY WORKPLACE LIMITED,M126339,17,69.04,TACTICAL DAY TO DAY,13/02/14,
060214C,COFELY WORKPLACE LIMITED,M126339,18,34.14,TACTICAL DAY TO DAY,13/02/14,
060214C,COFELY WORKPLACE LIMITED,M126339,19,171.97,TACTICAL DAY TO DAY,13/02/14,
060214C,COFELY WORKPLACE LIMITED,M126339,20,27.98,TACTICAL DAY TO DAY,13/02/14,
060214C,COFELY WORKPLACE LIMITED,M126339,21,39.45,TACTICAL DAY TO DAY,13/02/14,
060214C,COFELY WORKPLACE LIMITED,M126339,22,35.53,TACTICAL DAY TO DAY,13/02/14,
060214C,COFELY WORKPLACE LIMITED,M126339,23,416.99,TACTICAL DAY TO DAY,13/02/14,
060214C,COFELY WORKPLACE LIMITED,M126339,24,"1,549.54",STRATEGIC (NON CYCLICAL),13/02/14,
060214C,COFELY WORKPLACE LIMITED,M126339,25,35.53,TACTICAL DAY TO DAY,13/02/14,
060214C,COFELY WORKPLACE LIMITED,M126339,26,132.55,TACTICAL DAY TO DAY,13/02/14,
060214C,COFELY WORKPLACE LIMITED,M126339,27,264.41,TACTICAL DAY TO DAY,13/02/14,
060214C,COFELY WORKPLACE LIMITED,M126339,28,34.70,TACTICAL DAY TO DAY,13/02/14,
060214C,COFELY WORKPLACE LIMITED,M126339,29,39.48,TACTICAL DAY TO DAY,13/02/14,
060214C,COFELY WORKPLACE LIMITED,M126339,30,150.90,TACTICAL DAY TO DAY,13/02/14,
060214C,COFELY WORKPLACE LIMITED,M126339,31,49.20,TACTICAL DAY TO DAY,13/02/14,
060214C,RADIOCOMS SYSTEMS LIMITED=====,OP/I013819,1,250.00,RADIO,13/02/14,768.05
060214C,RADIOCOMS SYSTEMS LIMITED=====,OP/I013819,2,508.05,RADIO,13/02/14,
060214C,RADIOCOMS SYSTEMS LIMITED=====,OP/I013819,3,10.00,RADIO,13/02/14,
800029368,ALLSTAR BUSINESS SOLUTIONS LTD,P2002307119,1,"1,458.27",FUEL,13/02/14,"19,498.53"
800029368,ALLSTAR BUSINESS SOLUTIONS LTD,P2002307119,2,634.59,FUEL,13/02/14,
800029368,ALLSTAR BUSINESS SOLUTIONS LTD,P2002307119,3,511.67,FUEL,13/02/14,
800029368,ALLSTAR BUSINESS SOLUTIONS LTD,P2002307119,4,491.31,FUEL,13/02/14,
800029368,ALLSTAR BUSINESS SOLUTIONS LTD,P2002307119,5,449.68,FUEL,13/02/14,
800029368,ALLSTAR BUSINESS SOLUTIONS LTD,P2002307119,6,405.91,FUEL,13/02/14,
800029368,ALLSTAR BUSINESS SOLUTIONS LTD,P2002307119,7,404.85,FUEL,13/02/14,
800029368,ALLSTAR BUSINESS SOLUTIONS LTD,P2002307119,8,401.91,FUEL,13/02/14,
800029368,ALLSTAR BUSINESS SOLUTIONS LTD,P2002307119,9,387.63,FUEL,13/02/14,
800029368,ALLSTAR BUSINESS SOLUTIONS LTD,P2002307119,10,361.37,FUEL,13/02/14,
800029368,ALLSTAR BUSINESS SOLUTIONS LTD,P2002307119,11,350.80,FUEL,13/02/14,
800029368,ALLSTAR BUSINESS SOLUTIONS LTD,P2002307119,12,342.33,FUEL,13/02/14,
800029368,ALLSTAR BUSINESS SOLUTIONS LTD,P2002307119,13,322.76,FUEL,13/02/14,
800029368,ALLSTAR BUSINESS SOLUTIONS LTD,P2002307119,14,310.11,FUEL,13/02/14,
800029368,ALLSTAR BUSINESS SOLUTIONS LTD,P2002307119,15,305.01,FUEL,13/02/14,
800029368,ALLSTAR BUSINESS SOLUTIONS LTD,P2002307119,16,291.95,FUEL,13/02/14,
800029368,ALLSTAR BUSINESS SOLUTIONS LTD,P2002307119,17,283.67,FUEL,13/02/14,
800029368,ALLSTAR BUSINESS SOLUTIONS LTD,P2002307119,18,282.12,FUEL,13/02/14,
800029368,ALLSTAR BUSINESS SOLUTIONS LTD,P2002307119,19,279.29,FUEL,13/02/14,
800029368,ALLSTAR BUSINESS SOLUTIONS LTD,P2002307119,20,275.86,FUEL,13/02/14,
800029368,ALLSTAR BUSINESS SOLUTIONS LTD,P2002307119,21,269.17,FUEL,13/02/14,
800029368,ALLSTAR BUSINESS SOLUTIONS LTD,P2002307119,22,267.94,FUEL,13/02/14,
800029368,ALLSTAR BUSINESS SOLUTIONS LTD,P2002307119,23,261.17,FUEL,13/02/14,
800029368,ALLSTAR BUSINESS SOLUTIONS LTD,P2002307119,24,260.06,FUEL,13/02/14,
800029368,ALLSTAR BUSINESS SOLUTIONS LTD,P2002307119,25,254.47,FUEL,13/02/14,
800029368,ALLSTAR BUSINESS SOLUTIONS LTD,P2002307119,26,249.73,FUEL,13/02/14,
800029368,ALLSTAR BUSINESS SOLUTIONS LTD,P2002307119,27,245.40,FUEL,13/02/14,
800029368,ALLSTAR BUSINESS SOLUTIONS LTD,P2002307119,28,239.72,FUEL,13/02/14,
800029368,ALLSTAR BUSINESS SOLUTIONS LTD,P2002307119,29,236.46,FUEL,13/02/14,
800029368,ALLSTAR BUSINESS SOLUTIONS LTD,P2002307119,30,235.55,FUEL,13/02/14,
800029368,ALLSTAR BUSINESS SOLUTIONS LTD,P2002307119,31,227.11,FUEL,13/02/14,
800029368,ALLSTAR BUSINESS SOLUTIONS LTD,P2002307119,32,223.00,FUEL,13/02/14,
800029368,ALLSTAR BUSINESS SOLUTIONS LTD,P2002307119,33,219.56,FUEL,13/02/14,
800029368,ALLSTAR BUSINESS SOLUTIONS LTD,P2002307119,34,218.72,FUEL,13/02/14,
800029368,ALLSTAR BUSINESS SOLUTIONS LTD,P2002307119,35,211.99,FUEL,13/02/14,
800029368,ALLSTAR BUSINESS SOLUTIONS LTD,P2002307119,36,207.48,FUEL,13/02/14,
800029368,ALLSTAR BUSINESS SOLUTIONS LTD,P2002307119,37,198.90,FUEL,13/02/14,
800029368,ALLSTAR BUSINESS SOLUTIONS LTD,P2002307119,38,197.32,FUEL,13/02/14,
800029368,ALLSTAR BUSINESS SOLUTIONS LTD,P2002307119,39,187.26,FUEL,13/02/14,
800029368,ALLSTAR BUSINESS SOLUTIONS LTD,P2002307119,40,176.40,FUEL,13/02/14,
800029368,ALLSTAR BUSINESS SOLUTIONS LTD,P2002307119,41,176.13,FUEL,13/02/14,
800029368,ALLSTAR BUSINESS SOLUTIONS LTD,P2002307119,42,172.26,FUEL,13/02/14,
800029368,ALLSTAR BUSINESS SOLUTIONS LTD,P2002307119,43,169.79,FUEL,13/02/14,
800029368,ALLSTAR BUSINESS SOLUTIONS LTD,P2002307119,44,166.35,FUEL,13/02/14,
800029368,ALLSTAR BUSINESS SOLUTIONS LTD,P2002307119,45,159.04,FUEL,13/02/14,
800029368,ALLSTAR BUSINESS SOLUTIONS LTD,P2002307119,46,153.52,FUEL,13/02/14,
800029368,ALLSTAR BUSINESS SOLUTIONS LTD,P2002307119,47,153.33,FUEL,13/02/14,
800029368,ALLSTAR BUSINESS SOLUTIONS LTD,P2002307119,48,152.72,FUEL,13/02/14,
800029368,ALLSTAR BUSINESS SOLUTIONS LTD,P2002307119,49,148.00,FUEL,13/02/14,
800029368,ALLSTAR BUSINESS SOLUTIONS LTD,P2002307119,50,145.97,FUEL,13/02/14,
800029368,ALLSTAR BUSINESS SOLUTIONS LTD,P2002307119,51,145.11,FUEL,13/02/14,
800029368,ALLSTAR BUSINESS SOLUTIONS LTD,P2002307119,52,136.78,FUEL,13/02/14,
800029368,ALLSTAR BUSINESS SOLUTIONS LTD,P2002307119,53,133.28,FUEL,13/02/14,
800029368,ALLSTAR BUSINESS SOLUTIONS LTD,P2002307119,54,132.45,FUEL,13/02/14,
800029368,ALLSTAR BUSINESS SOLUTIONS LTD,P2002307119,55,131.84,FUEL,13/02/14,
800029368,ALLSTAR BUSINESS SOLUTIONS LTD,P2002307119,56,131.51,FUEL,13/02/14,
800029368,ALLSTAR BUSINESS SOLUTIONS LTD,P2002307119,57,131.03,FUEL,13/02/14,
800029368,ALLSTAR BUSINESS SOLUTIONS LTD,P2002307119,58,130.42,FUEL,13/02/14,
800029368,ALLSTAR BUSINESS SOLUTIONS LTD,P2002307119,59,129.40,FUEL,13/02/14,
800029368,ALLSTAR BUSINESS SOLUTIONS LTD,P2002307119,60,128.77,FUEL,13/02/14,
800029368,ALLSTAR BUSINESS SOLUTIONS LTD,P2002307119,61,128.04,FUEL,13/02/14,
800029368,ALLSTAR BUSINESS SOLUTIONS LTD,P2002307119,62,124.89,FUEL,13/02/14,
800029368,ALLSTAR BUSINESS SOLUTIONS LTD,P2002307119,63,124.50,FUEL,13/02/14,
800029368,ALLSTAR BUSINESS SOLUTIONS LTD,P2002307119,64,124.47,FUEL,13/02/14,
800029368,ALLSTAR BUSINESS SOLUTIONS LTD,P2002307119,65,123.47,FUEL,13/02/14,
800029368,ALLSTAR BUSINESS SOLUTIONS LTD,P2002307119,66,122.61,FUEL,13/02/14,
800029368,ALLSTAR BUSINESS SOLUTIONS LTD,P2002307119,67,120.52,FUEL,13/02/14,
800029368,ALLSTAR BUSINESS SOLUTIONS LTD,P2002307119,68,119.04,FUEL,13/02/14,
800029368,ALLSTAR BUSINESS SOLUTIONS LTD,P2002307119,69,114.20,FUEL,13/02/14,
800029368,ALLSTAR BUSINESS SOLUTIONS LTD,P2002307119,70,114.01,FUEL,13/02/14,
800029368,ALLSTAR BUSINESS SOLUTIONS LTD,P2002307119,71,113.01,FUEL,13/02/14,
800029368,ALLSTAR BUSINESS SOLUTIONS LTD,P2002307119,72,112.39,FUEL,13/02/14,
800029368,ALLSTAR BUSINESS SOLUTIONS LTD,P2002307119,73,105.92,FUEL,13/02/14,
800029368,ALLSTAR BUSINESS SOLUTIONS LTD,P2002307119,74,105.77,FUEL,13/02/14,
800029368,ALLSTAR BUSINESS SOLUTIONS LTD,P2002307119,75,102.40,FUEL,13/02/14,
800029368,ALLSTAR BUSINESS SOLUTIONS LTD,P2002307119,76,93.06,FUEL,13/02/14,
800029368,ALLSTAR BUSINESS SOLUTIONS LTD,P2002307119,77,90.58,FUEL,13/02/14,
800029368,ALLSTAR BUSINESS SOLUTIONS LTD,P2002307119,78,89.81,FUEL,13/02/14,
800029368,ALLSTAR BUSINESS SOLUTIONS LTD,P2002307119,79,87.37,FUEL,13/02/14,
800029368,ALLSTAR BUSINESS SOLUTIONS LTD,P2002307119,80,86.13,FUEL,13/02/14,
800029368,ALLSTAR BUSINESS SOLUTIONS LTD,P2002307119,81,85.31,FUEL,13/02/14,
800029368,ALLSTAR BUSINESS SOLUTIONS LTD,P2002307119,82,82.44,FUEL,13/02/14,
800029368,ALLSTAR BUSINESS SOLUTIONS LTD,P2002307119,83,82.38,FUEL,13/02/14,
800029368,ALLSTAR BUSINESS SOLUTIONS LTD,P2002307119,84,78.72,FUEL,13/02/14,
800029368,ALLSTAR BUSINESS SOLUTIONS LTD,P2002307119,85,76.35,FUEL,13/02/14,
800029368,ALLSTAR BUSINESS SOLUTIONS LTD,P2002307119,86,74.72,FUEL,13/02/14,
800029368,ALLSTAR BUSINESS SOLUTIONS LTD,P2002307119,87,73.95,FUEL,13/02/14,
800029368,ALLSTAR BUSINESS SOLUTIONS LTD,P2002307119,88,73.14,FUEL,13/02/14,
800029368,ALLSTAR BUSINESS SOLUTIONS LTD,P2002307119,89,66.96,FUEL,13/02/14,
800029368,ALLSTAR BUSINESS SOLUTIONS LTD,P2002307119,90,65.83,FUEL,13/02/14,
800029368,ALLSTAR BUSINESS SOLUTIONS LTD,P2002307119,91,62.76,FUEL,13/02/14,
800029368,ALLSTAR BUSINESS SOLUTIONS LTD,P2002307119,92,61.82,FUEL,13/02/14,
800029368,ALLSTAR BUSINESS SOLUTIONS LTD,P2002307119,93,57.50,FUEL,13/02/14,
800029368,ALLSTAR BUSINESS SOLUTIONS LTD,P2002307119,94,55.47,FUEL,13/02/14,
800029368,ALLSTAR BUSINESS SOLUTIONS LTD,P2002307119,95,48.53,FUEL,13/02/14,
800029368,ALLSTAR BUSINESS SOLUTIONS LTD,P2002307119,96,47.43,FUEL,13/02/14,
800029368,ALLSTAR BUSINESS SOLUTIONS LTD,P2002307119,97,35.22,FUEL,13/02/14,
800029368,ALLSTAR BUSINESS SOLUTIONS LTD,P2002307119,98,34.85,FUEL,13/02/14,
800029368,ALLSTAR BUSINESS SOLUTIONS LTD,P2002307119,99,34.51,FUEL,13/02/14,
800029368,ALLSTAR BUSINESS SOLUTIONS LTD,P2002307119,100,25.12,FUEL,13/02/14,
800029368,ALLSTAR BUSINESS SOLUTIONS LTD,P2002307119,101,7.13,FUEL,13/02/14,
100214C,HEALTH MANAGEMENT LIMITED=====,0000108688,1,"6,261.00",MEDICAL APPEALS,17/02/14,"6,261.00"
120214C,BODILL PARKER (1922) LIMITED==,01300,1,395.00,REPAIR & MAINTENANCE,17/02/14,450.00
120214C,BODILL PARKER (1922) LIMITED==,01300,2,55.00,REPAIR & MAINTENANCE,17/02/14,
120214C,OPERATIONAL RESEARCH IN HEALTH,08Y/LFB1/41,1,"8,200.00",CONSULTANTS,17/02/14,"8,200.00"
120214C,OPERATIONAL RESEARCH IN HEALTH,09Y/LFBD3/2,1,"8,050.00",CONSULTANTS,17/02/14,"8,050.00"
120214E,CARILLION COMMUNICATIONS LTD==,1011969,1,450.00,TACTICAL DAY TO DAY,17/02/14,450.00
120214E,*SPRUE SAFETY PRODUCTS LTD====,1055313,1,"1,483.20",FIRE DETECTORS,17/02/14,"1,483.20"
120214E,*SPRUE SAFETY PRODUCTS LTD====,1055330,1,"1,483.20",FIRE DETECTORS,17/02/14,"1,483.20"
120214C,CEDAFORCE LTD=================,11787,1,"2,227.20",CATERING FIXTURES,17/02/14,"2,227.20"
800029267,*NPS (SHOES) LTD,12708,1,30.05,CLOTHING,17/02/14,"1,690.00"
800029267,*NPS (SHOES) LTD,12708,2,30.05,CLOTHING,17/02/14,
800029267,*NPS (SHOES) LTD,12708,3,30.05,CLOTHING,17/02/14,
800029267,*NPS (SHOES) LTD,12708,4,30.05,CLOTHING,17/02/14,
800029267,*NPS (SHOES) LTD,12708,5,30.05,CLOTHING,17/02/14,
800029267,*NPS (SHOES) LTD,12708,6,30.05,CLOTHING,17/02/14,
800029267,*NPS (SHOES) LTD,12708,7,30.05,CLOTHING,17/02/14,
800029267,*NPS (SHOES) LTD,12708,8,30.05,CLOTHING,17/02/14,
800029267,*NPS (SHOES) LTD,12708,9,29.45,CLOTHING,17/02/14,
800029267,*NPS (SHOES) LTD,12708,10,29.45,CLOTHING,17/02/14,
800029267,*NPS (SHOES) LTD,12708,11,29.45,CLOTHING,17/02/14,
800029267,*NPS (SHOES) LTD,12708,12,29.45,CLOTHING,17/02/14,
800029267,*NPS (SHOES) LTD,12708,13,29.45,CLOTHING,17/02/14,
800029267,*NPS (SHOES) LTD,12708,14,29.45,CLOTHING,17/02/14,
800029267,*NPS (SHOES) LTD,12708,15,29.45,CLOTHING,17/02/14,
800029267,*NPS (SHOES) LTD,12708,16,29.45,CLOTHING,17/02/14,
800029267,*NPS (SHOES) LTD,12708,17,29.45,CLOTHING,17/02/14,
800029267,*NPS (SHOES) LTD,12708,18,29.45,CLOTHING,17/02/14,
800029267,*NPS (SHOES) LTD,12708,19,29.45,CLOTHING,17/02/14,
800029267,*NPS (SHOES) LTD,12708,20,29.45,CLOTHING,17/02/14,
800029267,*NPS (SHOES) LTD,12708,21,29.45,CLOTHING,17/02/14,
800029267,*NPS (SHOES) LTD,12708,22,29.45,CLOTHING,17/02/14,
800029267,*NPS (SHOES) LTD,12708,23,29.45,CLOTHING,17/02/14,
800029267,*NPS (SHOES) LTD,12708,24,29.45,CLOTHING,17/02/14,
800029267,*NPS (SHOES) LTD,12708,25,29.45,CLOTHING,17/02/14,
800029267,*NPS (SHOES) LTD,12708,26,41.10,CLOTHING,17/02/14,
800029267,*NPS (SHOES) LTD,12708,27,41.10,CLOTHING,17/02/14,
800029267,*NPS (SHOES) LTD,12708,28,30.05,CLOTHING,17/02/14,
800029267,*NPS (SHOES) LTD,12708,29,30.05,CLOTHING,17/02/14,
800029267,*NPS (SHOES) LTD,12708,30,30.05,CLOTHING,17/02/14,
800029267,*NPS (SHOES) LTD,12708,31,30.05,CLOTHING,17/02/14,
800029267,*NPS (SHOES) LTD,12708,32,30.05,CLOTHING,17/02/14,
800029267,*NPS (SHOES) LTD,12708,33,30.05,CLOTHING,17/02/14,
800029267,*NPS (SHOES) LTD,12708,34,30.05,CLOTHING,17/02/14,
800029267,*NPS (SHOES) LTD,12708,35,30.05,CLOTHING,17/02/14,
800029267,*NPS (SHOES) LTD,12708,36,30.05,CLOTHING,17/02/14,
800029267,*NPS (SHOES) LTD,12708,37,30.05,CLOTHING,17/02/14,
800029267,*NPS (SHOES) LTD,12708,38,30.05,CLOTHING,17/02/14,
800029267,*NPS (SHOES) LTD,12708,39,30.05,CLOTHING,17/02/14,
800029267,*NPS (SHOES) LTD,12708,40,29.45,CLOTHING,17/02/14,
800029267,*NPS (SHOES) LTD,12708,41,29.45,CLOTHING,17/02/14,
800029267,*NPS (SHOES) LTD,12708,42,29.45,CLOTHING,17/02/14,
800029267,*NPS (SHOES) LTD,12708,43,29.45,CLOTHING,17/02/14,
800029267,*NPS (SHOES) LTD,12708,44,29.45,CLOTHING,17/02/14,
800029267,*NPS (SHOES) LTD,12708,45,29.45,CLOTHING,17/02/14,
800029267,*NPS (SHOES) LTD,12708,46,29.45,CLOTHING,17/02/14,
800029267,*NPS (SHOES) LTD,12708,47,29.45,CLOTHING,17/02/14,
800029267,*NPS (SHOES) LTD,12708,48,29.45,CLOTHING,17/02/14,
800029267,*NPS (SHOES) LTD,12708,49,29.45,CLOTHING,17/02/14,
800029267,*NPS (SHOES) LTD,12708,50,29.45,CLOTHING,17/02/14,
800029267,*NPS (SHOES) LTD,12708,51,29.45,CLOTHING,17/02/14,
800029267,*NPS (SHOES) LTD,12708,52,29.45,CLOTHING,17/02/14,
800029267,*NPS (SHOES) LTD,12708,53,41.10,CLOTHING,17/02/14,
800029267,*NPS (SHOES) LTD,12708,54,41.10,CLOTHING,17/02/14,
800029267,*NPS (SHOES) LTD,12708,55,41.10,CLOTHING,17/02/14,
060214C,ATKINS LIMITED================,13048548,1,"47,078.25",MAINTENANCE & SUPPORT,17/02/14,"47,078.25"
120214E,KIER BUILDING SERV ENGINEERS==,13071183,1,"35,094.92",TACTICAL DAY TO DAY,17/02/14,"75,034.38"
120214E,KIER BUILDING SERV ENGINEERS==,13071183,2,523.32,TACTICAL DAY TO DAY,17/02/14,
120214E,KIER BUILDING SERV ENGINEERS==,13071183,3,"1,745.65",TACTICAL DAY TO DAY,17/02/14,
120214E,KIER BUILDING SERV ENGINEERS==,13071183,4,"1,882.77",TACTICAL DAY TO DAY,17/02/14,
120214E,KIER BUILDING SERV ENGINEERS==,13071183,5,"27,330.83",STRATEGIC (CYCLICAL),17/02/14,
120214E,KIER BUILDING SERV ENGINEERS==,13071183,6,"1,187.39",STRATEGIC (CYCLICAL),17/02/14,
120214E,KIER BUILDING SERV ENGINEERS==,13071183,7,"1,488.35",STRATEGIC (CYCLICAL),17/02/14,
120214E,KIER BUILDING SERV ENGINEERS==,13071183,8,"5,781.15",STRATEGIC (CYCLICAL),17/02/14,
310114F,GREATER LONDON AUTHORITY======,1800003744,1,"13,916.00",GLA GROUP SHARED SERVICES,17/02/14,"13,916.00"
310114F,GREATER LONDON AUTHORITY======,1800003745,1,"13,916.00",GLA GROUP SHARED SERVICES,17/02/14,"13,916.00"
120214C,B NOKES CONTRACTS LTD,2053,1,747.50,STRATEGIC (NON CYCLICAL),17/02/14,747.50
140555,ESSEX & SUFFOLK WATER PLC=====,2247870016T,1,556.26,WATER & SEWERAGE RATES,17/02/14,556.26
120214E,CARPETS & FLOOR COVERS DIRECT=,2452,1,"1,970.70",FIXTURES & FITTINGS,17/02/14,"1,970.70"
120214C,CARPETS & FLOOR COVERS DIRECT=,2466,1,928.96,FIXTURES & FITTINGS,17/02/14,928.96
120214E,ARKAS LIMITED=================,24859,1,822.00,STRATEGIC (CYCLICAL),17/02/14,822.00
120214E,ARKAS LIMITED=================,24865,1,181.00,STRATEGIC (CYCLICAL),17/02/14,845.11
120214E,ARKAS LIMITED=================,24865,2,203.11,STRATEGIC (CYCLICAL),17/02/14,
120214E,ARKAS LIMITED=================,24865,3,181.00,STRATEGIC (CYCLICAL),17/02/14,
120214E,ARKAS LIMITED=================,24865,4,280.00,STRATEGIC (CYCLICAL),17/02/14,
120214E,ARKAS LIMITED=================,24866,1,197.50,STRATEGIC (CYCLICAL),17/02/14,808.30
120214E,ARKAS LIMITED=================,24866,2,215.80,STRATEGIC (CYCLICAL),17/02/14,
120214E,ARKAS LIMITED=================,24866,3,197.50,TACTICAL DAY TO DAY,17/02/14,
120214E,ARKAS LIMITED=================,24866,4,197.50,STRATEGIC (CYCLICAL),17/02/14,
120214E,ARKAS LIMITED=================,24868,1,530.08,STRATEGIC (CYCLICAL),17/02/14,"1,205.08"
120214E,ARKAS LIMITED=================,24868,2,280.00,TACTICAL DAY TO DAY,17/02/14,
120214E,ARKAS LIMITED=================,24868,3,181.00,STRATEGIC (CYCLICAL),17/02/14,
120214E,ARKAS LIMITED=================,24868,4,214.00,STRATEGIC (CYCLICAL),17/02/14,
120214C,ARKAS LIMITED=================,24927,1,199.50,STRATEGIC (NON CYCLICAL),17/02/14,441.75
120214C,ARKAS LIMITED=================,24927,2,242.25,STRATEGIC (NON CYCLICAL),17/02/14,
120214E,ARKAS LIMITED=================,24928,1,413.25,STRATEGIC (NON CYCLICAL),17/02/14,"1,353.18"
120214E,ARKAS LIMITED=================,24928,2,159.20,STRATEGIC (NON CYCLICAL),17/02/14,
120214E,ARKAS LIMITED=================,24928,3,327.00,STRATEGIC (NON CYCLICAL),17/02/14,
120214E,ARKAS LIMITED=================,24928,4,220.99,STRATEGIC (NON CYCLICAL),17/02/14,
120214E,ARKAS LIMITED=================,24928,5,232.74,STRATEGIC (NON CYCLICAL),17/02/14,
120214C,ARKAS LIMITED=================,24929,1,122.35,STRATEGIC (NON CYCLICAL),17/02/14,"1,908.49"
120214C,ARKAS LIMITED=================,24929,2,93.50,STRATEGIC (NON CYCLICAL),17/02/14,
120214C,ARKAS LIMITED=================,24929,3,89.79,STRATEGIC (NON CYCLICAL),17/02/14,
120214C,ARKAS LIMITED=================,24929,4,144.99,STRATEGIC (NON CYCLICAL),17/02/14,
120214C,ARKAS LIMITED=================,24929,5,227.35,STRATEGIC (NON CYCLICAL),17/02/14,
120214C,ARKAS LIMITED=================,24929,6,268.53,STRATEGIC (NON CYCLICAL),17/02/14,
120214C,ARKAS LIMITED=================,24929,7,126.03,STRATEGIC (NON CYCLICAL),17/02/14,
120214C,ARKAS LIMITED=================,24929,8,342.00,STRATEGIC (NON CYCLICAL),17/02/14,
120214C,ARKAS LIMITED=================,24929,9,173.10,STRATEGIC (NON CYCLICAL),17/02/14,
120214C,ARKAS LIMITED=================,24929,10,320.85,STRATEGIC (NON CYCLICAL),17/02/14,
120214E,ARKAS LIMITED=================,24930,1,142.50,STRATEGIC (NON CYCLICAL),17/02/14,"1,656.08"
120214E,ARKAS LIMITED=================,24930,2,142.50,STRATEGIC (NON CYCLICAL),17/02/14,
120214E,ARKAS LIMITED=================,24930,3,865.78,STRATEGIC (NON CYCLICAL),17/02/14,
120214E,ARKAS LIMITED=================,24930,4,140.85,STRATEGIC (NON CYCLICAL),17/02/14,
120214E,ARKAS LIMITED=================,24930,5,122.35,STRATEGIC (NON CYCLICAL),17/02/14,
120214E,ARKAS LIMITED=================,24930,6,142.35,STRATEGIC (NON CYCLICAL),17/02/14,
120214E,ARKAS LIMITED=================,24930,7,99.75,STRATEGIC (NON CYCLICAL),17/02/14,
120214C,ARKAS LIMITED=================,24931,1,816.30,STRATEGIC (CYCLICAL),17/02/14,"2,335.35"
120214C,ARKAS LIMITED=================,24931,2,214.00,STRATEGIC (CYCLICAL),17/02/14,
120214C,ARKAS LIMITED=================,24931,3,970.52,STRATEGIC (CYCLICAL),17/02/14,
120214C,ARKAS LIMITED=================,24931,4,334.53,STRATEGIC (CYCLICAL),17/02/14,
120214C,ARKAS LIMITED=================,24932,1,307.74,STRATEGIC (CYCLICAL),17/02/14,"1,048.74"
120214C,ARKAS LIMITED=================,24932,2,346.00,STRATEGIC (CYCLICAL),17/02/14,
120214C,ARKAS LIMITED=================,24932,3,214.00,STRATEGIC (CYCLICAL),17/02/14,
120214C,ARKAS LIMITED=================,24932,4,181.00,STRATEGIC (CYCLICAL),17/02/14,
120214C,ARKAS LIMITED=================,24933,1,181.00,STRATEGIC (CYCLICAL),17/02/14,969.49
120214C,ARKAS LIMITED=================,24933,2,280.00,STRATEGIC (CYCLICAL),17/02/14,
120214C,ARKAS LIMITED=================,24933,3,225.24,STRATEGIC (CYCLICAL),17/02/14,
120214C,ARKAS LIMITED=================,24933,4,283.25,STRATEGIC (CYCLICAL),17/02/14,
120214C,ARKAS LIMITED=================,24934,1,321.56,TACTICAL DAY TO DAY,17/02/14,"1,160.62"
120214C,ARKAS LIMITED=================,24934,2,257.37,TACTICAL DAY TO DAY,17/02/14,
120214C,ARKAS LIMITED=================,24934,3,384.19,STRATEGIC (CYCLICAL),17/02/14,
120214C,ARKAS LIMITED=================,24934,4,197.50,TACTICAL DAY TO DAY,17/02/14,
120214C,ARKAS LIMITED=================,24937,1,"2,860.00",STRATEGIC (NON CYCLICAL),17/02/14,"2,860.00"
800029356,ADECCO UK LIMITED=============,26685544,1,385.70,FRS STAFF AGENCY,17/02/14,385.70
800029357,ADECCO UK LIMITED=============,26685545,1,385.70,FRS STAFF AGENCY,17/02/14,385.70
120214C,ARTIC BUILDING SERVICES LTD,33509,1,"21,787.08",DEVELOPMENT  EXPENSES-CONTRACT,17/02/14,"21,787.08"
140555,FOCUS & VISION TECHNOLOGY LTD,38646,1,266.46,MEDICAL EXPENSES CLAIMS,17/02/14,266.46
140555,FOCUS & VISION TECHNOLOGY LTD,38659,1,662.51,MEDICAL EXPENSES CLAIMS,17/02/14,662.51
140555,FOCUS & VISION TECHNOLOGY LTD,38663,1,351.47,MEDICAL EXPENSES CLAIMS,17/02/14,351.47
140555,THAMES WATER UTILITIES LTD====,42153-20857,1,"1,367.11",WATER & SEWERAGE RATES,17/02/14,"1,367.11"
120214C,FAHEY BUILDERS LTD============,5184,1,"9,660.00",STRATEGIC (NON CYCLICAL),17/02/14,"9,660.00"
120214C,CORE SURVEYSLTD===============,5404,1,170.00,ASBESTOS,17/02/14,340.00
120214C,CORE SURVEYSLTD===============,5404,2,170.00,ASBESTOS,17/02/14,
120214E,URS SCOTT WILSON LIMITED,5775735,1,578.87,PROF FEES-MISCELLANEOUS,17/02/14,578.87
140555,DEFENCE BUSINESS SERVICES,7351021,1,"20,280.00",HIRE OF FACILITIES,17/02/14,"20,280.00"
140557,MISS BO-EUN JUNG==============,8032,1,630.00,PROFESSIONAL FEES ENFORCEMENT,17/02/14,630.00
140557,MISS BO-EUN JUNG==============,8516,1,"1,050.00",PROFESSIONAL FEES ENFORCEMENT,17/02/14,"1,050.00"
040214F,COLLEGE OF POLICING,90011767,1,400.00,PROFESSIONAL DEVELOPMENT,17/02/14,400.00
120214E,MSA (BRITAIN) LIMITED=========,97194654,1,64.00,CLOTHING,17/02/14,320.00
120214E,MSA (BRITAIN) LIMITED=========,97194654,2,64.00,CLOTHING,17/02/14,
120214E,MSA (BRITAIN) LIMITED=========,97194654,3,64.00,CLOTHING,17/02/14,
120214E,MSA (BRITAIN) LIMITED=========,97194654,4,64.00,CLOTHING,17/02/14,
120214E,MSA (BRITAIN) LIMITED=========,97194654,5,64.00,CLOTHING,17/02/14,
050214G,FUTURE FIT TRAINING LIMITED,ACFO3399,1,650.83,PROFESSIONAL DEVELOPMENT,17/02/14,650.83
040214F,MORRISEY ELECTRICAL & BUILDING,BM/DEPTFORD/1,1,"13,450.00",DEVELOPMENT  EXPENSES-CONTRACT,17/02/14,"13,450.00"
120214C,E&S B DAVIS LTD,DAV/48217,1,360.00,OPERATIONAL EQUIP-PURCHASE,17/02/14,360.00
120214E,KIER BUILDING SERV ENGINEERS==,F00042089,1,"3,130.00",TACTICAL DAY TO DAY,17/02/14,"3,313.00"
120214E,KIER BUILDING SERV ENGINEERS==,F00042089,2,183.00,TACTICAL DAY TO DAY,17/02/14,
120214E,ERNST AND YOUNG,GB1010060639,1,"22,494.00",EXTERNAL AUDIT,17/02/14,"22,494.00"
120214E,PULSE FITNESS LTD,IN019917,1,"1,443.51",GYM EQUIPMENT,17/02/14,"1,443.51"
120214E,PULSE FITNESS LTD,IN019918,1,"1,443.51",GYM EQUIPMENT,17/02/14,"1,443.51"
120214E,PULSE FITNESS LTD,IN019919,1,"1,443.51",GYM EQUIPMENT,17/02/14,"1,443.51"
120214E,PULSE FITNESS LTD,IN019920,1,"1,443.51",GYM EQUIPMENT,17/02/14,"1,443.51"
120214E,PULSE FITNESS LTD,IN019921,1,"2,309.18",GYM EQUIPMENT,17/02/14,"2,309.18"
120214E,PULSE FITNESS LTD,IN019922,1,"2,309.18",GYM EQUIPMENT,17/02/14,"2,309.18"
120214E,PULSE FITNESS LTD,IN019923,1,"1,443.51",GYM EQUIPMENT,17/02/14,"1,443.51"
120214E,PULSE FITNESS LTD,IN019924,1,"1,443.51",GYM EQUIPMENT,17/02/14,"1,443.51"
120214E,PULSE FITNESS LTD,IN019925,1,"2,309.18",GYM EQUIPMENT,17/02/14,"2,309.18"
120214C,PULSE FITNESS LTD,IN019926,1,"2,309.18",GYM EQUIPMENT,17/02/14,"2,309.18"
120214E,PULSE FITNESS LTD,IN019927,1,"2,309.18",GYM EQUIPMENT,17/02/14,"2,309.18"
120214E,PULSE FITNESS LTD,IN019928,1,"1,443.51",GYM EQUIPMENT,17/02/14,"1,443.51"
120214E,PULSE FITNESS LTD,IN019983,1,"2,309.18",GYM EQUIPMENT,17/02/14,"2,309.18"
120214E,PULSE FITNESS LTD,IN019984,1,"1,443.51",GYM EQUIPMENT,17/02/14,"3,752.69"
120214E,PULSE FITNESS LTD,IN019984,2,"2,309.18",GYM EQUIPMENT,17/02/14,
120214E,PULSE FITNESS LTD,IN019985,1,"2,309.18",GYM EQUIPMENT,17/02/14,"2,309.18"
120214E,PULSE FITNESS LTD,IN09982,1,"1,081.34",GYM EQUIPMENT,17/02/14,"1,081.34"
120214C,KCOM GROUP====================,INV0226546,1,724.00,STRATEGIC (NON CYCLICAL),17/02/14,724.00
902377,SCHUR SYSTEMS LTD.,LFB-03022014,1,"5,868.86",PROFESSIONAL DEVELOPMENT,17/02/14,"5,868.86"
120214C,E&S B DAVIS LTD,LTD/47446,1,360.00,OPERATIONAL EQUIP-PURCHASE,17/02/14,360.00
120214C,COFELY WORKPLACE LIMITED,M126696,1,"2,685.45",STRATEGIC (NON CYCLICAL),17/02/14,"16,112.70"
120214C,COFELY WORKPLACE LIMITED,M126696,2,"2,685.45",STRATEGIC (NON CYCLICAL),17/02/14,
120214C,COFELY WORKPLACE LIMITED,M126696,3,"2,685.45",STRATEGIC (NON CYCLICAL),17/02/14,
120214C,COFELY WORKPLACE LIMITED,M126696,4,"2,685.45",STRATEGIC (NON CYCLICAL),17/02/14,
120214C,COFELY WORKPLACE LIMITED,M126696,5,"2,685.45",STRATEGIC (NON CYCLICAL),17/02/14,
120214C,COFELY WORKPLACE LIMITED,M126696,6,"2,685.45",STRATEGIC (NON CYCLICAL),17/02/14,
120214C,PHOENIX SOFTWARE LTD==========,OP/I7118299,1,"4,250.00",MAINTENANCE & SUPPORT,17/02/14,"4,750.00"
120214C,PHOENIX SOFTWARE LTD==========,OP/I7118299,2,500.00,MAINTENANCE & SUPPORT,17/02/14,
120214E,SAFETYNET SOLUTIONS LIMITED===,PSI-0017281,1,650.00,PREMISES SECURITY,17/02/14,658.50
120214E,SAFETYNET SOLUTIONS LIMITED===,PSI-0017281,2,8.50,PREMISES SECURITY,17/02/14,
120214E,PULLMAN MOTORS================,PULL207,1,"2,100.00",OPERATIONAL EQUIP-PURCHASE,17/02/14,"2,100.00"
120214E,PULLMAN MOTORS================,PULL208,1,315.00,MILEAGE CHARGES,17/02/14,315.00
070214G,BLACK AND WHITE TRADING LTD,TR1900,1,599.00,PROFESSIONAL DEVELOPMENT,17/02/14,599.00
060214C,APPLUS LLT,00214,1,"3,750.00",GENERAL,18/02/14,"3,750.00"
701585,THRINGS LLP,8481,1,"15,340.00",CLAIMANT COSTS AGREED,18/02/14,"15,340.00"
100214C,ARTELIA,000000006630,1,"6,599.63",CONSULTANTS,20/02/14,"6,599.63"
170214E,MOOLANDS LTD,00000416,1,"1,732.00",STRATEGIC (NON CYCLICAL),20/02/14,"1,732.00"
170214E,MOOLANDS LTD,00000417,1,"1,260.00",STRATEGIC (NON CYCLICAL),20/02/14,"1,260.00"
170214E,MOOLANDS LTD,00000419,1,"2,097.00",STRATEGIC (NON CYCLICAL),20/02/14,"2,097.00"
170214E,MOOLANDS LTD,00000420,1,"1,000.00",STRATEGIC (NON CYCLICAL),20/02/14,"1,000.00"
170214E,MOOLANDS LTD,00000421,1,"3,000.00",STRATEGIC (NON CYCLICAL),20/02/14,"3,000.00"
170214E,MOOLANDS LTD,00000422,1,"1,500.00",STRATEGIC (NON CYCLICAL),20/02/14,"1,500.00"
140214E,MOOLANDS LTD,00000437,1,750.00,STRATEGIC (NON CYCLICAL),20/02/14,750.00
140214E,MOOLANDS LTD,00000439,1,"1,285.00",STRATEGIC (NON CYCLICAL),20/02/14,"1,285.00"
140214E,GOVNET COMMUNICATIONS=========,0000064293,1,395.00,PROFESSIONAL DEVELOPMENT,20/02/14,395.00
100214C,HEALTH MANAGEMENT LIMITED=====,0000108884,1,"2,180.60",THIRD PARTY REPORTS,20/02/14,"2,180.60"
100214C,HEALTH MANAGEMENT LIMITED=====,0000108885,1,"107,035.75",OHS CONTRACT,20/02/14,"107,035.75"
070214C,*OCS GROUP UK LTD,0000230818,1,"3,977.75",REFRESHMENTS,20/02/14,"3,977.75"
130214C,BRE GLOBAL LTD,0011218287,1,"10,000.00",CONSULTANTS,20/02/14,"10,000.00"
070214C,BRE GLOBAL LTD,0011218288,1,"10,000.00",CONSULTANTS,20/02/14,"10,000.00"
040214F,LYNN WICKINS,0058,1,"1,520.00",PROFESSIONAL SERVICES,20/02/14,"1,520.00"
140214E,GEORGE JONES & SON LTD========,036775,1,"33,116.49",STRATEGIC (NON CYCLICAL),20/02/14,"33,116.49"
140214E,HUNTER APPAREL SOLUTIONS LTD==,056057,1,294.84,UNIFORMS - POMS,20/02/14,"3,123.45"
140214E,HUNTER APPAREL SOLUTIONS LTD==,056057,2,196.56,UNIFORMS - POMS,20/02/14,
140214E,HUNTER APPAREL SOLUTIONS LTD==,056057,3,167.40,UNIFORMS - POMS,20/02/14,
140214E,HUNTER APPAREL SOLUTIONS LTD==,056057,4,158.10,UNIFORMS - POMS,20/02/14,
140214E,HUNTER APPAREL SOLUTIONS LTD==,056057,5,167.40,UNIFORMS - POMS,20/02/14,
140214E,HUNTER APPAREL SOLUTIONS LTD==,056057,6,162.75,UNIFORMS - POMS,20/02/14,
140214E,HUNTER APPAREL SOLUTIONS LTD==,056057,7,167.40,UNIFORMS - POMS,20/02/14,
140214E,HUNTER APPAREL SOLUTIONS LTD==,056057,8,167.40,UNIFORMS - POMS,20/02/14,
140214E,HUNTER APPAREL SOLUTIONS LTD==,056057,9,167.40,UNIFORMS - POMS,20/02/14,
140214E,HUNTER APPAREL SOLUTIONS LTD==,056057,10,491.40,UNIFORMS - POMS,20/02/14,
140214E,HUNTER APPAREL SOLUTIONS LTD==,056057,11,294.84,UNIFORMS - POMS,20/02/14,
140214E,HUNTER APPAREL SOLUTIONS LTD==,056057,12,98.28,UNIFORMS - POMS,20/02/14,
140214E,HUNTER APPAREL SOLUTIONS LTD==,056057,13,491.40,UNIFORMS - POMS,20/02/14,
140214E,HUNTER APPAREL SOLUTIONS LTD==,056057,14,98.28,UNIFORMS - POMS,20/02/14,
170214G,FABTIC LTD,100026,1,"4,300.00",PROFESSIONAL DEVELOPMENT,20/02/14,"4,300.00"
170214G,AFFINITY WATER,101030857,1,714.00,CURRENT HYDRANT COSTS,20/02/14,714.00
170214G,AFFINITY WATER,101030859,1,714.00,CURRENT HYDRANT COSTS,20/02/14,714.00
170214G,AFFINITY WATER,101030864,1,714.00,CURRENT HYDRANT COSTS,20/02/14,714.00
170214G,AFFINITY WATER,101031272,1,403.00,CURRENT HYDRANT COSTS,20/02/14,403.00
170214G,AFFINITY WATER,101031273,1,714.00,CURRENT HYDRANT COSTS,20/02/14,714.00
170214G,AFFINITY WATER,101031274,1,769.00,CURRENT HYDRANT COSTS,20/02/14,769.00
170214G,AFFINITY WATER,101031275,1,714.00,CURRENT HYDRANT COSTS,20/02/14,714.00
170214G,AFFINITY WATER,101031276,1,714.00,CURRENT HYDRANT COSTS,20/02/14,714.00
170214G,AFFINITY WATER,101031287,1,714.00,CURRENT HYDRANT COSTS,20/02/14,714.00
170214G,AFFINITY WATER,101031292,1,769.00,CURRENT HYDRANT COSTS,20/02/14,769.00
170214G,AFFINITY WATER,101031293,1,341.00,CURRENT HYDRANT COSTS,20/02/14,341.00
140214E,AFFINITY WATER,101032784,1,769.00,CURRENT HYDRANT COSTS,20/02/14,769.00
140214E,AFFINITY WATER,101032786,1,769.00,CURRENT HYDRANT COSTS,20/02/14,769.00
140214E,AFFINITY WATER,101032788,1,341.00,CURRENT HYDRANT COSTS,20/02/14,341.00
140214E,AFFINITY WATER,101032789,1,398.00,CURRENT HYDRANT COSTS,20/02/14,398.00
170214G,AFFINITY WATER,101032794,1,714.00,CURRENT HYDRANT COSTS,20/02/14,714.00
170214G,AFFINITY WATER,101032795,1,769.00,CURRENT HYDRANT COSTS,20/02/14,769.00
170214G,AFFINITY WATER,101032797,1,341.00,CURRENT HYDRANT COSTS,20/02/14,341.00
170214G,AFFINITY WATER,101032799,1,398.00,CURRENT HYDRANT COSTS,20/02/14,398.00
170214G,AFFINITY WATER,101032800,1,"1,397.00",CURRENT HYDRANT COSTS,20/02/14,"1,397.00"
170214G,AFFINITY WATER,101032810,1,341.00,CURRENT HYDRANT COSTS,20/02/14,341.00
170214G,AFFINITY WATER,101032811,1,341.00,CURRENT HYDRANT COSTS,20/02/14,341.00
170214G,AFFINITY WATER,101032812,1,341.00,CURRENT HYDRANT COSTS,20/02/14,341.00
170214G,AFFINITY WATER,101032813,1,341.00,CURRENT HYDRANT COSTS,20/02/14,341.00
170214G,AFFINITY WATER,101032814,1,769.00,CURRENT HYDRANT COSTS,20/02/14,769.00
170214G,AFFINITY WATER,101032815,1,341.00,CURRENT HYDRANT COSTS,20/02/14,341.00
170214G,AFFINITY WATER,101032817,1,507.00,CURRENT HYDRANT COSTS,20/02/14,507.00
170214G,AFFINITY WATER,101032818,1,507.00,CURRENT HYDRANT COSTS,20/02/14,507.00
170214G,AFFINITY WATER,101032822,1,341.00,CURRENT HYDRANT COSTS,20/02/14,341.00
170214G,AFFINITY WATER,101032834,1,341.00,CURRENT HYDRANT COSTS,20/02/14,341.00
170214G,AFFINITY WATER,101032835,1,341.00,CURRENT HYDRANT COSTS,20/02/14,341.00
140214F,APTCO,101817,1,300.00,OPERATIONAL EQUIP-PURCHASE,20/02/14,300.00
140214E,*SPRUE SAFETY PRODUCTS LTD====,1055259,1,"1,483.20",FIRE DETECTORS,20/02/14,"1,483.20"
140214E,*SPRUE SAFETY PRODUCTS LTD====,1055325,1,741.60,FIRE DETECTORS,20/02/14,741.60
140214E,*SPRUE SAFETY PRODUCTS LTD====,1055327,1,"1,483.20",FIRE DETECTORS,20/02/14,"1,483.20"
140214E,*SPRUE SAFETY PRODUCTS LTD====,1055354,1,741.60,FIRE DETECTORS,20/02/14,741.60
140214E,*SPRUE SAFETY PRODUCTS LTD====,1055357,1,741.60,FIRE DETECTORS,20/02/14,741.60
140214E,*SPRUE SAFETY PRODUCTS LTD====,1055362,1,"1,483.20",FIRE DETECTORS,20/02/14,"1,483.20"
140214E,*SPRUE SAFETY PRODUCTS LTD====,1055365,1,494.40,FIRE DETECTORS,20/02/14,494.40
140214E,*SPRUE SAFETY PRODUCTS LTD====,1055367,1,741.60,FIRE DETECTORS,20/02/14,741.60
110214E,*SPRUE SAFETY PRODUCTS LTD====,1056941,1,"3,831.60",FIRE DETECTORS,20/02/14,"3,831.60"
060214C,*SPRUE SAFETY PRODUCTS LTD====,1056942,1,440.00,FIRE DETECTORS,20/02/14,"1,760.00"
060214C,*SPRUE SAFETY PRODUCTS LTD====,1056942,2,880.00,FIRE DETECTORS,20/02/14,
060214C,*SPRUE SAFETY PRODUCTS LTD====,1056942,3,440.00,FIRE DETECTORS,20/02/14,
060214C,*SPRUE SAFETY PRODUCTS LTD====,1056943,1,704.00,FIRE DETECTORS,20/02/14,704.00
060214C,*SPRUE SAFETY PRODUCTS LTD====,1056944,1,880.00,FIRE DETECTORS,20/02/14,880.00
060214C,*SPRUE SAFETY PRODUCTS LTD====,1056945,1,"2,472.00",FIRE DETECTORS,20/02/14,"2,472.00"
800029388,*JAMES HUNTER (OUTFITTERS) LTD,107530,1,145.74,CLOTHING,20/02/14,291.48
800029388,*JAMES HUNTER (OUTFITTERS) LTD,107530,2,145.74,CLOTHING,20/02/14,
110214E,VISTA LANDSCAPE MANAGEMENT LTD,119300,1,142.31,GROUNDS MAINTENANCE,20/02/14,"2,944.78"
110214E,VISTA LANDSCAPE MANAGEMENT LTD,119300,2,24.77,GROUNDS MAINTENANCE,20/02/14,
110214E,VISTA LANDSCAPE MANAGEMENT LTD,119300,3,27.29,GROUNDS MAINTENANCE,20/02/14,
110214E,VISTA LANDSCAPE MANAGEMENT LTD,119300,4,30.32,GROUNDS MAINTENANCE,20/02/14,
110214E,VISTA LANDSCAPE MANAGEMENT LTD,119300,5,111.28,GROUNDS MAINTENANCE,20/02/14,
110214E,VISTA LANDSCAPE MANAGEMENT LTD,119300,6,23.48,GROUNDS MAINTENANCE,20/02/14,
110214E,VISTA LANDSCAPE MANAGEMENT LTD,119300,7,31.20,GROUNDS MAINTENANCE,20/02/14,
110214E,VISTA LANDSCAPE MANAGEMENT LTD,119300,8,24.52,GROUNDS MAINTENANCE,20/02/14,
110214E,VISTA LANDSCAPE MANAGEMENT LTD,119300,9,21.11,GROUNDS MAINTENANCE,20/02/14,
110214E,VISTA LANDSCAPE MANAGEMENT LTD,119300,10,21.20,GROUNDS MAINTENANCE,20/02/14,
110214E,VISTA LANDSCAPE MANAGEMENT LTD,119300,11,24.74,GROUNDS MAINTENANCE,20/02/14,
110214E,VISTA LANDSCAPE MANAGEMENT LTD,119300,12,122.19,GROUNDS MAINTENANCE,20/02/14,
110214E,VISTA LANDSCAPE MANAGEMENT LTD,119300,13,20.52,GROUNDS MAINTENANCE,20/02/14,
110214E,VISTA LANDSCAPE MANAGEMENT LTD,119300,14,92.06,GROUNDS MAINTENANCE,20/02/14,
110214E,VISTA LANDSCAPE MANAGEMENT LTD,119300,15,27.21,GROUNDS MAINTENANCE,20/02/14,
110214E,VISTA LANDSCAPE MANAGEMENT LTD,119300,16,23.91,GROUNDS MAINTENANCE,20/02/14,
110214E,VISTA LANDSCAPE MANAGEMENT LTD,119300,17,139.80,GROUNDS MAINTENANCE,20/02/14,
110214E,VISTA LANDSCAPE MANAGEMENT LTD,119300,18,22.33,GROUNDS MAINTENANCE,20/02/14,
110214E,VISTA LANDSCAPE MANAGEMENT LTD,119300,19,23.87,GROUNDS MAINTENANCE,20/02/14,
110214E,VISTA LANDSCAPE MANAGEMENT LTD,119300,20,17.53,GROUNDS MAINTENANCE,20/02/14,
110214E,VISTA LANDSCAPE MANAGEMENT LTD,119300,21,23.00,GROUNDS MAINTENANCE,20/02/14,
110214E,VISTA LANDSCAPE MANAGEMENT LTD,119300,22,23.85,GROUNDS MAINTENANCE,20/02/14,
110214E,VISTA LANDSCAPE MANAGEMENT LTD,119300,23,27.55,GROUNDS MAINTENANCE,20/02/14,
110214E,VISTA LANDSCAPE MANAGEMENT LTD,119300,24,66.27,GROUNDS MAINTENANCE,20/02/14,
110214E,VISTA LANDSCAPE MANAGEMENT LTD,119300,25,21.41,GROUNDS MAINTENANCE,20/02/14,
110214E,VISTA LANDSCAPE MANAGEMENT LTD,119300,26,21.28,GROUNDS MAINTENANCE,20/02/14,
110214E,VISTA LANDSCAPE MANAGEMENT LTD,119300,27,19.18,GROUNDS MAINTENANCE,20/02/14,
110214E,VISTA LANDSCAPE MANAGEMENT LTD,119300,28,89.20,GROUNDS MAINTENANCE,20/02/14,
110214E,VISTA LANDSCAPE MANAGEMENT LTD,119300,29,94.10,GROUNDS MAINTENANCE,20/02/14,
110214E,VISTA LANDSCAPE MANAGEMENT LTD,119300,30,22.58,GROUNDS MAINTENANCE,20/02/14,
110214E,VISTA LANDSCAPE MANAGEMENT LTD,119300,31,278.31,GROUNDS MAINTENANCE,20/02/14,
110214E,VISTA LANDSCAPE MANAGEMENT LTD,119300,32,22.07,GROUNDS MAINTENANCE,20/02/14,
110214E,VISTA LANDSCAPE MANAGEMENT LTD,119300,33,71.29,GROUNDS MAINTENANCE,20/02/14,
110214E,VISTA LANDSCAPE MANAGEMENT LTD,119300,34,20.59,GROUNDS MAINTENANCE,20/02/14,
110214E,VISTA LANDSCAPE MANAGEMENT LTD,119300,35,22.08,GROUNDS MAINTENANCE,20/02/14,
110214E,VISTA LANDSCAPE MANAGEMENT LTD,119300,36,21.40,GROUNDS MAINTENANCE,20/02/14,
110214E,VISTA LANDSCAPE MANAGEMENT LTD,119300,37,88.90,GROUNDS MAINTENANCE,20/02/14,
110214E,VISTA LANDSCAPE MANAGEMENT LTD,119300,38,130.36,GROUNDS MAINTENANCE,20/02/14,
110214E,VISTA LANDSCAPE MANAGEMENT LTD,119300,39,749.82,GROUNDS MAINTENANCE,20/02/14,
110214E,VISTA LANDSCAPE MANAGEMENT LTD,119300,40,70.24,GROUNDS MAINTENANCE,20/02/14,
110214E,VISTA LANDSCAPE MANAGEMENT LTD,119300,41,62.34,GROUNDS MAINTENANCE,20/02/14,
110214E,VISTA LANDSCAPE MANAGEMENT LTD,119300,42,27.32,GROUNDS MAINTENANCE,20/02/14,
140214E,EI WORLD LIMITED,12312,1,820.00,ASSESSMENTS,20/02/14,820.00
170214E,JOHN BURKE ASSOCIATES,14-01/13600,1,"1,620.00",PROF FEES-MISCELLANEOUS,20/02/14,"1,620.00"
140558,THAMES WATER UTILITIES LTD====,1414076262M,1,287.35,WATER & SEWERAGE RATES,20/02/14,287.35
140561,RECOGNISING EXCELLENCE LTD,1491,1,"1,312.50",PROFESSIONAL FEES GENERAL,20/02/14,"1,312.50"
170214G,IRON MOUNTAIN (UK) LTD========,16182310,1,"2,333.48",MAINTENANCE & SUPPORT,20/02/14,"2,333.48"
140214E,DRON & WRIGHT=================,16929,1,840.00,PROFESSIONAL SERVICES,20/02/14,840.00
140559,THAMES WATER UTILITIES LTD====,1863459180A,1,"1,110.33",WATER & SEWERAGE RATES,20/02/14,"1,110.33"
140214E,B NOKES CONTRACTS LTD,2069,1,"2,007.50",STRATEGIC (NON CYCLICAL),20/02/14,"2,007.50"
140214E,B NOKES CONTRACTS LTD,2070,1,"2,749.50",STRATEGIC (NON CYCLICAL),20/02/14,"2,749.50"
140214E,B NOKES CONTRACTS LTD,2072,1,"9,997.25",DEVELOPMENT  EXPENSES-CONTRACT,20/02/14,"9,997.25"
140214E,B NOKES CONTRACTS LTD,2076,1,305.00,TACTICAL DAY TO DAY,20/02/14,305.00
140214E,B NOKES CONTRACTS LTD,2077,1,"5,234.00",STRATEGIC (NON CYCLICAL),20/02/14,"5,234.00"
140214E,B NOKES CONTRACTS LTD,2079,1,"1,333.50",STRATEGIC (NON CYCLICAL),20/02/14,"1,333.50"
140214E,B NOKES CONTRACTS LTD,2080,1,"2,542.00",STRATEGIC (NON CYCLICAL),20/02/14,"2,542.00"
140214E,B NOKES CONTRACTS LTD,2081,1,"4,169.75",STRATEGIC (NON CYCLICAL),20/02/14,"4,169.75"
140561,BENCHMARK BUSINESS TRAINING,228732,1,399.00,PROFESSIONAL DEVELOPMENT,20/02/14,399.00
120214C,VODAFONE LIMITED==============,229642,1,"1,015.00",TELECOMMUNICATIONS,20/02/14,"1,088.98"
120214C,VODAFONE LIMITED==============,229642,2,73.98,TELECOMMUNICATIONS,20/02/14,
800029497,*OCS GROUP UK LTD,230816-03,1,379.50,REFRESHMENTS,20/02/14,379.50
800029554,*OCS GROUP UK LTD,230816-60,1,280.50,REFRESHMENTS,20/02/14,280.50
140561,MISS SARAH LE FEVRE===========,233322,1,"1,283.33",PROFESSIONAL FEES ENFORCEMENT,20/02/14,"1,283.33"
140214E,ARKAS LIMITED=================,24807,1,322.64,STRATEGIC (CYCLICAL),20/02/14,700.14
140214E,ARKAS LIMITED=================,24807,2,196.50,STRATEGIC (CYCLICAL),20/02/14,
140214E,ARKAS LIMITED=================,24807,3,181.00,STRATEGIC (CYCLICAL),20/02/14,
140214F,ARKAS LIMITED=================,24863,1,437.05,TACTICAL DAY TO DAY,20/02/14,"1,849.77"
140214F,ARKAS LIMITED=================,24863,2,400.13,TACTICAL DAY TO DAY,20/02/14,
140214F,ARKAS LIMITED=================,24863,3,424.29,STRATEGIC (CYCLICAL),20/02/14,
140214F,ARKAS LIMITED=================,24863,4,588.30,STRATEGIC (CYCLICAL),20/02/14,
140214E,ARKAS LIMITED=================,24867,1,216.84,STRATEGIC (CYCLICAL),20/02/14,875.34
140214E,ARKAS LIMITED=================,24867,2,230.50,STRATEGIC (CYCLICAL),20/02/14,
140214E,ARKAS LIMITED=================,24867,3,197.50,STRATEGIC (CYCLICAL),20/02/14,
140214E,ARKAS LIMITED=================,24867,4,230.50,STRATEGIC (CYCLICAL),20/02/14,
170214G,CARPETS & FLOOR COVERS DIRECT=,2490,1,"1,812.60",FIXTURES & FITTINGS,20/02/14,"1,812.60"
170214G,CARPETS & FLOOR COVERS DIRECT=,2492,1,"5,094.10",FIXTURES & FITTINGS,20/02/14,"5,094.10"
100214C,PRECISE MEDIA MONITORING LTD==,269096,1,"1,732.06",PRESS OFFICE,20/02/14,"1,732.06"
140214E,SUNDERLAND CITY COUNCIL,2808006175,1,"21,771.44",FIRE AUTHORITIES,20/02/14,"21,771.44"
130214C,BRISTOL UNIFORMS LTD==========,3107082,1,169.44,CLOTHING,20/02/14,300.90
130214C,BRISTOL UNIFORMS LTD==========,3107082,2,131.46,CLOTHING,20/02/14,
170214E,MCGRATH BROS (WASTE CONTROL) L,313753,1,385.00,REFUSE COLLECTION,20/02/14,385.00
170214E,MCGRATH BROS (WASTE CONTROL) L,313758,1,280.00,REFUSE COLLECTION,20/02/14,280.00
070214C,HUNTERS CONTRACTS LIMITED,344957,1,"1,295.00",OFFICE FURNITURE,20/02/14,"1,295.00"
170214E,MACE LIMITED,36915/1113462,1,"3,322.08",STRATEGIC (NON CYCLICAL),20/02/14,"3,322.08"
140558,FOCUS & VISION TECHNOLOGY LTD,38703,1,478.75,MEDICAL EXPENSES CLAIMS,20/02/14,478.75
120214C,COMPUTACENTRE================,3880024075,1,66.00,DAY TO DAY MINOR IMPS,20/02/14,503.00
120214C,COMPUTACENTRE================,3880024075,2,437.00,DAY TO DAY MINOR IMPS,20/02/14,
170214E,SOUTRON LTD===================,"4,580",1,"6,079.00",BOOKS & JOURNALS,20/02/14,"6,079.00"
140552,SOUTHWARK & SOUTHBANK LIMITED,42,1,"1,065.33",RENTS,20/02/14,"1,065.33"
070214C,MITIE SECURITY (LONDON) LTD===,45/545998,1,480.48,PREMISES SECURITY,20/02/14,480.48
070214C,MITIE SECURITY (LONDON) LTD===,45/546004,1,389.98,PREMISES SECURITY,20/02/14,389.98
140214F,SPORTSAFE UK LTD==============,453869,1,255.00,GYM EQUIPMENT,20/02/14,255.00
140214F,SPORTSAFE UK LTD==============,453874,1,260.00,GYM EQUIPMENT,20/02/14,260.00
140214F,SPORTSAFE UK LTD==============,453876,1,270.00,GYM EQUIPMENT,20/02/14,270.00
140214E,SPORTSAFE UK LTD==============,453905,1,285.00,GYM EQUIPMENT,20/02/14,285.00
140558,THAMES WATER UTILITIES LTD====,5179216119:,1,289.71,WATER & SEWERAGE RATES,20/02/14,289.71
140558,THAMES WATER UTILITIES LTD====,54858-88145:,1,315.65,WATER & SEWERAGE RATES,20/02/14,315.65
100214C,UNIFY,549G6000855964,1,"2,000.00",OFFICE EQUIPMENT,20/02/14,"5,000.00"
100214C,UNIFY,549G6000855964,2,"3,000.00",OFFICE EQUIPMENT,20/02/14,
800029282,*GREENHAM TRADING LTD=========,5629378,1,54.05,HYGIENE,20/02/14,312.73
800029282,*GREENHAM TRADING LTD=========,5629378,2,3.80,HYGIENE,20/02/14,
800029282,*GREENHAM TRADING LTD=========,5629378,3,5.66,HYGIENE,20/02/14,
800029282,*GREENHAM TRADING LTD=========,5629378,4,3.59,HYGIENE,20/02/14,
800029282,*GREENHAM TRADING LTD=========,5629378,5,2.36,HYGIENE,20/02/14,
800029282,*GREENHAM TRADING LTD=========,5629378,6,19.76,HYGIENE,20/02/14,
800029282,*GREENHAM TRADING LTD=========,5629378,7,8.22,HYGIENE,20/02/14,
800029282,*GREENHAM TRADING LTD=========,5629378,8,1.16,HYGIENE,20/02/14,
800029282,*GREENHAM TRADING LTD=========,5629378,9,15.50,HYGIENE,20/02/14,
800029282,*GREENHAM TRADING LTD=========,5629378,10,14.05,HYGIENE,20/02/14,
800029282,*GREENHAM TRADING LTD=========,5629378,11,184.58,HYGIENE,20/02/14,
170214G,URS SCOTT WILSON LIMITED,5775746,1,"8,218.19",PROF FEES-MISCELLANEOUS,20/02/14,"8,218.19"
170214G,URS SCOTT WILSON LIMITED,5776390,1,"1,353.86",PROF FEES-MISCELLANEOUS,20/02/14,"1,353.86"
170214G,URS SCOTT WILSON LIMITED,5776393,1,"2,547.72",PROF FEES-MISCELLANEOUS,20/02/14,"2,547.72"
170214G,URS SCOTT WILSON LIMITED,5779677,1,"2,792.40",PROF FEES-MISCELLANEOUS,20/02/14,"2,792.40"
140558,ESSEX & SUFFOLK WATER PLC=====,603029810013P,1,"1,840.48",WATER & SEWERAGE RATES,20/02/14,"1,840.48"
140558,THAMES WATER UTILITIES LTD====,6108596798;,1,339.58,WATER & SEWERAGE RATES,20/02/14,339.58
140558,THAMES WATER UTILITIES LTD====,65149-96346Z,1,265.11,WATER & SEWERAGE RATES,20/02/14,265.11
140558,THAMES WATER UTILITIES LTD====,68834-98179I,1,602.16,WATER & SEWERAGE RATES,20/02/14,602.16
140214E,SWEETT  UK LTD,7033288,1,"1,285.69",PROF FEES-MISCELLANEOUS,20/02/14,"1,285.69"
140214E,SWEETT  UK LTD,7033289,1,500.00,STRATEGIC (NON CYCLICAL),20/02/14,500.00
140214E,SWEETT  UK LTD,7033290,1,"1,500.00",STRATEGIC (NON CYCLICAL),20/02/14,"1,500.00"
140214E,SWEETT  UK LTD,7033291,1,500.00,STRATEGIC (NON CYCLICAL),20/02/14,500.00
140214E,SWEETT  UK LTD,7033292,1,450.00,STRATEGIC (NON CYCLICAL),20/02/14,450.00
140214E,SWEETT  UK LTD,7033314,1,"1,233.09",PROF FEES-MISCELLANEOUS,20/02/14,"1,233.09"
100214C,SWEETT  UK LTD,7033876,1,"4,195.27",STRATEGIC (NON CYCLICAL),20/02/14,"4,195.27"
140214E,SWEETT  UK LTD,7033880,1,"1,178.71",PROF FEES-MISCELLANEOUS,20/02/14,"1,178.71"
140214E,SWEETT  UK LTD,7033949,1,500.00,STRATEGIC (NON CYCLICAL),20/02/14,500.00
140214E,SWEETT  UK LTD,7033950,1,500.00,STRATEGIC (NON CYCLICAL),20/02/14,500.00
140214E,SWEETT  UK LTD,7034140,1,"1,854.63",PROF FEES-MISCELLANEOUS,20/02/14,"1,854.63"
140214E,SWEETT  UK LTD,7034185,1,450.00,STRATEGIC (NON CYCLICAL),20/02/14,450.00
140561,MR JOHN CAVANAGH==============,73816*,1,"5,250.00",COUNSELS FEES,20/02/14,"5,250.00"
140562,M & M MEDICAL REPORTS,7477/FC,1,600.00,DOCTORS/MEDICAL FEES,20/02/14,600.00
140558,THAMES WATER UTILITIES LTD====,80111-25203A,1,455.13,WATER & SEWERAGE RATES,20/02/14,455.13
140214F,G4S FIRE & SECURITY SYSTEMS UK,850716,1,495.36,PREMISES SECURITY,20/02/14,495.36
170214E,VCG KESTREL LIMITED===========,88710,1,"1,916.00",PRINTING,20/02/14,"1,916.00"
140558,THAMES WATER UTILITIES LTD====,9007430523Z,1,454.73,WATER & SEWERAGE RATES,20/02/14,454.73
130214C,DRAEGER SAFETY UK LIMITED=====,90436572,1,318.25,PROTECTIVE EQUIPT - PARTS,20/02/14,318.25
130214C,DRAEGER SAFETY UK LIMITED=====,9043663,1,"1,418.50",PROTECTIVE EQUIPT - PARTS,20/02/14,"1,418.50"
130214C,DRAEGER SAFETY UK LIMITED=====,90436662,1,397.18,PROTECTIVE EQUIPT - PARTS,20/02/14,397.18
140214F,NORTHGATE INFO SOLUTIONS UK LT,91296614,1,"8,493.27",CAMS CONTRACT,20/02/14,"8,493.27"
140214F,NORTHUMBRIAN WATER LTD========,913077054,1,408.00,CURRENT HYDRANT COSTS,20/02/14,408.00
140214F,NORTHUMBRIAN WATER LTD========,913079340,1,"1,703.37",CURRENT HYDRANT COSTS,20/02/14,"1,703.37"
140214F,NORTHUMBRIAN WATER LTD========,913089656,1,893.00,CURRENT HYDRANT COSTS,20/02/14,893.00
140214F,NORTHUMBRIAN WATER LTD========,913089672,1,893.00,CURRENT HYDRANT COSTS,20/02/14,893.00
140214F,NORTHUMBRIAN WATER LTD========,913093440,1,893.00,CURRENT HYDRANT COSTS,20/02/14,893.00
140214F,NORTHUMBRIAN WATER LTD========,913098329,1,893.00,CURRENT HYDRANT COSTS,20/02/14,893.00
140214F,NORTHUMBRIAN WATER LTD========,913107603,1,424.00,CURRENT HYDRANT COSTS,20/02/14,424.00
140214F,NORTHUMBRIAN WATER LTD========,913107611,1,424.00,CURRENT HYDRANT COSTS,20/02/14,424.00
130214C,BANCROFT HINCHLEY LTD=========,9225,1,454.00,REPAIR & MAINTENANCE,20/02/14,454.00
130214C,BANCROFT HINCHLEY LTD=========,9249,1,454.00,REPAIR & MAINTENANCE,20/02/14,454.00
140214E,NISBETS=======================,9310996/714060,1,529.99,CATERING EQUIPMENT,20/02/14,529.99
140561,MISS MYRIAM STACEY,9314,1,375.00,PROFESSIONAL FEES GENERAL,20/02/14,375.00
100214C,GUARDIAN ALARMS LTD===========,97317,1,281.00,STRATEGIC (CYCLICAL),20/02/14,281.00
140558,THAMES WATER UTILITIES LTD====,97652-75302B,1,721.62,WATER & SEWERAGE RATES,20/02/14,721.62
140214E,ETC VENUES LTD================,AH-78710,1,"1,108.00",PROFESSIONAL DEVELOPMENT,20/02/14,"1,108.00"
170214E,THAMES WATER UTILITIES LTD====,CBA1314964,1,307.00,CURRENT HYDRANT COSTS,20/02/14,307.00
170214E,THAMES WATER UTILITIES LTD====,CBA1314965,1,"1,185.00",CURRENT HYDRANT COSTS,20/02/14,"1,185.00"
170214E,THAMES WATER UTILITIES LTD====,CBA1314969,1,"1,185.00",CURRENT HYDRANT COSTS,20/02/14,"1,185.00"
170214E,THAMES WATER UTILITIES LTD====,CBA1314970,1,"1,185.00",CURRENT HYDRANT COSTS,20/02/14,"1,185.00"
170214E,THAMES WATER UTILITIES LTD====,CBA1314971,1,"1,185.00",CURRENT HYDRANT COSTS,20/02/14,"1,185.00"
170214E,THAMES WATER UTILITIES LTD====,CBA1314974,1,"1,185.00",CURRENT HYDRANT COSTS,20/02/14,"1,185.00"
170214E,THAMES WATER UTILITIES LTD====,CBA1314976,1,477.00,CURRENT HYDRANT COSTS,20/02/14,477.00
170214E,THAMES WATER UTILITIES LTD====,CBA1314980,1,"1,185.00",CURRENT HYDRANT COSTS,20/02/14,"1,185.00"
170214E,THAMES WATER UTILITIES LTD====,CBA1314982,1,"1,185.00",CURRENT HYDRANT COSTS,20/02/14,"1,185.00"
170214E,THAMES WATER UTILITIES LTD====,CBA1314984,1,307.00,CURRENT HYDRANT COSTS,20/02/14,307.00
170214E,THAMES WATER UTILITIES LTD====,CBA1314986,1,307.00,CURRENT HYDRANT COSTS,20/02/14,307.00
170214E,THAMES WATER UTILITIES LTD====,CBA1314987,1,"1,185.00",CURRENT HYDRANT COSTS,20/02/14,"1,185.00"
170214E,THAMES WATER UTILITIES LTD====,CBA1314988,1,"1,185.00",CURRENT HYDRANT COSTS,20/02/14,"1,185.00"
170214E,THAMES WATER UTILITIES LTD====,CBA1314990,1,"1,185.00",CURRENT HYDRANT COSTS,20/02/14,"1,185.00"
170214E,THAMES WATER UTILITIES LTD====,CBA1314992,1,"1,185.00",CURRENT HYDRANT COSTS,20/02/14,"1,185.00"
170214E,THAMES WATER UTILITIES LTD====,CBA1315001,1,"1,185.00",CURRENT HYDRANT COSTS,20/02/14,"1,185.00"
170214E,THAMES WATER UTILITIES LTD====,CBA1315006,1,"1,185.00",CURRENT HYDRANT COSTS,20/02/14,"1,185.00"
170214E,THAMES WATER UTILITIES LTD====,CBA1315007,1,"1,185.00",CURRENT HYDRANT COSTS,20/02/14,"1,185.00"
170214E,THAMES WATER UTILITIES LTD====,CBA1400577,1,"1,082.00",CURRENT HYDRANT COSTS,20/02/14,"1,082.00"
170214E,THAMES WATER UTILITIES LTD====,CBA1400578,1,"1,082.00",CURRENT HYDRANT COSTS,20/02/14,"1,082.00"
170214E,THAMES WATER UTILITIES LTD====,CBA1400581,1,"1,185.00",CURRENT HYDRANT COSTS,20/02/14,"1,185.00"
170214E,THAMES WATER UTILITIES LTD====,CBA1400586,1,"1,185.00",CURRENT HYDRANT COSTS,20/02/14,"1,185.00"
170214E,THAMES WATER UTILITIES LTD====,CBA1400588,1,477.00,CURRENT HYDRANT COSTS,20/02/14,477.00
170214E,THAMES WATER UTILITIES LTD====,CBA1400589,1,"1,185.00",CURRENT HYDRANT COSTS,20/02/14,"1,185.00"
170214E,THAMES WATER UTILITIES LTD====,CBA1400590,1,"1,185.00",CURRENT HYDRANT COSTS,20/02/14,"1,185.00"
170214E,THAMES WATER UTILITIES LTD====,CBA1400592,1,"1,082.00",HYDRANTS,20/02/14,"1,082.00"
170214E,THAMES WATER UTILITIES LTD====,CBA1400593,1,477.00,CURRENT HYDRANT COSTS,20/02/14,477.00
170214E,THAMES WATER UTILITIES LTD====,CBA1400594,1,"1,185.00",CURRENT HYDRANT COSTS,20/02/14,"1,185.00"
170214E,THAMES WATER UTILITIES LTD====,CBA1400601,1,"1,120.00",CURRENT HYDRANT COSTS,20/02/14,"1,120.00"
170214E,THAMES WATER UTILITIES LTD====,CBA1400604,1,"1,185.00",CURRENT HYDRANT COSTS,20/02/14,"1,185.00"
170214E,THAMES WATER UTILITIES LTD====,CBA1400605,1,"1,185.00",CURRENT HYDRANT COSTS,20/02/14,"1,185.00"
170214E,THAMES WATER UTILITIES LTD====,CBA1400606,1,"1,185.00",CURRENT HYDRANT COSTS,20/02/14,"1,185.00"
170214E,THAMES WATER UTILITIES LTD====,CBA1400612,1,"1,185.00",CURRENT HYDRANT COSTS,20/02/14,"1,185.00"
170214E,THAMES WATER UTILITIES LTD====,CBA1400617,1,477.00,CURRENT HYDRANT COSTS,20/02/14,477.00
170214E,THAMES WATER UTILITIES LTD====,CBA1400618,1,"1,185.00",CURRENT HYDRANT COSTS,20/02/14,"1,185.00"
170214E,THAMES WATER UTILITIES LTD====,CBA1400822,1,477.00,CURRENT HYDRANT COSTS,20/02/14,477.00
170214G,RADIOCOMS SYSTEMS LIMITED=====,CF274744,1,"1,311.00",ACQUISITIONS,20/02/14,"5,233.20"
170214G,RADIOCOMS SYSTEMS LIMITED=====,CF274744,2,"3,922.20",ACQUISITIONS,20/02/14,
170214E,VOICEPATH,DT7438,1,252.58,MISCELLANEOUS DISBURSEMENTS,20/02/14,252.58
060214C,BAILY GARNER (HEALTH & SAFETY),EL:40852,1,"2,665.00",STRATEGIC (NON CYCLICAL),20/02/14,"2,665.00"
140214E,KIER BUILDING SERV ENGINEERS==,F00045810,1,766.80,STRATEGIC (NON CYCLICAL),20/02/14,766.80
140214E,KIER BUILDING SERV ENGINEERS==,F00045811,1,277.20,STRATEGIC (NON CYCLICAL),20/02/14,277.20
140214E,KIER BUILDING SERV ENGINEERS==,F00045812,1,"1,625.00",STRATEGIC (NON CYCLICAL),20/02/14,"1,625.00"
140214E,KIER BUILDING SERV ENGINEERS==,F00046144,1,939.83,STRATEGIC (CYCLICAL),20/02/14,939.83
140214F,KIER BUILDING SERV ENGINEERS==,F00047147,1,597.95,STRATEGIC (CYCLICAL),20/02/14,597.95
140214E,KIER BUILDING SERV ENGINEERS==,F00047346,1,632.30,STRATEGIC (NON CYCLICAL),20/02/14,632.30
140214E,KIER BUILDING SERV ENGINEERS==,F00047348,1,"2,333.38",STRATEGIC (NON CYCLICAL),20/02/14,"2,333.38"
140214E,KIER BUILDING SERV ENGINEERS==,F00047349,1,488.80,TACTICAL DAY TO DAY,20/02/14,488.80
140214E,KIER BUILDING SERV ENGINEERS==,F00047350,1,"1,143.04",STRATEGIC (NON CYCLICAL),20/02/14,"1,143.04"
030214C,SOUTH WALES FIRE&RESCUE SERVIC,FBINV13-0936,1,"12,410.73",FIRE AUTHORITIES,20/02/14,"12,410.73"
120214E,EXPERIAN=====================,HEX54000473378,1,"27,795.34",CONSULTANTS,20/02/14,"27,795.34"
170214G,ROCOM,I2414566,1,824.10,TELECOMMUNICATIONS,20/02/14,834.05
170214G,ROCOM,I2414566,2,9.95,TELECOMMUNICATIONS,20/02/14,
140214F,QA LIMITED,ICE268363/ICE268364,1,"2,403.50",PROFESSIONAL DEVELOPMENT,20/02/14,"2,403.50"
140214E,CHILDCARE VOUCHERS LTD========,INS08349191 / 295747,1,685.97,CHILDCARE,20/02/14,685.97
140559,JCT600 CONTRACTS LIMITED======,INV00053532,1,301.63,LEASE CAR CHARGES,20/02/14,301.63
140559,JCT600 CONTRACTS LIMITED======,INV00053532,2,-25.35,VAT CAR LEASING,20/02/14,
140559,JCT600 CONTRACTS LIMITED======,INV00053532,3,25.35,LEASE CAR CHARGES,20/02/14,
140558,JCT600 CONTRACTS LIMITED======,INV00053613,1,459.21,LEASE CAR CHARGES,20/02/14,459.21
140558,JCT600 CONTRACTS LIMITED======,INV00053613,2,-40.30,VAT CAR LEASING,20/02/14,
140558,JCT600 CONTRACTS LIMITED======,INV00053613,3,40.30,LEASE CAR CHARGES,20/02/14,
140558,JCT600 CONTRACTS LIMITED======,INV00053614,1,562.19,LEASE CAR CHARGES,20/02/14,562.19
140558,JCT600 CONTRACTS LIMITED======,INV00053614,2,-49.82,VAT CAR LEASING,20/02/14,
140558,JCT600 CONTRACTS LIMITED======,INV00053614,3,49.82,LEASE CAR CHARGES,20/02/14,
140558,JCT600 CONTRACTS LIMITED======,INV00053615,1,490.47,LEASE CAR CHARGES,20/02/14,490.47
140558,JCT600 CONTRACTS LIMITED======,INV00053615,2,-42.68,VAT CAR LEASING,20/02/14,
140558,JCT600 CONTRACTS LIMITED======,INV00053615,3,42.68,LEASE CAR CHARGES,20/02/14,
140558,JCT600 CONTRACTS LIMITED======,INV00053616,1,337.02,LEASE CAR CHARGES,20/02/14,337.02
140558,JCT600 CONTRACTS LIMITED======,INV00053616,2,-28.98,VAT CAR LEASING,20/02/14,
140558,JCT600 CONTRACTS LIMITED======,INV00053616,3,28.98,LEASE CAR CHARGES,20/02/14,
140559,JCT600 CONTRACTS LIMITED======,INV00053617,1,343.36,LEASE CAR CHARGES,20/02/14,343.36
140559,JCT600 CONTRACTS LIMITED======,INV00053617,2,-30.44,VAT CAR LEASING,20/02/14,
140559,JCT600 CONTRACTS LIMITED======,INV00053617,3,30.44,LEASE CAR CHARGES,20/02/14,
140559,JCT600 CONTRACTS LIMITED======,INV00053618,1,354.71,LEASE CAR CHARGES,20/02/14,354.71
140559,JCT600 CONTRACTS LIMITED======,INV00053618,2,-31.43,VAT CAR LEASING,20/02/14,
140559,JCT600 CONTRACTS LIMITED======,INV00053618,3,31.43,LEASE CAR CHARGES,20/02/14,
140559,JCT600 CONTRACTS LIMITED======,INV00053619,1,653.49,LEASE CAR CHARGES,20/02/14,653.49
140559,JCT600 CONTRACTS LIMITED======,INV00053619,2,-60.10,VAT CAR LEASING,20/02/14,
140559,JCT600 CONTRACTS LIMITED======,INV00053619,3,60.10,LEASE CAR CHARGES,20/02/14,
140559,JCT600 CONTRACTS LIMITED======,INV00053620,1,447.09,LEASE CAR CHARGES,20/02/14,447.09
140559,JCT600 CONTRACTS LIMITED======,INV00053620,2,-39.53,VAT CAR LEASING,20/02/14,
140559,JCT600 CONTRACTS LIMITED======,INV00053620,3,39.53,LEASE CAR CHARGES,20/02/14,
140559,JCT600 CONTRACTS LIMITED======,INV00053621,1,462.69,LEASE CAR CHARGES,20/02/14,462.69
140559,JCT600 CONTRACTS LIMITED======,INV00053621,2,-40.48,VAT CAR LEASING,20/02/14,
140559,JCT600 CONTRACTS LIMITED======,INV00053621,3,40.48,LEASE CAR CHARGES,20/02/14,
140559,JCT600 CONTRACTS LIMITED======,INV00053622,1,457.08,LEASE CAR CHARGES,20/02/14,457.08
140559,JCT600 CONTRACTS LIMITED======,INV00053622,2,-40.53,VAT CAR LEASING,20/02/14,
140559,JCT600 CONTRACTS LIMITED======,INV00053622,3,40.53,LEASE CAR CHARGES,20/02/14,
140559,JCT600 CONTRACTS LIMITED======,INV00053623,1,327.48,LEASE CAR CHARGES,20/02/14,327.48
140559,JCT600 CONTRACTS LIMITED======,INV00053623,2,-28.93,VAT CAR LEASING,20/02/14,
140559,JCT600 CONTRACTS LIMITED======,INV00053623,3,28.93,LEASE CAR CHARGES,20/02/14,
140559,JCT600 CONTRACTS LIMITED======,INV00053624,1,366.78,LEASE CAR CHARGES,20/02/14,366.78
140559,JCT600 CONTRACTS LIMITED======,INV00053624,2,-32.68,VAT CAR LEASING,20/02/14,
140559,JCT600 CONTRACTS LIMITED======,INV00053624,3,32.68,LEASE CAR CHARGES,20/02/14,
140559,JCT600 CONTRACTS LIMITED======,INV00053625,1,362.83,LEASE CAR CHARGES,20/02/14,362.83
140559,JCT600 CONTRACTS LIMITED======,INV00053625,2,-33.54,VAT CAR LEASING,20/02/14,
140559,JCT600 CONTRACTS LIMITED======,INV00053625,3,33.54,LEASE CAR CHARGES,20/02/14,
140559,JCT600 CONTRACTS LIMITED======,INV00053629,1,447.63,LEASE CAR CHARGES,20/02/14,447.63
140559,JCT600 CONTRACTS LIMITED======,INV00053629,2,-39.41,VAT CAR LEASING,20/02/14,
140559,JCT600 CONTRACTS LIMITED======,INV00053629,3,39.41,LEASE CAR CHARGES,20/02/14,
170214G,JCT600 CONTRACTS LIMITED======,INV00054973,1,642.88,MILEAGE CHARGES,20/02/14,642.88
140558,LEX AUTOLEASE,IRIN333016,1,693.78,LEASE CAR CHARGES,20/02/14,"4,777.92"
140558,LEX AUTOLEASE,IRIN333016,2,"4,084.14",P/PAYMTS-CAR LEASG-RENTAL,20/02/14,
140558,LEX AUTOLEASE,IRIN333016,3,-422.64,VAT CAR LEASING,20/02/14,
140558,LEX AUTOLEASE,IRIN333016,4,422.64,LEASE CAR CHARGES,20/02/14,
040214F,BENNETT MECHANICAL SERVICES LT,L4966,1,"5,453.80",STRATEGIC (NON CYCLICAL),20/02/14,"5,453.80"
170214E,G4S FIRE & SECURITY SYSTEMS UK,MTN11189,1,"3,013.00",DEVELOPMENT  EXPENSES-CONTRACT,20/02/14,"3,013.00"
800029711,ALLSTAR BUSINESS SOLUTIONS LTD,P2002340649,1,"1,370.31",FUEL,20/02/14,"25,232.62"
800029711,ALLSTAR BUSINESS SOLUTIONS LTD,P2002340649,2,"1,045.20",FUEL,20/02/14,
800029711,ALLSTAR BUSINESS SOLUTIONS LTD,P2002340649,3,825.23,FUEL,20/02/14,
800029711,ALLSTAR BUSINESS SOLUTIONS LTD,P2002340649,4,716.04,FUEL,20/02/14,
800029711,ALLSTAR BUSINESS SOLUTIONS LTD,P2002340649,5,644.08,FUEL,20/02/14,
800029711,ALLSTAR BUSINESS SOLUTIONS LTD,P2002340649,6,625.19,FUEL,20/02/14,
800029711,ALLSTAR BUSINESS SOLUTIONS LTD,P2002340649,7,594.25,FUEL,20/02/14,
800029711,ALLSTAR BUSINESS SOLUTIONS LTD,P2002340649,8,586.64,FUEL,20/02/14,
800029711,ALLSTAR BUSINESS SOLUTIONS LTD,P2002340649,9,519.95,FUEL,20/02/14,
800029711,ALLSTAR BUSINESS SOLUTIONS LTD,P2002340649,10,497.23,FUEL,20/02/14,
800029711,ALLSTAR BUSINESS SOLUTIONS LTD,P2002340649,11,473.89,FUEL,20/02/14,
800029711,ALLSTAR BUSINESS SOLUTIONS LTD,P2002340649,12,455.94,FUEL,20/02/14,
800029711,ALLSTAR BUSINESS SOLUTIONS LTD,P2002340649,13,452.87,FUEL,20/02/14,
800029711,ALLSTAR BUSINESS SOLUTIONS LTD,P2002340649,14,433.25,FUEL,20/02/14,
800029711,ALLSTAR BUSINESS SOLUTIONS LTD,P2002340649,15,406.34,FUEL,20/02/14,
800029711,ALLSTAR BUSINESS SOLUTIONS LTD,P2002340649,16,405.29,FUEL,20/02/14,
800029711,ALLSTAR BUSINESS SOLUTIONS LTD,P2002340649,17,394.63,FUEL,20/02/14,
800029711,ALLSTAR BUSINESS SOLUTIONS LTD,P2002340649,18,374.98,FUEL,20/02/14,
800029711,ALLSTAR BUSINESS SOLUTIONS LTD,P2002340649,19,368.54,FUEL,20/02/14,
800029711,ALLSTAR BUSINESS SOLUTIONS LTD,P2002340649,20,364.71,FUEL,20/02/14,
800029711,ALLSTAR BUSINESS SOLUTIONS LTD,P2002340649,21,337.55,FUEL,20/02/14,
800029711,ALLSTAR BUSINESS SOLUTIONS LTD,P2002340649,22,330.20,FUEL,20/02/14,
800029711,ALLSTAR BUSINESS SOLUTIONS LTD,P2002340649,23,327.39,FUEL,20/02/14,
800029711,ALLSTAR BUSINESS SOLUTIONS LTD,P2002340649,24,323.65,FUEL,20/02/14,
800029711,ALLSTAR BUSINESS SOLUTIONS LTD,P2002340649,25,309.80,FUEL,20/02/14,
800029711,ALLSTAR BUSINESS SOLUTIONS LTD,P2002340649,26,301.17,FUEL,20/02/14,
800029711,ALLSTAR BUSINESS SOLUTIONS LTD,P2002340649,27,298.67,FUEL,20/02/14,
800029711,ALLSTAR BUSINESS SOLUTIONS LTD,P2002340649,28,290.87,FUEL,20/02/14,
800029711,ALLSTAR BUSINESS SOLUTIONS LTD,P2002340649,29,283.61,FUEL,20/02/14,
800029711,ALLSTAR BUSINESS SOLUTIONS LTD,P2002340649,30,282.68,FUEL,20/02/14,
800029711,ALLSTAR BUSINESS SOLUTIONS LTD,P2002340649,31,278.89,FUEL,20/02/14,
800029711,ALLSTAR BUSINESS SOLUTIONS LTD,P2002340649,32,267.99,FUEL,20/02/14,
800029711,ALLSTAR BUSINESS SOLUTIONS LTD,P2002340649,33,257.19,FUEL,20/02/14,
800029711,ALLSTAR BUSINESS SOLUTIONS LTD,P2002340649,34,255.63,FUEL,20/02/14,
800029711,ALLSTAR BUSINESS SOLUTIONS LTD,P2002340649,35,253.87,FUEL,20/02/14,
800029711,ALLSTAR BUSINESS SOLUTIONS LTD,P2002340649,36,248.70,FUEL,20/02/14,
800029711,ALLSTAR BUSINESS SOLUTIONS LTD,P2002340649,37,244.30,FUEL,20/02/14,
800029711,ALLSTAR BUSINESS SOLUTIONS LTD,P2002340649,38,243.13,FUEL,20/02/14,
800029711,ALLSTAR BUSINESS SOLUTIONS LTD,P2002340649,39,240.06,FUEL,20/02/14,
800029711,ALLSTAR BUSINESS SOLUTIONS LTD,P2002340649,40,239.50,FUEL,20/02/14,
800029711,ALLSTAR BUSINESS SOLUTIONS LTD,P2002340649,41,236.18,FUEL,20/02/14,
800029711,ALLSTAR BUSINESS SOLUTIONS LTD,P2002340649,42,228.60,FUEL,20/02/14,
800029711,ALLSTAR BUSINESS SOLUTIONS LTD,P2002340649,43,225.43,FUEL,20/02/14,
800029711,ALLSTAR BUSINESS SOLUTIONS LTD,P2002340649,44,221.66,FUEL,20/02/14,
800029711,ALLSTAR BUSINESS SOLUTIONS LTD,P2002340649,45,221.64,FUEL,20/02/14,
800029711,ALLSTAR BUSINESS SOLUTIONS LTD,P2002340649,46,218.61,FUEL,20/02/14,
800029711,ALLSTAR BUSINESS SOLUTIONS LTD,P2002340649,47,213.59,FUEL,20/02/14,
800029711,ALLSTAR BUSINESS SOLUTIONS LTD,P2002340649,48,212.55,FUEL,20/02/14,
800029711,ALLSTAR BUSINESS SOLUTIONS LTD,P2002340649,49,210.68,FUEL,20/02/14,
800029711,ALLSTAR BUSINESS SOLUTIONS LTD,P2002340649,50,202.18,FUEL,20/02/14,
800029711,ALLSTAR BUSINESS SOLUTIONS LTD,P2002340649,51,201.88,FUEL,20/02/14,
800029711,ALLSTAR BUSINESS SOLUTIONS LTD,P2002340649,52,201.08,FUEL,20/02/14,
800029711,ALLSTAR BUSINESS SOLUTIONS LTD,P2002340649,53,197.39,FUEL,20/02/14,
800029711,ALLSTAR BUSINESS SOLUTIONS LTD,P2002340649,54,180.19,FUEL,20/02/14,
800029711,ALLSTAR BUSINESS SOLUTIONS LTD,P2002340649,55,179.84,FUEL,20/02/14,
800029711,ALLSTAR BUSINESS SOLUTIONS LTD,P2002340649,56,177.12,FUEL,20/02/14,
800029711,ALLSTAR BUSINESS SOLUTIONS LTD,P2002340649,57,172.26,FUEL,20/02/14,
800029711,ALLSTAR BUSINESS SOLUTIONS LTD,P2002340649,58,165.52,FUEL,20/02/14,
800029711,ALLSTAR BUSINESS SOLUTIONS LTD,P2002340649,59,164.06,FUEL,20/02/14,
800029711,ALLSTAR BUSINESS SOLUTIONS LTD,P2002340649,60,161.24,FUEL,20/02/14,
800029711,ALLSTAR BUSINESS SOLUTIONS LTD,P2002340649,61,159.79,FUEL,20/02/14,
800029711,ALLSTAR BUSINESS SOLUTIONS LTD,P2002340649,62,157.03,FUEL,20/02/14,
800029711,ALLSTAR BUSINESS SOLUTIONS LTD,P2002340649,63,156.88,FUEL,20/02/14,
800029711,ALLSTAR BUSINESS SOLUTIONS LTD,P2002340649,64,150.30,FUEL,20/02/14,
800029711,ALLSTAR BUSINESS SOLUTIONS LTD,P2002340649,65,149.11,FUEL,20/02/14,
800029711,ALLSTAR BUSINESS SOLUTIONS LTD,P2002340649,66,148.46,FUEL,20/02/14,
800029711,ALLSTAR BUSINESS SOLUTIONS LTD,P2002340649,67,143.95,FUEL,20/02/14,
800029711,ALLSTAR BUSINESS SOLUTIONS LTD,P2002340649,68,140.70,FUEL,20/02/14,
800029711,ALLSTAR BUSINESS SOLUTIONS LTD,P2002340649,69,140.37,FUEL,20/02/14,
800029711,ALLSTAR BUSINESS SOLUTIONS LTD,P2002340649,70,136.31,FUEL,20/02/14,
800029711,ALLSTAR BUSINESS SOLUTIONS LTD,P2002340649,71,133.48,FUEL,20/02/14,
800029711,ALLSTAR BUSINESS SOLUTIONS LTD,P2002340649,72,132.89,FUEL,20/02/14,
800029711,ALLSTAR BUSINESS SOLUTIONS LTD,P2002340649,73,129.42,FUEL,20/02/14,
800029711,ALLSTAR BUSINESS SOLUTIONS LTD,P2002340649,74,128.01,FUEL,20/02/14,
800029711,ALLSTAR BUSINESS SOLUTIONS LTD,P2002340649,75,123.00,FUEL,20/02/14,
800029711,ALLSTAR BUSINESS SOLUTIONS LTD,P2002340649,76,116.07,FUEL,20/02/14,
800029711,ALLSTAR BUSINESS SOLUTIONS LTD,P2002340649,77,115.87,FUEL,20/02/14,
800029711,ALLSTAR BUSINESS SOLUTIONS LTD,P2002340649,78,114.45,FUEL,20/02/14,
800029711,ALLSTAR BUSINESS SOLUTIONS LTD,P2002340649,79,110.31,FUEL,20/02/14,
800029711,ALLSTAR BUSINESS SOLUTIONS LTD,P2002340649,80,108.18,FUEL,20/02/14,
800029711,ALLSTAR BUSINESS SOLUTIONS LTD,P2002340649,81,101.85,FUEL,20/02/14,
800029711,ALLSTAR BUSINESS SOLUTIONS LTD,P2002340649,82,99.91,FUEL,20/02/14,
800029711,ALLSTAR BUSINESS SOLUTIONS LTD,P2002340649,83,92.42,FUEL,20/02/14,
800029711,ALLSTAR BUSINESS SOLUTIONS LTD,P2002340649,84,92.16,FUEL,20/02/14,
800029711,ALLSTAR BUSINESS SOLUTIONS LTD,P2002340649,85,90.90,FUEL,20/02/14,
800029711,ALLSTAR BUSINESS SOLUTIONS LTD,P2002340649,86,85.23,FUEL,20/02/14,
800029711,ALLSTAR BUSINESS SOLUTIONS LTD,P2002340649,87,79.40,FUEL,20/02/14,
800029711,ALLSTAR BUSINESS SOLUTIONS LTD,P2002340649,88,75.56,FUEL,20/02/14,
800029711,ALLSTAR BUSINESS SOLUTIONS LTD,P2002340649,89,75.02,FUEL,20/02/14,
800029711,ALLSTAR BUSINESS SOLUTIONS LTD,P2002340649,90,71.76,FUEL,20/02/14,
800029711,ALLSTAR BUSINESS SOLUTIONS LTD,P2002340649,91,66.67,FUEL,20/02/14,
800029711,ALLSTAR BUSINESS SOLUTIONS LTD,P2002340649,92,62.73,FUEL,20/02/14,
800029711,ALLSTAR BUSINESS SOLUTIONS LTD,P2002340649,93,52.08,FUEL,20/02/14,
800029711,ALLSTAR BUSINESS SOLUTIONS LTD,P2002340649,94,50.26,FUEL,20/02/14,
800029711,ALLSTAR BUSINESS SOLUTIONS LTD,P2002340649,95,46.58,FUEL,20/02/14,
800029711,ALLSTAR BUSINESS SOLUTIONS LTD,P2002340649,96,44.44,FUEL,20/02/14,
800029711,ALLSTAR BUSINESS SOLUTIONS LTD,P2002340649,97,40.26,FUEL,20/02/14,
800029711,ALLSTAR BUSINESS SOLUTIONS LTD,P2002340649,98,40.09,FUEL,20/02/14,
800029711,ALLSTAR BUSINESS SOLUTIONS LTD,P2002340649,99,37.94,FUEL,20/02/14,
800029711,ALLSTAR BUSINESS SOLUTIONS LTD,P2002340649,100,27.88,FUEL,20/02/14,
800029711,ALLSTAR BUSINESS SOLUTIONS LTD,P2002340649,101,25.05,FUEL,20/02/14,
800029711,ALLSTAR BUSINESS SOLUTIONS LTD,P2002340649,102,9.40,FUEL,20/02/14,
800029711,ALLSTAR BUSINESS SOLUTIONS LTD,P2002340649,103,9.34,FUEL,20/02/14,
902379,BABCOCK TRAINING LTD,PTSI010088,1,"1,531,568.52",OUTSOURCED TRAINING,20/02/14,"1,531,568.52"
170214G,PULLMAN MOTORS================,PULL209,1,600.00,OPERATIONAL EQUIP-PURCHASE,20/02/14,600.00
070214G,HUNTER LODGE==================,S-015233,1,"6,920.00",ADVERTISING,20/02/14,"6,920.00"
100214C,SECURITAS SECURITY SERVICES LT,S-SIN0205742,1,"122,757.12",GENERAL,20/02/14,"122,757.12"
100214C,SECURITAS SECURITY SERVICES LT,S-SIN0205744,1,"141,862.57",GENERAL,20/02/14,"141,862.57"
140214F,SHL GROUP LTD=================,SI/233502,1,"2,752.40",ASSESSMENTS,20/02/14,"2,752.40"
140214E,SUTTON & EAST SURREY WATER PLC,SI030192,1,489.00,CURRENT HYDRANT COSTS,20/02/14,489.00
140214E,SUTTON & EAST SURREY WATER PLC,SI030194,1,"1,152.00",CURRENT HYDRANT COSTS,20/02/14,"1,152.00"
140214E,SUTTON & EAST SURREY WATER PLC,SI030196,1,"1,152.00",CURRENT HYDRANT COSTS,20/02/14,"1,152.00"
140214E,SUTTON & EAST SURREY WATER PLC,SI030197,1,"1,152.00",CURRENT HYDRANT COSTS,20/02/14,"1,152.00"
140214E,SUTTON & EAST SURREY WATER PLC,SI030200,1,"1,152.00",CURRENT HYDRANT COSTS,20/02/14,"1,152.00"
140214E,SUTTON & EAST SURREY WATER PLC,SI030202,1,"1,152.00",CURRENT HYDRANT COSTS,20/02/14,"1,152.00"
140214E,SUTTON & EAST SURREY WATER PLC,SI030203,1,"1,152.00",CURRENT HYDRANT COSTS,20/02/14,"1,152.00"
120214E,MAYPLACE PROPERTY SERVICES LIM,SI1026,1,"1,558.41",STRATEGIC (NON CYCLICAL),20/02/14,"3,868.41"
120214E,MAYPLACE PROPERTY SERVICES LIM,SI1026,2,"2,165.00",STRATEGIC (NON CYCLICAL),20/02/14,
120214E,MAYPLACE PROPERTY SERVICES LIM,SI1026,3,145.00,STRATEGIC (NON CYCLICAL),20/02/14,
030214C,WEST MIDLANDS FIRE SERVICE====,SIMON BARRY,1,"15,615.50",FIRE AUTHORITIES,20/02/14,"15,615.50"
140214E,CARERS UK ====================,SIN020922,1,"2,000.00",SUBSCRIPTIONS,20/02/14,"2,000.00"
170214G,GROUND CONTROL UMITED,SIN030355,1,13.00,GROUNDS MAINTENANCE,20/02/14,963.76
170214G,GROUND CONTROL UMITED,SIN030355,2,13.00,GROUNDS MAINTENANCE,20/02/14,
170214G,GROUND CONTROL UMITED,SIN030355,3,13.00,GROUNDS MAINTENANCE,20/02/14,
170214G,GROUND CONTROL UMITED,SIN030355,4,41.58,GROUNDS MAINTENANCE,20/02/14,
170214G,GROUND CONTROL UMITED,SIN030355,5,41.58,GROUNDS MAINTENANCE,20/02/14,
170214G,GROUND CONTROL UMITED,SIN030355,6,13.00,GROUNDS MAINTENANCE,20/02/14,
170214G,GROUND CONTROL UMITED,SIN030355,7,13.00,GROUNDS MAINTENANCE,20/02/14,
170214G,GROUND CONTROL UMITED,SIN030355,8,53.87,GROUNDS MAINTENANCE,20/02/14,
170214G,GROUND CONTROL UMITED,SIN030355,9,13.00,GROUNDS MAINTENANCE,20/02/14,
170214G,GROUND CONTROL UMITED,SIN030355,10,13.00,GROUNDS MAINTENANCE,20/02/14,
170214G,GROUND CONTROL UMITED,SIN030355,11,60.38,GROUNDS MAINTENANCE,20/02/14,
170214G,GROUND CONTROL UMITED,SIN030355,12,45.21,GROUNDS MAINTENANCE,20/02/14,
170214G,GROUND CONTROL UMITED,SIN030355,13,49.12,GROUNDS MAINTENANCE,20/02/14,
170214G,GROUND CONTROL UMITED,SIN030355,14,13.00,GROUNDS MAINTENANCE,20/02/14,
170214G,GROUND CONTROL UMITED,SIN030355,15,13.00,GROUNDS MAINTENANCE,20/02/14,
170214G,GROUND CONTROL UMITED,SIN030355,16,13.00,GROUNDS MAINTENANCE,20/02/14,
170214G,GROUND CONTROL UMITED,SIN030355,17,49.12,GROUNDS MAINTENANCE,20/02/14,
170214G,GROUND CONTROL UMITED,SIN030355,18,15.00,GROUNDS MAINTENANCE,20/02/14,
170214G,GROUND CONTROL UMITED,SIN030355,19,13.00,GROUNDS MAINTENANCE,20/02/14,
170214G,GROUND CONTROL UMITED,SIN030355,20,50.41,GROUNDS MAINTENANCE,20/02/14,
170214G,GROUND CONTROL UMITED,SIN030355,21,13.00,GROUNDS MAINTENANCE,20/02/14,
170214G,GROUND CONTROL UMITED,SIN030355,22,13.00,GROUNDS MAINTENANCE,20/02/14,
170214G,GROUND CONTROL UMITED,SIN030355,23,13.00,GROUNDS MAINTENANCE,20/02/14,
170214G,GROUND CONTROL UMITED,SIN030355,24,49.12,GROUNDS MAINTENANCE,20/02/14,
170214G,GROUND CONTROL UMITED,SIN030355,25,45.21,GROUNDS MAINTENANCE,20/02/14,
170214G,GROUND CONTROL UMITED,SIN030355,26,13.00,GROUNDS MAINTENANCE,20/02/14,
170214G,GROUND CONTROL UMITED,SIN030355,27,45.21,GROUNDS MAINTENANCE,20/02/14,
170214G,GROUND CONTROL UMITED,SIN030355,28,15.00,GROUNDS MAINTENANCE,20/02/14,
170214G,GROUND CONTROL UMITED,SIN030355,29,49.12,GROUNDS MAINTENANCE,20/02/14,
170214G,GROUND CONTROL UMITED,SIN030355,30,49.12,GROUNDS MAINTENANCE,20/02/14,
170214G,GROUND CONTROL UMITED,SIN030355,31,49.12,GROUNDS MAINTENANCE,20/02/14,
170214G,GROUND CONTROL UMITED,SIN030355,32,47.59,GROUNDS MAINTENANCE,20/02/14,
170214G,GROUND CONTROL UMITED,SIN030355,33,13.00,GROUNDS MAINTENANCE,20/02/14,
170214E,COSMUR CONSTRUCTION LTD,SL005385,1,"19,528.02",DEVELOPMENT  EXPENSES-CONTRACT,20/02/14,"19,528.02"
170214G,BRITISH TELECOM===============,VP71178070 M19901 1H,1,"3,510.44",CALL CHARGES,20/02/14,"89,529.61"
170214G,BRITISH TELECOM===============,VP71178070 M19901 1H,2,"86,019.17",TELECOMMUNICATIONS,20/02/14,
140214F,ARVAL UK LTD,VS0000985240,1,282.49,CONTRACT HIRE,20/02/14,282.49
140214F,ARVAL UK LTD,VS0001024164,1,391.30,CONTRACT HIRE,20/02/14,391.30
140214F,SPEAKERS TRUST,WEB/003735,1,257.50,GENERAL,20/02/14,257.50
180214C,MOOLANDS LTD,00000418,1,"1,290.00",STRATEGIC (NON CYCLICAL),24/02/14,"1,290.00"
170214E,MOOLANDS LTD,00000424,1,"1,200.00",STRATEGIC (NON CYCLICAL),24/02/14,"1,200.00"
180214C,MOOLANDS LTD,00000442,1,"6,990.20",STRATEGIC (NON CYCLICAL),24/02/14,"6,990.20"
200214F,TALISMAN PLASTICS LTD=========,0000114638,1,275.00,GENERAL CONSUMABLES,24/02/14,275.00
170214G,ADAM PHONES LTD===============,01030367,1,496.00,CELLULAR TELEPHONES,24/02/14,500.69
170214G,ADAM PHONES LTD===============,01030367,2,4.69,CELLULAR TELEPHONES,24/02/14,
200214F,HAYS ACCOUNTANCY & FINANCE====,1003999575,1,696.00,FRS STAFF AGENCY,24/02/14,696.00
800028537,AZTEC COMPUTING LTD===========,10435,1,"2,800.00",CONSULTANTS,24/02/14,"3,500.00"
800028537,AZTEC COMPUTING LTD===========,10435,2,700.00,MAINTENANCE & SUPPORT,24/02/14,
200214F,*SPRUE SAFETY PRODUCTS LTD====,1055326,1,"1,236.00",FIRE DETECTORS,24/02/14,"1,236.00"
200214F,*SPRUE SAFETY PRODUCTS LTD====,1055370,1,741.60,FIRE DETECTORS,24/02/14,741.60
200214F,*SPRUE SAFETY PRODUCTS LTD====,1056116,1,988.80,FIRE DETECTORS,24/02/14,988.80
190214C,ROYAL COLLEGE OF MUSIC========,11041177,1,370.00,PRESS OFFICE,24/02/14,370.00
190214C,INFOR (UNITED KINGDOM) LIMITED,11400714-GB04G,1,534.99,DAY TO DAY MINOR IMPS,24/02/14,534.99
190214C,INFOR (UNITED KINGDOM) LIMITED,11400715-GB04G,1,"1,662.40",MAINTENANCE & SUPPORT,24/02/14,"1,662.40"
190214C,INFOR (UNITED KINGDOM) LIMITED,11400721-GB04G,1,"3,210.00",MAINTENANCE & SUPPORT,24/02/14,"3,210.00"
190214C,VISTA LANDSCAPE MANAGEMENT LTD,119376,1,278.76,GROUNDS MAINTENANCE,24/02/14,278.76
190214C,VISTA LANDSCAPE MANAGEMENT LTD,119378,1,292.51,GROUNDS MAINTENANCE,24/02/14,292.51
200214F,T&B CONTRACTORS LIMITED=======,12226,1,"5,942.00",STRATEGIC (NON CYCLICAL),24/02/14,"5,942.00"
180214D,RESPIREX======================,145264,1,"7,750.00",PROTECTIVE EQUIPMENT,24/02/14,"7,750.00"
180214C,GP CONTRACTS==================,14915,1,180.00,STRATEGIC (CYCLICAL),24/02/14,"8,470.00"
180214C,GP CONTRACTS==================,14915,2,610.00,STRATEGIC (CYCLICAL),24/02/14,
180214C,GP CONTRACTS==================,14915,3,180.00,STRATEGIC (CYCLICAL),24/02/14,
180214C,GP CONTRACTS==================,14915,4,180.00,STRATEGIC (CYCLICAL),24/02/14,
180214C,GP CONTRACTS==================,14915,5,810.00,STRATEGIC (CYCLICAL),24/02/14,
180214C,GP CONTRACTS==================,14915,6,210.00,STRATEGIC (CYCLICAL),24/02/14,
180214C,GP CONTRACTS==================,14915,7,210.00,STRATEGIC (CYCLICAL),24/02/14,
180214C,GP CONTRACTS==================,14915,8,670.00,STRATEGIC (CYCLICAL),24/02/14,
180214C,GP CONTRACTS==================,14915,9,180.00,STRATEGIC (CYCLICAL),24/02/14,
180214C,GP CONTRACTS==================,14915,10,180.00,STRATEGIC (CYCLICAL),24/02/14,
180214C,GP CONTRACTS==================,14915,11,210.00,STRATEGIC (CYCLICAL),24/02/14,
180214C,GP CONTRACTS==================,14915,12,180.00,STRATEGIC (CYCLICAL),24/02/14,
180214C,GP CONTRACTS==================,14915,13,210.00,STRATEGIC (CYCLICAL),24/02/14,
180214C,GP CONTRACTS==================,14915,14,180.00,STRATEGIC (CYCLICAL),24/02/14,
180214C,GP CONTRACTS==================,14915,15,180.00,STRATEGIC (CYCLICAL),24/02/14,
180214C,GP CONTRACTS==================,14915,16,220.00,STRATEGIC (CYCLICAL),24/02/14,
180214C,GP CONTRACTS==================,14915,17,670.00,STRATEGIC (CYCLICAL),24/02/14,
180214C,GP CONTRACTS==================,14915,18,180.00,STRATEGIC (CYCLICAL),24/02/14,
180214C,GP CONTRACTS==================,14915,19,180.00,STRATEGIC (CYCLICAL),24/02/14,
180214C,GP CONTRACTS==================,14915,20,180.00,STRATEGIC (CYCLICAL),24/02/14,
180214C,GP CONTRACTS==================,14915,21,180.00,STRATEGIC (CYCLICAL),24/02/14,
180214C,GP CONTRACTS==================,14915,22,720.00,STRATEGIC (CYCLICAL),24/02/14,
180214C,GP CONTRACTS==================,14915,23,180.00,STRATEGIC (CYCLICAL),24/02/14,
180214C,GP CONTRACTS==================,14915,24,180.00,STRATEGIC (CYCLICAL),24/02/14,
180214C,GP CONTRACTS==================,14915,25,690.00,STRATEGIC (CYCLICAL),24/02/14,
180214C,GP CONTRACTS==================,14915,26,180.00,STRATEGIC (CYCLICAL),24/02/14,
180214C,GP CONTRACTS==================,14915,27,540.00,STRATEGIC (CYCLICAL),24/02/14,
190214C,DRON & WRIGHT=================,16882,1,295.00,PROFESSIONAL SERVICES,24/02/14,"24,039.73"
190214C,DRON & WRIGHT=================,16882,2,270.00,PROFESSIONAL SERVICES,24/02/14,
190214C,DRON & WRIGHT=================,16882,3,225.00,PROFESSIONAL SERVICES,24/02/14,
190214C,DRON & WRIGHT=================,16882,4,"1,538.50",PROFESSIONAL SERVICES,24/02/14,
190214C,DRON & WRIGHT=================,16882,5,"1,700.70",PROFESSIONAL SERVICES,24/02/14,
190214C,DRON & WRIGHT=================,16882,6,302.50,DISPOSAL COSTS-ESTATES AGENTS,24/02/14,
190214C,DRON & WRIGHT=================,16882,7,312.50,DISPOSAL COSTS-ESTATES AGENTS,24/02/14,
190214C,DRON & WRIGHT=================,16882,8,302.50,DISPOSAL COSTS-ESTATES AGENTS,24/02/14,
190214C,DRON & WRIGHT=================,16882,9,277.50,DISPOSAL COSTS-ESTATES AGENTS,24/02/14,
190214C,DRON & WRIGHT=================,16882,10,267.50,DISPOSAL COSTS-ESTATES AGENTS,24/02/14,
190214C,DRON & WRIGHT=================,16882,11,694.40,DISPOSAL COSTS-ESTATES AGENTS,24/02/14,
190214C,DRON & WRIGHT=================,16882,12,357.50,DISPOSAL COSTS-ESTATES AGENTS,24/02/14,
190214C,DRON & WRIGHT=================,16882,13,350.00,DISPOSAL COSTS-ESTATES AGENTS,24/02/14,
190214C,DRON & WRIGHT=================,16882,14,376.70,DISPOSAL COSTS-ESTATES AGENTS,24/02/14,
190214C,DRON & WRIGHT=================,16882,15,300.00,DISPOSAL COSTS-ESTATES AGENTS,24/02/14,
190214C,DRON & WRIGHT=================,16882,16,"6,795.00",PROFESSIONAL SERVICES,24/02/14,
190214C,DRON & WRIGHT=================,16882,17,"1,375.00",PROFESSIONAL SERVICES,24/02/14,
190214C,DRON & WRIGHT=================,16882,18,416.67,PROFESSIONAL SERVICES,24/02/14,
190214C,DRON & WRIGHT=================,16882,19,"2,730.00",DISPOSAL COSTS-ESTATES AGENTS,24/02/14,
190214C,DRON & WRIGHT=================,16882,20,420.00,PROF FEES-MISCELLANEOUS,24/02/14,
190214C,DRON & WRIGHT=================,16882,21,"4,172.76",PROFESSIONAL SERVICES,24/02/14,
190214C,DRON & WRIGHT=================,16882,22,560.00,PROF FEES-MISCELLANEOUS,24/02/14,
180214C,GRADIENT CONSULTANTS LLP======,1973,1,52.74,ASBESTOS,24/02/14,400.79
180214C,GRADIENT CONSULTANTS LLP======,1973,2,52.74,ASBESTOS,24/02/14,
180214C,GRADIENT CONSULTANTS LLP======,1973,3,295.31,ASBESTOS,24/02/14,
190214C,GRADIENT CONSULTANTS LLP======,1974,1,545.00,ASBESTOS,24/02/14,"11,731.77"
190214C,GRADIENT CONSULTANTS LLP======,1974,2,55.00,ASBESTOS,24/02/14,
190214C,GRADIENT CONSULTANTS LLP======,1974,3,55.00,ASBESTOS,24/02/14,
190214C,GRADIENT CONSULTANTS LLP======,1974,4,97.50,ASBESTOS,24/02/14,
190214C,GRADIENT CONSULTANTS LLP======,1974,5,62.50,ASBESTOS,24/02/14,
190214C,GRADIENT CONSULTANTS LLP======,1974,6,55.00,ASBESTOS,24/02/14,
190214C,GRADIENT CONSULTANTS LLP======,1974,7,55.00,ASBESTOS,24/02/14,
190214C,GRADIENT CONSULTANTS LLP======,1974,8,62.50,ASBESTOS,24/02/14,
190214C,GRADIENT CONSULTANTS LLP======,1974,9,290.00,ASBESTOS,24/02/14,
190214C,GRADIENT CONSULTANTS LLP======,1974,10,195.00,ASBESTOS,24/02/14,
190214C,GRADIENT CONSULTANTS LLP======,1974,11,97.50,ASBESTOS,24/02/14,
190214C,GRADIENT CONSULTANTS LLP======,1974,12,62.50,ASBESTOS,24/02/14,
190214C,GRADIENT CONSULTANTS LLP======,1974,13,55.00,ASBESTOS,24/02/14,
190214C,GRADIENT CONSULTANTS LLP======,1974,14,97.50,ASBESTOS,24/02/14,
190214C,GRADIENT CONSULTANTS LLP======,1974,15,125.00,ASBESTOS,24/02/14,
190214C,GRADIENT CONSULTANTS LLP======,1974,16,300.00,ASBESTOS,24/02/14,
190214C,GRADIENT CONSULTANTS LLP======,1974,17,55.00,ASBESTOS,24/02/14,
190214C,GRADIENT CONSULTANTS LLP======,1974,18,295.00,ASBESTOS,24/02/14,
190214C,GRADIENT CONSULTANTS LLP======,1974,19,195.00,ASBESTOS,24/02/14,
190214C,GRADIENT CONSULTANTS LLP======,1974,20,55.00,ASBESTOS,24/02/14,
190214C,GRADIENT CONSULTANTS LLP======,1974,21,152.50,ASBESTOS,24/02/14,
190214C,GRADIENT CONSULTANTS LLP======,1974,22,97.50,ASBESTOS,24/02/14,
190214C,GRADIENT CONSULTANTS LLP======,1974,23,290.00,ASBESTOS,24/02/14,
190214C,GRADIENT CONSULTANTS LLP======,1974,24,195.00,ASBESTOS,24/02/14,
190214C,GRADIENT CONSULTANTS LLP======,1974,25,290.00,ASBESTOS,24/02/14,
190214C,GRADIENT CONSULTANTS LLP======,1974,26,62.50,ASBESTOS,24/02/14,
190214C,GRADIENT CONSULTANTS LLP======,1974,27,55.00,ASBESTOS,24/02/14,
190214C,GRADIENT CONSULTANTS LLP======,1974,28,55.00,ASBESTOS,24/02/14,
190214C,GRADIENT CONSULTANTS LLP======,1974,29,300.00,ASBESTOS,24/02/14,
190214C,GRADIENT CONSULTANTS LLP======,1974,30,201.25,ASBESTOS,24/02/14,
190214C,GRADIENT CONSULTANTS LLP======,1974,31,290.00,ASBESTOS,24/02/14,
190214C,GRADIENT CONSULTANTS LLP======,1974,32,250.00,ASBESTOS,24/02/14,
190214C,GRADIENT CONSULTANTS LLP======,1974,33,97.50,ASBESTOS,24/02/14,
190214C,GRADIENT CONSULTANTS LLP======,1974,34,62.50,ASBESTOS,24/02/14,
190214C,GRADIENT CONSULTANTS LLP======,1974,35,777.50,ASBESTOS,24/02/14,
190214C,GRADIENT CONSULTANTS LLP======,1974,36,55.00,ASBESTOS,24/02/14,
190214C,GRADIENT CONSULTANTS LLP======,1974,37,55.00,ASBESTOS,24/02/14,
190214C,GRADIENT CONSULTANTS LLP======,1974,38,55.00,ASBESTOS,24/02/14,
190214C,GRADIENT CONSULTANTS LLP======,1974,39,97.50,ASBESTOS,24/02/14,
190214C,GRADIENT CONSULTANTS LLP======,1974,40,245.00,ASBESTOS,24/02/14,
190214C,GRADIENT CONSULTANTS LLP======,1974,41,445.00,ASBESTOS,24/02/14,
190214C,GRADIENT CONSULTANTS LLP======,1974,42,55.00,ASBESTOS,24/02/14,
190214C,GRADIENT CONSULTANTS LLP======,1974,43,545.00,ASBESTOS,24/02/14,
190214C,GRADIENT CONSULTANTS LLP======,1974,44,195.00,ASBESTOS,24/02/14,
190214C,GRADIENT CONSULTANTS LLP======,1974,45,195.00,ASBESTOS,24/02/14,
190214C,GRADIENT CONSULTANTS LLP======,1974,46,62.50,ASBESTOS,24/02/14,
190214C,GRADIENT CONSULTANTS LLP======,1974,47,97.50,ASBESTOS,24/02/14,
190214C,GRADIENT CONSULTANTS LLP======,1974,48,195.00,ASBESTOS,24/02/14,
190214C,GRADIENT CONSULTANTS LLP======,1974,49,290.00,ASBESTOS,24/02/14,
190214C,GRADIENT CONSULTANTS LLP======,1974,50,55.00,ASBESTOS,24/02/14,
190214C,GRADIENT CONSULTANTS LLP======,1974,51,250.00,ASBESTOS,24/02/14,
190214C,GRADIENT CONSULTANTS LLP======,1974,52,97.50,ASBESTOS,24/02/14,
190214C,GRADIENT CONSULTANTS LLP======,1974,53,55.00,ASBESTOS,24/02/14,
190214C,GRADIENT CONSULTANTS LLP======,1974,54,445.00,ASBESTOS,24/02/14,
190214C,GRADIENT CONSULTANTS LLP======,1974,55,97.50,ASBESTOS,24/02/14,
190214C,GRADIENT CONSULTANTS LLP======,1974,56,245.00,ASBESTOS,24/02/14,
190214C,GRADIENT CONSULTANTS LLP======,1974,57,97.50,ASBESTOS,24/02/14,
190214C,GRADIENT CONSULTANTS LLP======,1974,58,97.50,ASBESTOS,24/02/14,
190214C,GRADIENT CONSULTANTS LLP======,1974,59,55.00,ASBESTOS,24/02/14,
190214C,GRADIENT CONSULTANTS LLP======,1974,60,250.00,ASBESTOS,24/02/14,
190214C,GRADIENT CONSULTANTS LLP======,1974,61,97.50,ASBESTOS,24/02/14,
190214C,GRADIENT CONSULTANTS LLP======,1974,62,97.50,ASBESTOS,24/02/14,
190214C,GRADIENT CONSULTANTS LLP======,1974,63,195.00,ASBESTOS,24/02/14,
190214C,GRADIENT CONSULTANTS LLP======,1974,64,97.50,ASBESTOS,24/02/14,
190214C,GRADIENT CONSULTANTS LLP======,1974,65,348.02,ASBESTOS,24/02/14,
190214C,GRADIENT CONSULTANTS LLP======,1974,66,97.50,ASBESTOS,24/02/14,
190214C,GRADIENT CONSULTANTS LLP======,1974,67,240.00,ASBESTOS,24/02/14,
190214C,GRADIENT CONSULTANTS LLP======,1974,68,240.00,ASBESTOS,24/02/14,
180214C,GRADIENT CONSULTANTS LLP======,1975,1,80.00,PROF FEES-MISCELLANEOUS,24/02/14,"2,432.50"
180214C,GRADIENT CONSULTANTS LLP======,1975,2,290.00,PROF FEES-MISCELLANEOUS,24/02/14,
180214C,GRADIENT CONSULTANTS LLP======,1975,3,290.00,PROF FEES-MISCELLANEOUS,24/02/14,
180214C,GRADIENT CONSULTANTS LLP======,1975,4,290.00,PROF FEES-MISCELLANEOUS,24/02/14,
180214C,GRADIENT CONSULTANTS LLP======,1975,5,55.00,PROF FEES-MISCELLANEOUS,24/02/14,
180214C,GRADIENT CONSULTANTS LLP======,1975,6,55.00,PROF FEES-MISCELLANEOUS,24/02/14,
180214C,GRADIENT CONSULTANTS LLP======,1975,7,300.00,PROF FEES-MISCELLANEOUS,24/02/14,
180214C,GRADIENT CONSULTANTS LLP======,1975,8,290.00,PROF FEES-MISCELLANEOUS,24/02/14,
180214C,GRADIENT CONSULTANTS LLP======,1975,9,482.50,PROF FEES-MISCELLANEOUS,24/02/14,
180214C,GRADIENT CONSULTANTS LLP======,1975,10,300.00,PROF FEES-MISCELLANEOUS,24/02/14,
190214C,GRADIENT CONSULTANTS LLP======,1980,1,104.41,ASBESTOS,24/02/14,991.78
190214C,GRADIENT CONSULTANTS LLP======,1980,2,104.41,ASBESTOS,24/02/14,
190214C,GRADIENT CONSULTANTS LLP======,1980,3,104.41,ASBESTOS,24/02/14,
190214C,GRADIENT CONSULTANTS LLP======,1980,4,104.41,ASBESTOS,24/02/14,
190214C,GRADIENT CONSULTANTS LLP======,1980,5,104.41,ASBESTOS,24/02/14,
190214C,GRADIENT CONSULTANTS LLP======,1980,6,52.09,ASBESTOS,24/02/14,
190214C,GRADIENT CONSULTANTS LLP======,1980,7,104.41,ASBESTOS,24/02/14,
190214C,GRADIENT CONSULTANTS LLP======,1980,8,104.41,ASBESTOS,24/02/14,
190214C,GRADIENT CONSULTANTS LLP======,1980,9,104.41,ASBESTOS,24/02/14,
190214C,GRADIENT CONSULTANTS LLP======,1980,10,104.41,ASBESTOS,24/02/14,
070214C,GREATER LONDON AUTHORITY======,2008246,1,"10,635.64",GLA SHARED SERVICES,24/02/14,"10,635.64"
180214C,B NOKES CONTRACTS LTD,2074,1,612.50,STRATEGIC (NON CYCLICAL),24/02/14,612.50
140562,MR STEPHEN WALSH,231907 WALSH,1,"25,000.00",LEGAL PROFESSIONAL FEES-GENERL,24/02/14,"25,000.00"
800029976,ADECCO UK LIMITED=============,26689364,1,586.16,FRS STAFF AGENCY,24/02/14,586.16
800029979,ADECCO UK LIMITED=============,26689365,1,"1,166.76",FRS STAFF AGENCY,24/02/14,"1,166.76"
800029980,ADECCO UK LIMITED=============,26689366,1,"1,444.86",FRS STAFF AGENCY,24/02/14,"1,444.86"
800029981,ADECCO UK LIMITED=============,26689367,1,560.67,FRS STAFF AGENCY,24/02/14,560.67
800029982,ADECCO UK LIMITED=============,26689368,1,594.65,FRS STAFF AGENCY,24/02/14,594.65
800029983,ADECCO UK LIMITED=============,26689369,1,945.42,FRS STAFF AGENCY,24/02/14,945.42
800029984,ADECCO UK LIMITED=============,26689370,1,594.65,FRS STAFF AGENCY,24/02/14,594.65
800029985,ADECCO UK LIMITED=============,26689371,1,594.65,FRS STAFF AGENCY,24/02/14,594.65
800030017,ADECCO UK LIMITED=============,26689371A,1,254.85,FRS STAFF AGENCY,24/02/14,254.85
800029986,ADECCO UK LIMITED=============,26689372,1,584.15,FRS STAFF AGENCY,24/02/14,584.15
800029987,ADECCO UK LIMITED=============,26689373,1,"1,445.40",FRS STAFF AGENCY,24/02/14,"1,445.40"
800029988,ADECCO UK LIMITED=============,26689374,1,729.36,CONSULTANTS,24/02/14,729.36
800029989,ADECCO UK LIMITED=============,26689375,1,686.28,FRS STAFF AGENCY,24/02/14,686.28
800029990,ADECCO UK LIMITED=============,26689376,1,"1,949.85",FRS STAFF AGENCY,24/02/14,"1,949.85"
800029991,ADECCO UK LIMITED=============,26689377,1,439.60,FRS STAFF AGENCY,24/02/14,439.60
800029992,ADECCO UK LIMITED=============,26689378,1,439.60,FRS STAFF AGENCY,24/02/14,439.60
800029993,ADECCO UK LIMITED=============,26689379,1,452.16,FRS STAFF AGENCY,24/02/14,452.16
800029994,ADECCO UK LIMITED=============,26689380,1,"2,500.00",FRS STAFF AGENCY,24/02/14,"2,500.00"
800029998,ADECCO UK LIMITED=============,26689383,1,439.60,FRS STAFF AGENCY,24/02/14,439.60
800029999,ADECCO UK LIMITED=============,26689387,1,439.60,FRS STAFF AGENCY,24/02/14,439.60
800030000,ADECCO UK LIMITED=============,26689388,1,994.77,FRS STAFF AGENCY,24/02/14,994.77
800029997,ADECCO UK LIMITED=============,26689389,1,"1,471.35",FRS STAFF AGENCY,24/02/14,"1,471.35"
800030001,ADECCO UK LIMITED=============,26689390,1,356.79,FRS STAFF AGENCY,24/02/14,356.79
800030002,ADECCO UK LIMITED=============,26689391,1,460.95,FRS STAFF AGENCY,24/02/14,460.95
800030003,ADECCO UK LIMITED=============,26689392,1,768.25,FRS STAFF AGENCY,24/02/14,768.25
800030004,ADECCO UK LIMITED=============,26689393,1,439.60,FRS STAFF AGENCY,24/02/14,439.60
800030006,ADECCO UK LIMITED=============,26689398,1,363.13,FRS STAFF AGENCY,24/02/14,363.13
800030008,ADECCO UK LIMITED=============,26689400,1,428.47,FRS STAFF AGENCY,24/02/14,428.47
800030010,ADECCO UK LIMITED=============,26692645,1,"1,212.00",FRS STAFF AGENCY,24/02/14,"1,212.00"
800030011,ADECCO UK LIMITED=============,26692646,1,554.75,FRS STAFF AGENCY,24/02/14,554.75
800030012,ADECCO UK LIMITED=============,26692647,1,622.11,FRS STAFF AGENCY,24/02/14,622.11
800030013,ADECCO UK LIMITED=============,26692648,1,"1,241.25",FRS STAFF AGENCY,24/02/14,"1,241.25"
180214C,MACE LIMITED,26915/0613201,1,"3,704.23",DEVELOPMENT  EXPENSES-CONTRACT,24/02/14,"3,704.23"
200214F,TEAM PURPLE LIMITED===========,2734,1,48.00,CLOTHING,24/02/14,286.60
200214F,TEAM PURPLE LIMITED===========,2734,2,139.00,CLOTHING,24/02/14,
200214F,TEAM PURPLE LIMITED===========,2734,3,99.60,CLOTHING,24/02/14,
070214G,UNDERSTANDING RECRUITMENT=====,2803,1,"5,320.00",CONSULTANTS,24/02/14,"5,320.00"
140563,SOUTHWARK & SOUTHBANK LIMITED,31,1,"1,141.42",RENTS,24/02/14,"1,141.42"
190214C,MCGRATH BROS (WASTE CONTROL) L,313746,1,"2,058.75",REFUSE COLLECTION,24/02/14,"2,058.75"
180214D,MCGRATH BROS (WASTE CONTROL) L,313748,1,304.00,REFUSE COLLECTION,24/02/14,504.50
180214D,MCGRATH BROS (WASTE CONTROL) L,313748,2,200.50,REFUSE COLLECTION,24/02/14,
190214C,MCGRATH BROS (WASTE CONTROL) L,314698,1,313.30,REFUSE COLLECTION,24/02/14,"18,249.69"
190214C,MCGRATH BROS (WASTE CONTROL) L,314698,2,91.56,REFUSE COLLECTION,24/02/14,
190214C,MCGRATH BROS (WASTE CONTROL) L,314698,3,188.04,REFUSE COLLECTION,24/02/14,
190214C,MCGRATH BROS (WASTE CONTROL) L,314698,4,94.51,REFUSE COLLECTION,24/02/14,
190214C,MCGRATH BROS (WASTE CONTROL) L,314698,5,119.40,REFUSE COLLECTION,24/02/14,
190214C,MCGRATH BROS (WASTE CONTROL) L,314698,6,110.59,REFUSE COLLECTION,24/02/14,
190214C,MCGRATH BROS (WASTE CONTROL) L,314698,7,63.01,REFUSE COLLECTION,24/02/14,
190214C,MCGRATH BROS (WASTE CONTROL) L,314698,8,159.60,REFUSE COLLECTION,24/02/14,
190214C,MCGRATH BROS (WASTE CONTROL) L,314698,9,131.16,REFUSE COLLECTION,24/02/14,
190214C,MCGRATH BROS (WASTE CONTROL) L,314698,10,94.51,REFUSE COLLECTION,24/02/14,
190214C,MCGRATH BROS (WASTE CONTROL) L,314698,11,42.50,REFUSE COLLECTION,24/02/14,
190214C,MCGRATH BROS (WASTE CONTROL) L,314698,12,130.28,REFUSE COLLECTION,24/02/14,
190214C,MCGRATH BROS (WASTE CONTROL) L,314698,13,151.56,REFUSE COLLECTION,24/02/14,
190214C,MCGRATH BROS (WASTE CONTROL) L,314698,14,297.22,REFUSE COLLECTION,24/02/14,
190214C,MCGRATH BROS (WASTE CONTROL) L,314698,15,111.36,REFUSE COLLECTION,24/02/14,
190214C,MCGRATH BROS (WASTE CONTROL) L,314698,16,297.22,REFUSE COLLECTION,24/02/14,
190214C,MCGRATH BROS (WASTE CONTROL) L,314698,17,102.55,REFUSE COLLECTION,24/02/14,
190214C,MCGRATH BROS (WASTE CONTROL) L,314698,18,297.22,REFUSE COLLECTION,24/02/14,
190214C,MCGRATH BROS (WASTE CONTROL) L,314698,19,88.61,REFUSE COLLECTION,24/02/14,
190214C,MCGRATH BROS (WASTE CONTROL) L,314698,20,369.58,REFUSE COLLECTION,24/02/14,
190214C,MCGRATH BROS (WASTE CONTROL) L,314698,21,158.89,REFUSE COLLECTION,24/02/14,
190214C,MCGRATH BROS (WASTE CONTROL) L,314698,22,82.04,REFUSE COLLECTION,24/02/14,
190214C,MCGRATH BROS (WASTE CONTROL) L,314698,23,82.04,REFUSE COLLECTION,24/02/14,
190214C,MCGRATH BROS (WASTE CONTROL) L,314698,24,90.08,REFUSE COLLECTION,24/02/14,
190214C,MCGRATH BROS (WASTE CONTROL) L,314698,25,42.50,REFUSE COLLECTION,24/02/14,
190214C,MCGRATH BROS (WASTE CONTROL) L,314698,26,119.40,REFUSE COLLECTION,24/02/14,
190214C,MCGRATH BROS (WASTE CONTROL) L,314698,27,94.51,REFUSE COLLECTION,24/02/14,
190214C,MCGRATH BROS (WASTE CONTROL) L,314698,28,297.22,REFUSE COLLECTION,24/02/14,
190214C,MCGRATH BROS (WASTE CONTROL) L,314698,29,216.82,REFUSE COLLECTION,24/02/14,
190214C,MCGRATH BROS (WASTE CONTROL) L,314698,30,94.51,REFUSE COLLECTION,24/02/14,
190214C,MCGRATH BROS (WASTE CONTROL) L,314698,31,131.16,REFUSE COLLECTION,24/02/14,
190214C,MCGRATH BROS (WASTE CONTROL) L,314698,32,302.36,REFUSE COLLECTION,24/02/14,
190214C,MCGRATH BROS (WASTE CONTROL) L,314698,33,111.36,REFUSE COLLECTION,24/02/14,
190214C,MCGRATH BROS (WASTE CONTROL) L,314698,34,139.20,REFUSE COLLECTION,24/02/14,
190214C,MCGRATH BROS (WASTE CONTROL) L,314698,35,163.32,REFUSE COLLECTION,24/02/14,
190214C,MCGRATH BROS (WASTE CONTROL) L,314698,36,119.40,REFUSE COLLECTION,24/02/14,
190214C,MCGRATH BROS (WASTE CONTROL) L,314698,37,159.60,REFUSE COLLECTION,24/02/14,
190214C,MCGRATH BROS (WASTE CONTROL) L,314698,38,126.67,REFUSE COLLECTION,24/02/14,
190214C,MCGRATH BROS (WASTE CONTROL) L,314698,39,102.55,REFUSE COLLECTION,24/02/14,
190214C,MCGRATH BROS (WASTE CONTROL) L,314698,40,232.90,REFUSE COLLECTION,24/02/14,
190214C,MCGRATH BROS (WASTE CONTROL) L,314698,41,232.90,REFUSE COLLECTION,24/02/14,
190214C,MCGRATH BROS (WASTE CONTROL) L,314698,42,139.20,REFUSE COLLECTION,24/02/14,
190214C,MCGRATH BROS (WASTE CONTROL) L,314698,43,90.08,REFUSE COLLECTION,24/02/14,
190214C,MCGRATH BROS (WASTE CONTROL) L,314698,44,94.51,REFUSE COLLECTION,24/02/14,
190214C,MCGRATH BROS (WASTE CONTROL) L,314698,45,313.30,REFUSE COLLECTION,24/02/14,
190214C,MCGRATH BROS (WASTE CONTROL) L,314698,46,252.70,REFUSE COLLECTION,24/02/14,
190214C,MCGRATH BROS (WASTE CONTROL) L,314698,47,131.16,REFUSE COLLECTION,24/02/14,
190214C,MCGRATH BROS (WASTE CONTROL) L,314698,48,102.55,REFUSE COLLECTION,24/02/14,
190214C,MCGRATH BROS (WASTE CONTROL) L,314698,49,102.55,REFUSE COLLECTION,24/02/14,
190214C,MCGRATH BROS (WASTE CONTROL) L,314698,50,111.36,REFUSE COLLECTION,24/02/14,
190214C,MCGRATH BROS (WASTE CONTROL) L,314698,51,297.22,REFUSE COLLECTION,24/02/14,
190214C,MCGRATH BROS (WASTE CONTROL) L,314698,52,82.04,REFUSE COLLECTION,24/02/14,
190214C,MCGRATH BROS (WASTE CONTROL) L,314698,53,102.55,REFUSE COLLECTION,24/02/14,
190214C,MCGRATH BROS (WASTE CONTROL) L,314698,54,111.36,REFUSE COLLECTION,24/02/14,
190214C,MCGRATH BROS (WASTE CONTROL) L,314698,55,63.01,REFUSE COLLECTION,24/02/14,
190214C,MCGRATH BROS (WASTE CONTROL) L,314698,56,130.28,REFUSE COLLECTION,24/02/14,
190214C,MCGRATH BROS (WASTE CONTROL) L,314698,57,42.50,REFUSE COLLECTION,24/02/14,
190214C,MCGRATH BROS (WASTE CONTROL) L,314698,58,143.52,REFUSE COLLECTION,24/02/14,
190214C,MCGRATH BROS (WASTE CONTROL) L,314698,59,94.51,REFUSE COLLECTION,24/02/14,
190214C,MCGRATH BROS (WASTE CONTROL) L,314698,60,302.36,REFUSE COLLECTION,24/02/14,
190214C,MCGRATH BROS (WASTE CONTROL) L,314698,61,139.20,REFUSE COLLECTION,24/02/14,
190214C,MCGRATH BROS (WASTE CONTROL) L,314698,62,111.36,REFUSE COLLECTION,24/02/14,
190214C,MCGRATH BROS (WASTE CONTROL) L,314698,63,82.04,REFUSE COLLECTION,24/02/14,
190214C,MCGRATH BROS (WASTE CONTROL) L,314698,64,297.22,REFUSE COLLECTION,24/02/14,
190214C,MCGRATH BROS (WASTE CONTROL) L,314698,65,90.08,REFUSE COLLECTION,24/02/14,
190214C,MCGRATH BROS (WASTE CONTROL) L,314698,66,302.36,REFUSE COLLECTION,24/02/14,
190214C,MCGRATH BROS (WASTE CONTROL) L,314698,67,90.08,REFUSE COLLECTION,24/02/14,
190214C,MCGRATH BROS (WASTE CONTROL) L,314698,68,91.56,REFUSE COLLECTION,24/02/14,
190214C,MCGRATH BROS (WASTE CONTROL) L,314698,69,111.36,REFUSE COLLECTION,24/02/14,
190214C,MCGRATH BROS (WASTE CONTROL) L,314698,70,139.20,REFUSE COLLECTION,24/02/14,
190214C,MCGRATH BROS (WASTE CONTROL) L,314698,72,94.51,REFUSE COLLECTION,24/02/14,
190214C,MCGRATH BROS (WASTE CONTROL) L,314698,73,317.78,REFUSE COLLECTION,24/02/14,
190214C,MCGRATH BROS (WASTE CONTROL) L,314698,74,94.51,REFUSE COLLECTION,24/02/14,
190214C,MCGRATH BROS (WASTE CONTROL) L,314698,75,111.36,REFUSE COLLECTION,24/02/14,
190214C,MCGRATH BROS (WASTE CONTROL) L,314698,76,131.16,REFUSE COLLECTION,24/02/14,
190214C,MCGRATH BROS (WASTE CONTROL) L,314698,77,142.75,REFUSE COLLECTION,24/02/14,
190214C,MCGRATH BROS (WASTE CONTROL) L,314698,78,69.57,REFUSE COLLECTION,24/02/14,
190214C,MCGRATH BROS (WASTE CONTROL) L,314698,79,90.08,REFUSE COLLECTION,24/02/14,
190214C,MCGRATH BROS (WASTE CONTROL) L,314698,80,90.08,REFUSE COLLECTION,24/02/14,
190214C,MCGRATH BROS (WASTE CONTROL) L,314698,81,102.55,REFUSE COLLECTION,24/02/14,
190214C,MCGRATH BROS (WASTE CONTROL) L,314698,82,297.22,REFUSE COLLECTION,24/02/14,
190214C,MCGRATH BROS (WASTE CONTROL) L,314698,83,297.22,REFUSE COLLECTION,24/02/14,
190214C,MCGRATH BROS (WASTE CONTROL) L,314698,84,131.16,REFUSE COLLECTION,24/02/14,
190214C,MCGRATH BROS (WASTE CONTROL) L,314698,85,42.50,REFUSE COLLECTION,24/02/14,
190214C,MCGRATH BROS (WASTE CONTROL) L,314698,86,114.20,REFUSE COLLECTION,24/02/14,
190214C,MCGRATH BROS (WASTE CONTROL) L,314698,87,139.20,REFUSE COLLECTION,24/02/14,
190214C,MCGRATH BROS (WASTE CONTROL) L,314698,88,82.04,REFUSE COLLECTION,24/02/14,
190214C,MCGRATH BROS (WASTE CONTROL) L,314698,89,584.38,REFUSE COLLECTION,24/02/14,
190214C,MCGRATH BROS (WASTE CONTROL) L,314698,90,90.08,REFUSE COLLECTION,24/02/14,
190214C,MCGRATH BROS (WASTE CONTROL) L,314698,91,94.51,REFUSE COLLECTION,24/02/14,
190214C,MCGRATH BROS (WASTE CONTROL) L,314698,92,297.22,REFUSE COLLECTION,24/02/14,
190214C,MCGRATH BROS (WASTE CONTROL) L,314698,93,90.08,REFUSE COLLECTION,24/02/14,
190214C,MCGRATH BROS (WASTE CONTROL) L,314698,94,119.40,REFUSE COLLECTION,24/02/14,
190214C,MCGRATH BROS (WASTE CONTROL) L,314698,95,119.40,REFUSE COLLECTION,24/02/14,
190214C,MCGRATH BROS (WASTE CONTROL) L,314698,96,297.22,REFUSE COLLECTION,24/02/14,
190214C,MCGRATH BROS (WASTE CONTROL) L,314698,97,126.73,REFUSE COLLECTION,24/02/14,
190214C,MCGRATH BROS (WASTE CONTROL) L,314698,98,"1,785.03",REFUSE COLLECTION,24/02/14,
190214C,MCGRATH BROS (WASTE CONTROL) L,314698,99,90.08,REFUSE COLLECTION,24/02/14,
190214C,MCGRATH BROS (WASTE CONTROL) L,314698,100,119.40,REFUSE COLLECTION,24/02/14,
190214C,MCGRATH BROS (WASTE CONTROL) L,314698,101,119.40,REFUSE COLLECTION,24/02/14,
190214C,MCGRATH BROS (WASTE CONTROL) L,314698,102,317.78,REFUSE COLLECTION,24/02/14,
190214C,MCGRATH BROS (WASTE CONTROL) L,314698,103,102.55,REFUSE COLLECTION,24/02/14,
190214C,MCGRATH BROS (WASTE CONTROL) L,314698,104,114.20,REFUSE COLLECTION,24/02/14,
190214C,MCGRATH BROS (WASTE CONTROL) L,314698,105,119.40,REFUSE COLLECTION,24/02/14,
190214C,MCGRATH BROS (WASTE CONTROL) L,314698,106,90.03,REFUSE COLLECTION,24/02/14,
190214C,MCGRATH BROS (WASTE CONTROL) L,314698,107,139.20,REFUSE COLLECTION,24/02/14,
190214C,MCGRATH BROS (WASTE CONTROL) L,314698,108,111.36,REFUSE COLLECTION,24/02/14,
190214C,MCGRATH BROS (WASTE CONTROL) L,314698,109,130.28,REFUSE COLLECTION,24/02/14,
190214C,MCGRATH BROS (WASTE CONTROL) L,314698,110,102.55,REFUSE COLLECTION,24/02/14,
190214C,MCGRATH BROS (WASTE CONTROL) L,314698,111,69.57,REFUSE COLLECTION,24/02/14,
190214C,MCGRATH BROS (WASTE CONTROL) L,314698,112,54.97,REFUSE COLLECTION,24/02/14,
190214C,MCGRATH BROS (WASTE CONTROL) L,314698,113,102.55,REFUSE COLLECTION,24/02/14,
140563,THAMES WATER UTILITIES LTD====,3344972311;,1,294.21,WATER & SEWERAGE RATES,24/02/14,294.21
140554,REACTIVE ROOFING (UK) LIMITED,3695,1,838.70,STRATEGIC (NON CYCLICAL),24/02/14,"1,148.70"
140554,REACTIVE ROOFING (UK) LIMITED,3695,2,310.00,STRATEGIC (NON CYCLICAL),24/02/14,
180214C,CORE SURVEYSLTD===============,5428,1,170.00,ASBESTOS,24/02/14,510.00
180214C,CORE SURVEYSLTD===============,5428,2,170.00,ASBESTOS,24/02/14,
180214C,CORE SURVEYSLTD===============,5428,3,170.00,ASBESTOS,24/02/14,
190214C,C P GREGORY & ASSOCIATES LTD==,578,1,385.00,PROFESSIONAL DEVELOPMENT,24/02/14,385.00
140563,THAMES WATER UTILITIES LTD====,72169-70523A,1,567.47,WATER & SEWERAGE RATES,24/02/14,567.47
140562,MISS SABA NAQSHBANDI==========,7876/231907,1,"14,000.00",LEGAL PROFESSIONAL FEES-GENERL,24/02/14,"14,000.00"
190214C,WEST SUSSEX COUNTY COUNCIL,8001010342,1,"23,254.00",SUBSCRIPTIONS,24/02/14,"23,254.00"
180214C,PA GROUP (UK) LTD=============,8124,1,770.00,ASBESTOS,24/02/14,770.00
180214D,DRAEGER SAFETY UK LIMITED=====,90437110,1,"1,200.00",PROTECTIVE EQUIPT - PARTS,24/02/14,"1,200.00"
180214D,DRAEGER SAFETY UK LIMITED=====,90437130,1,500.00,REPAIR & MAINTENANCE,24/02/14,546.00
180214D,DRAEGER SAFETY UK LIMITED=====,90437130,2,15.00,REPAIR & MAINTENANCE,24/02/14,
180214D,DRAEGER SAFETY UK LIMITED=====,90437130,3,31.00,TELEMETRY MAINTENANCE,24/02/14,
180214D,DRAEGER SAFETY UK LIMITED=====,90437167,1,339.00,PROTECTIVE EQUIPT - PARTS,24/02/14,339.00
190214C,GEOGRAPHERS A-Z MAP CO LIMITED,927988,1,"1,863.54",MAINTENANCE & SUPPORT,24/02/14,"1,863.54"
140563,THAMES WATER UTILITIES LTD====,9524085193/,1,890.90,WATER & SEWERAGE RATES,24/02/14,890.90
190214C,ASTEC SURVEYS LIMITED=========,ASL-14-047,1,400.00,ASBESTOS,24/02/14,420.00
190214C,ASTEC SURVEYS LIMITED=========,ASL-14-047,2,20.00,ASBESTOS,24/02/14,
200214F,HALL FUELS,I06630107,1,"3,252.60",FUEL,24/02/14,"3,252.60"
200214F,HALL FUELS,I06630108,1,"4,336.80",FUEL,24/02/14,"4,336.80"
190214C,PULSE FITNESS LTD,IN020110,1,"1,081.34",GYM EQUIPMENT,24/02/14,"1,081.34"
190214C,PULSE FITNESS LTD,IN020112,1,"1,081.34",GYM EQUIPMENT,24/02/14,"1,081.34"
190214C,PULSE FITNESS LTD,IN020114,1,"1,081.34",GYM EQUIPMENT,24/02/14,"1,081.34"
190214C,PULSE FITNESS LTD,IN020115,1,"1,081.34",GYM EQUIPMENT,24/02/14,"1,081.34"
190214C,PULSE FITNESS LTD,IN020117,1,"1,756.96",GYM EQUIPMENT,24/02/14,"1,756.96"
190214C,SMITH O'SULLIVAN LTD.=========,LFB/RFS/004*,1,760.98,STRATEGIC (NON CYCLICAL),24/02/14,760.98
120214C,COFELY WORKPLACE LIMITED,M126692,1,372.70,STRATEGIC (NON CYCLICAL),24/02/14,372.70
120214C,COFELY WORKPLACE LIMITED,M126693,1,"1,430.35",STRATEGIC (NON CYCLICAL),24/02/14,"1,430.35"
120214C,COFELY WORKPLACE LIMITED,M126694,1,"1,309.35",STRATEGIC (NON CYCLICAL),24/02/14,"1,309.35"
120214C,COFELY WORKPLACE LIMITED,M126695,1,"2,052.85",STRATEGIC (NON CYCLICAL),24/02/14,"2,052.85"
120214C,COFELY WORKPLACE LIMITED,M126697,1,506.67,STRATEGIC (NON CYCLICAL),24/02/14,506.67
120214C,COFELY WORKPLACE LIMITED,M126698,1,"1,026.65",STRATEGIC (NON CYCLICAL),24/02/14,"1,026.65"
180214C,LC ENERGY LTD,SIN001956,1,749.72,GAS,24/02/14,749.72
190214C,GROUND CONTROL UMITED,SIN030356,1,79.85,GROUNDS MAINTENANCE,24/02/14,782.42
190214C,GROUND CONTROL UMITED,SIN030356,2,13.00,GROUNDS MAINTENANCE,24/02/14,
190214C,GROUND CONTROL UMITED,SIN030356,3,49.46,GROUNDS MAINTENANCE,24/02/14,
190214C,GROUND CONTROL UMITED,SIN030356,4,34.55,GROUNDS MAINTENANCE,24/02/14,
190214C,GROUND CONTROL UMITED,SIN030356,5,14.29,GROUNDS MAINTENANCE,24/02/14,
190214C,GROUND CONTROL UMITED,SIN030356,6,14.29,GROUNDS MAINTENANCE,24/02/14,
190214C,GROUND CONTROL UMITED,SIN030356,7,41.30,GROUNDS MAINTENANCE,24/02/14,
190214C,GROUND CONTROL UMITED,SIN030356,8,41.30,GROUNDS MAINTENANCE,24/02/14,
190214C,GROUND CONTROL UMITED,SIN030356,9,13.00,GROUNDS MAINTENANCE,24/02/14,
190214C,GROUND CONTROL UMITED,SIN030356,10,13.00,GROUNDS MAINTENANCE,24/02/14,
190214C,GROUND CONTROL UMITED,SIN030356,11,45.21,GROUNDS MAINTENANCE,24/02/14,
190214C,GROUND CONTROL UMITED,SIN030356,12,41.30,GROUNDS MAINTENANCE,24/02/14,
190214C,GROUND CONTROL UMITED,SIN030356,13,13.00,GROUNDS MAINTENANCE,24/02/14,
190214C,GROUND CONTROL UMITED,SIN030356,14,13.00,GROUNDS MAINTENANCE,24/02/14,
190214C,GROUND CONTROL UMITED,SIN030356,15,13.00,GROUNDS MAINTENANCE,24/02/14,
190214C,GROUND CONTROL UMITED,SIN030356,16,13.00,GROUNDS MAINTENANCE,24/02/14,
190214C,GROUND CONTROL UMITED,SIN030356,17,13.00,GROUNDS MAINTENANCE,24/02/14,
190214C,GROUND CONTROL UMITED,SIN030356,19,13.00,GROUNDS MAINTENANCE,24/02/14,
190214C,GROUND CONTROL UMITED,SIN030356,20,64.69,GROUNDS MAINTENANCE,24/02/14,
190214C,GROUND CONTROL UMITED,SIN030356,21,13.00,GROUNDS MAINTENANCE,24/02/14,
190214C,GROUND CONTROL UMITED,SIN030356,22,13.00,GROUNDS MAINTENANCE,24/02/14,
190214C,GROUND CONTROL UMITED,SIN030356,23,34.55,GROUNDS MAINTENANCE,24/02/14,
190214C,GROUND CONTROL UMITED,SIN030356,24,13.00,GROUNDS MAINTENANCE,24/02/14,
190214C,GROUND CONTROL UMITED,SIN030356,25,34.55,GROUNDS MAINTENANCE,24/02/14,
190214C,GROUND CONTROL UMITED,SIN030356,26,38.46,GROUNDS MAINTENANCE,24/02/14,
190214C,GROUND CONTROL UMITED,SIN030356,27,38.46,GROUNDS MAINTENANCE,24/02/14,
190214C,GROUND CONTROL UMITED,SIN030356,28,13.00,GROUNDS MAINTENANCE,24/02/14,
190214C,GROUND CONTROL UMITED,SIN030356,29,13.00,GROUNDS MAINTENANCE,24/02/14,
190214C,GROUND CONTROL UMITED,SIN030356,30,13.00,GROUNDS MAINTENANCE,24/02/14,
190214C,GROUND CONTROL UMITED,SIN030356,31,6.50,GROUNDS MAINTENANCE,24/02/14,
190214C,GROUND CONTROL UMITED,SIN030356,32,8.66,GROUNDS MAINTENANCE,24/02/14,
902381,BUREAU VERITAS HS&E LTD=======,14000240,1,"95,145.75",SCIENTIFIC SERVICES,26/02/14,"95,145.75"
902383,CITY OF GHENT========,FIRE-UP,1,"2,119.94",FIRE AUTHS GRANT PAYMENTS,26/02/14,"2,119.94"
902383,ICLEI,I13127024127,1,"3,296.85",PROFESSIONAL DEVELOPMENT,26/02/14,"3,296.85"
902382,BABCOCK CRITICAL SERVICES LTD,SIMP012504,1,"1,277,415.25",VEHICLES,26/02/14,"1,327,205.92"
902382,BABCOCK CRITICAL SERVICES LTD,SIMP012504,2,"22,877.05",VEHICLES NWFT,26/02/14,
902382,BABCOCK CRITICAL SERVICES LTD,SIMP012504,3,"3,206.21",ACCIDENT REPAIRS,26/02/14,
902382,BABCOCK CRITICAL SERVICES LTD,SIMP012504,4,"2,401.00",ACCIDENT REPAIRS,26/02/14,
902382,BABCOCK CRITICAL SERVICES LTD,SIMP012504,5,610.80,MODIFICATIONS,26/02/14,
902382,BABCOCK CRITICAL SERVICES LTD,SIMP012504,6,"5,376.28",MODIFICATIONS,26/02/14,
902382,BABCOCK CRITICAL SERVICES LTD,SIMP012504,7,"3,068.08",VEHICLES,26/02/14,
902382,BABCOCK CRITICAL SERVICES LTD,SIMP012504,8,"12,251.25",LOST & NFWT OPS EQUIPMENT,26/02/14,
140214F,ADVANCED FURNITURE============,0000057777,1,405.00,OFFICE FURNITURE,27/02/14,405.00
180214C,THORLUX LIGHTING==============,001416781,1,600.00,STRATEGIC (CYCLICAL),27/02/14,"1,800.00"
180214C,THORLUX LIGHTING==============,001416781,2,600.00,STRATEGIC (CYCLICAL),27/02/14,
180214C,THORLUX LIGHTING==============,001416781,3,600.00,STRATEGIC (CYCLICAL),27/02/14,
140572,SILVER FITZGERALD,045057,1,350.00,COUNSELS FEES,27/02/14,350.00
210214C,FIRE PREVENTION PRODUCTS LTD==,045716,1,634.77,OPERATIONAL EQUIP-PURCHASE,27/02/14,634.77
210214C,FIRE PREVENTION PRODUCTS LTD==,045718,1,"1,057.95",OPERATIONAL EQUIP-PURCHASE,27/02/14,"1,057.95"
140570,CORONA ENERGY RETAIL 4 LTD,09004057,1,"2,172.69",GAS,27/02/14,"2,172.69"
140565,CORONA ENERGY RETAIL 4 LTD,0901501141,1,6.96,GAS,27/02/14,"34,798.09"
140565,CORONA ENERGY RETAIL 4 LTD,0901501141,2,"1,666.09",GAS,27/02/14,
140565,CORONA ENERGY RETAIL 4 LTD,0901501141,3,490.50,GAS,27/02/14,
140565,CORONA ENERGY RETAIL 4 LTD,0901501141,4,988.98,GAS,27/02/14,
140565,CORONA ENERGY RETAIL 4 LTD,0901501141,5,"1,436.86",GAS,27/02/14,
140565,CORONA ENERGY RETAIL 4 LTD,0901501141,6,"1,280.59",GAS,27/02/14,
140565,CORONA ENERGY RETAIL 4 LTD,0901501141,7,937.14,GAS,27/02/14,
140565,CORONA ENERGY RETAIL 4 LTD,0901501141,8,790.26,GAS,27/02/14,
140565,CORONA ENERGY RETAIL 4 LTD,0901501141,9,849.42,GAS,27/02/14,
140565,CORONA ENERGY RETAIL 4 LTD,0901501141,10,"7,149.41",GAS,27/02/14,
140565,CORONA ENERGY RETAIL 4 LTD,0901501141,11,86.80,GAS,27/02/14,
140565,CORONA ENERGY RETAIL 4 LTD,0901501141,12,638.41,GAS,27/02/14,
140565,CORONA ENERGY RETAIL 4 LTD,0901501141,13,804.91,GAS,27/02/14,
140565,CORONA ENERGY RETAIL 4 LTD,0901501141,14,"1,320.45",GAS,27/02/14,
140565,CORONA ENERGY RETAIL 4 LTD,0901501141,15,"1,477.38",GAS,27/02/14,
140565,CORONA ENERGY RETAIL 4 LTD,0901501141,16,868.78,GAS,27/02/14,
140565,CORONA ENERGY RETAIL 4 LTD,0901501141,17,"1,084.29",GAS,27/02/14,
140565,CORONA ENERGY RETAIL 4 LTD,0901501141,18,"1,308.21",GAS,27/02/14,
140565,CORONA ENERGY RETAIL 4 LTD,0901501141,19,73.66,GAS,27/02/14,
140565,CORONA ENERGY RETAIL 4 LTD,0901501141,20,131.16,GAS,27/02/14,
140565,CORONA ENERGY RETAIL 4 LTD,0901501141,21,53.92,GAS,27/02/14,
140565,CORONA ENERGY RETAIL 4 LTD,0901501141,22,779.09,GAS,27/02/14,
140565,CORONA ENERGY RETAIL 4 LTD,0901501141,23,"1,979.33",GAS,27/02/14,
140565,CORONA ENERGY RETAIL 4 LTD,0901501141,24,"1,335.56",GAS,27/02/14,
140565,CORONA ENERGY RETAIL 4 LTD,0901501141,25,656.43,GAS,27/02/14,
140565,CORONA ENERGY RETAIL 4 LTD,0901501141,26,961.91,GAS,27/02/14,
140565,CORONA ENERGY RETAIL 4 LTD,0901501141,27,559.46,GAS,27/02/14,
140565,CORONA ENERGY RETAIL 4 LTD,0901501141,28,225.49,GAS,27/02/14,
140565,CORONA ENERGY RETAIL 4 LTD,0901501141,29,828.81,GAS,27/02/14,
140565,CORONA ENERGY RETAIL 4 LTD,0901501141,30,687.29,GAS,27/02/14,
140565,CORONA ENERGY RETAIL 4 LTD,0901501141,31,"1,836.39",GAS,27/02/14,
140565,CORONA ENERGY RETAIL 4 LTD,0901501141,32,"1,504.15",GAS,27/02/14,
140566,CORONA ENERGY RETAIL 4 LTD,0901501142,1,"1,110.29",GAS,27/02/14,"26,559.55"
140566,CORONA ENERGY RETAIL 4 LTD,0901501142,2,541.81,GAS,27/02/14,
140566,CORONA ENERGY RETAIL 4 LTD,0901501142,3,711.02,GAS,27/02/14,
140566,CORONA ENERGY RETAIL 4 LTD,0901501142,4,"1,219.47",GAS,27/02/14,
140566,CORONA ENERGY RETAIL 4 LTD,0901501142,5,872.03,GAS,27/02/14,
140566,CORONA ENERGY RETAIL 4 LTD,0901501142,6,"1,650.13",GAS,27/02/14,
140566,CORONA ENERGY RETAIL 4 LTD,0901501142,7,564.56,GAS,27/02/14,
140566,CORONA ENERGY RETAIL 4 LTD,0901501142,8,"1,239.80",GAS,27/02/14,
140566,CORONA ENERGY RETAIL 4 LTD,0901501142,9,854.41,GAS,27/02/14,
140566,CORONA ENERGY RETAIL 4 LTD,0901501142,10,528.94,GAS,27/02/14,
140566,CORONA ENERGY RETAIL 4 LTD,0901501142,11,661.89,GAS,27/02/14,
140566,CORONA ENERGY RETAIL 4 LTD,0901501142,12,"1,503.95",GAS,27/02/14,
140566,CORONA ENERGY RETAIL 4 LTD,0901501142,13,73.40,GAS,27/02/14,
140566,CORONA ENERGY RETAIL 4 LTD,0901501142,14,654.94,GAS,27/02/14,
140566,CORONA ENERGY RETAIL 4 LTD,0901501142,15,994.46,GAS,27/02/14,
140566,CORONA ENERGY RETAIL 4 LTD,0901501142,16,873.28,GAS,27/02/14,
140566,CORONA ENERGY RETAIL 4 LTD,0901501142,17,613.05,GAS,27/02/14,
140566,CORONA ENERGY RETAIL 4 LTD,0901501142,18,760.02,GAS,27/02/14,
140566,CORONA ENERGY RETAIL 4 LTD,0901501142,19,178.85,GAS,27/02/14,
140566,CORONA ENERGY RETAIL 4 LTD,0901501142,20,"1,572.92",GAS,27/02/14,
140566,CORONA ENERGY RETAIL 4 LTD,0901501142,21,714.10,GAS,27/02/14,
140566,CORONA ENERGY RETAIL 4 LTD,0901501142,22,518.11,GAS,27/02/14,
140566,CORONA ENERGY RETAIL 4 LTD,0901501142,23,"1,071.67",GAS,27/02/14,
140566,CORONA ENERGY RETAIL 4 LTD,0901501142,24,998.96,GAS,27/02/14,
140566,CORONA ENERGY RETAIL 4 LTD,0901501142,25,866.59,GAS,27/02/14,
140566,CORONA ENERGY RETAIL 4 LTD,0901501142,26,914.76,GAS,27/02/14,
140566,CORONA ENERGY RETAIL 4 LTD,0901501142,27,"1,038.86",GAS,27/02/14,
140566,CORONA ENERGY RETAIL 4 LTD,0901501142,28,880.55,GAS,27/02/14,
140566,CORONA ENERGY RETAIL 4 LTD,0901501142,29,237.58,GAS,27/02/14,
140566,CORONA ENERGY RETAIL 4 LTD,0901501142,30,"1,634.20",GAS,27/02/14,
140566,CORONA ENERGY RETAIL 4 LTD,0901501142,31,504.95,GAS,27/02/14,
140567,CORONA ENERGY RETAIL 4 LTD,0901501143,1,"1,152.68",GAS,27/02/14,"40,936.08"
140567,CORONA ENERGY RETAIL 4 LTD,0901501143,2,584.22,GAS,27/02/14,
140567,CORONA ENERGY RETAIL 4 LTD,0901501143,3,"5,237.72",GAS,27/02/14,
140567,CORONA ENERGY RETAIL 4 LTD,0901501143,4,622.87,GAS,27/02/14,
140567,CORONA ENERGY RETAIL 4 LTD,0901501143,5,151.76,GAS,27/02/14,
